Department Family,Entity,Date of Payment,Expense Type,Expense Area,Supplier,Voluntary & Community Sector,SME Class,Sole Trader,D-U-N-S Number,Transaction number,PSPES Level 2,Narrative,Postal Code,Amount in Sterling,Grant?
Communities & Local Government,DCLG,02/03/2015,Current Grants to Non Profit Bodies,Neighbourhoods,ASSOCIATION TOWN CENTRE MANAGEMENT,,Small,,348626995,2100251615,,portas pilots & town team grants 31 Jan 15,SE1 0EH,"22,265.68",Yes
Communities & Local Government,DCLG,02/03/2015,Current Grants to Non Profit Bodies,Neighbourhoods,COALFIELDS REGENERATION TRUST,Yes,Small,,237444133,2100251616,,Coalfilds regen trust Q4 14/15,S63 7WX,"298,125.00",Yes
Communities & Local Government,DCLG,02/03/2015,Current Grants to Non Profit Bodies,Neighbourhoods,SOURCE PARTNERSHIP,,Micro,,,5000283219,,Right to Manage,SE22 9PF,"3,000.00",Yes
Communities & Local Government,DCLG,02/03/2015,Electricity,Finance & Corporate Services,HM REVENUE & CUSTOMS,,Public Bodies,,365117972,5106210692,Energy,Longbrook Utilities 2014-15,BN12 4XH,"1,141.83",
Communities & Local Government,DCLG,02/03/2015,Electronic Data Storage,Finance & Corporate Services,TNT UK LIMITED,,Large,,,5106210705,Warehousing and Storage,Visions electronic storage,BL10 9GR,"4,049.69",
Communities & Local Government,DCLG,02/03/2015,Electronic Data Storage,Finance & Corporate Services,TNT UK LIMITED,,Large,,,5106210708,Warehousing and Storage,Visions electronic storage,BL10 9GR,"4,049.69",
Communities & Local Government,DCLG,02/03/2015,"Furniture, Fittings and carpets",Localism,FIELDSKILL CONQUEST LIMITED,,Micro,,,5106210634,"Furniture, Fixtures and Fittings",DHP3-8B 800 deep 3 drawer lock pedestal,BN22 9AF,318.00,
Communities & Local Government,DCLG,02/03/2015,"Furniture, Fittings and carpets",Localism,FIELDSKILL CONQUEST LIMITED,,Micro,,,5106210634,"Furniture, Fixtures and Fittings",Solar Chair SOL7MINFB Navassa,BN22 9AF,252.00,
Communities & Local Government,DCLG,02/03/2015,"IT - PC, Network & Hardware",Finance & Corporate Services,COMPUTACENTER (UK) LTD,,Large,,226023463,5106210696,ICT Hardware,2 x Epson EB X20-LCD projector-2700lm,AL10 9TW,671.35,
Communities & Local Government,DCLG,02/03/2015,Office Supplies,Finance & Corporate Services,BANNER BUSINESS SUPPLIES LTD,,Large,,236638362,5106210576,Office Supplies,DELWEEKLY A4 Plastic Pockets Multi Punch,NR3 1PD,29.16,
Communities & Local Government,DCLG,02/03/2015,Office Supplies,Finance & Corporate Services,BANNER BUSINESS SUPPLIES LTD,,Large,,236638362,5106210576,Office Supplies,3 boxes A4 Punched File Covers,NR3 1PD,153.90,
Communities & Local Government,DCLG,02/03/2015,Office Supplies,Finance & Corporate Services,BANNER BUSINESS SUPPLIES LTD,,Large,,236638362,5106210576,Office Supplies,DELWEEKLY Banner Plain Manilla 10 Part A,NR3 1PD,26.88,
Communities & Local Government,DCLG,02/03/2015,Office Supplies,Finance & Corporate Services,BANNER BUSINESS SUPPLIES LTD,,Large,,236638362,5106210576,Office Supplies,Rubber Grip Gel Ink Pens,NR3 1PD,5.46,
Communities & Local Government,DCLG,02/03/2015,Office Supplies,Finance & Corporate Services,BANNER BUSINESS SUPPLIES LTD,,Large,,236638362,5106210576,Office Supplies,DELWEEKLY Post Safe Extra Strong Envelop,NR3 1PD,36.55,
Communities & Local Government,DCLG,02/03/2015,Office Supplies,Finance & Corporate Services,BANNER BUSINESS SUPPLIES LTD,,Large,,236638362,5106210576,Office Supplies,DELWEEKLY Rapesco 2 Piece Metal Filing C,NR3 1PD,7.20,
Communities & Local Government,DCLG,02/03/2015,Professional services,Finance & Corporate Services,GVA GRIMLEY LTD,,Large,,210158990,5106210647,Property Occupation,Com25 Prop&Treas Mngt Fee 2014-15,B1 2JB,"3,514.50",
Communities & Local Government,DCLG,02/03/2015,Recruitment,Neighbourhoods,GREEN PARK INTERIM & EXECUTIVE,,Small,,348738829,5106210703,Business Process Outsourcing Services,Ebbsfleet UDC Chief Executive recruitment consultancy,W1S 4NL,"2,430.00",
Communities & Local Government,DCLG,02/03/2015,Recruitment,Neighbourhoods,GREEN PARK INTERIM & EXECUTIVE,,Small,,348738829,5106210703,Business Process Outsourcing Services,Ebbsfleet UDC Chief Executive recruitment consultancy,W1S 4NL,"2,430.00",
Communities & Local Government,DCLG,02/03/2015,Rent,Finance & Corporate Services,HM REVENUE & CUSTOMS,,Public Bodies,,365117972,5106210692,Business Support,Longbrook Rent 2014-15,BN12 4XH,"6,315.56",
Communities & Local Government,DCLG,02/03/2015,Research,Finance & Corporate Services,ECONOMIC & SOCIAL RESEARCH CNCL,,Public Bodies,,239878051,5106210704,Research,Research - What Works Centre - Local Economic Growth,SN2 1UJ,"250,000.00",
Communities & Local Government,DCLG,02/03/2015,Training,Finance & Corporate Services,EMARKETEERS,,,,,5106210693,Development and Training,Google Analytics Training Course,NW3 5HT,460.00,
Communities & Local Government,DCLG,02/03/2015,Training,Neighbourhoods,HAYMARKET PUBLISHING SERVS LTD,,Large,,516858800,5106210575,Development and Training,Planning for energy & environment 2/12,TW11 9BE,329.00,
Communities & Local Government,DCLG,02/03/2015,Work In Progress Pre-Cert 40373 Spend,Neighbourhoods,LANCASHIRE COUNTY COUNCIL,,Large,,,7600012066,,Revenue Grant Clawback Offset,PR1 0LD,"-112,045.37",Yes
Communities & Local Government,DCLG,02/03/2015,Work In Progress Pre-Cert 40467 Spend,Neighbourhoods,LANCASHIRE COUNTY COUNCIL,,Large,,,7600012066,,Capital Grant Clawback Offset,PR1 0LD,"-92,127.98",Yes
Communities & Local Government,DCLG,02/03/2015,Work In Progress Pre-Cert 40467 Spend,Neighbourhoods,LANCASHIRE COUNTY COUNCIL,,Large,,,7600012066,,Capital Grant To Be Paid,PR1 0LD,"1,091,097.99",Yes
Communities & Local Government,DCLG,03/03/2015,Advertising,"Strategy, Communications and Private Office",TULLO MARSHALL WARREN LTD,,Medium,,,5106210745,Advertising,Right to Buy Marketing Contract,W1F 9NB,"11,652.00",
Communities & Local Government,DCLG,03/03/2015,Advertising,"Strategy, Communications and Private Office",TULLO MARSHALL WARREN LTD,,Medium,,,5106210746,Advertising,Right to Buy Marketing Contract,W1F 9NB,"3,074.00",
Communities & Local Government,DCLG,03/03/2015,Cap Grants to Local Authorities (DEL),Neighbourhoods,ALLERDALE BOROUGH COUNCIL,,,,218146780,5000283222,,Disabled Facilities Capital,CA14 3YJ,"2,614.00",Yes
Communities & Local Government,DCLG,03/03/2015,Cap Grants to Local Authorities (DEL),Neighbourhoods,CENTRAL BEDFORDSHIRE COUNCIL,,,,232624882,5000283230,,Disabled Facilities Capital,SG17 5TQ,"19,094.00",Yes
Communities & Local Government,DCLG,03/03/2015,Cap Grants to Local Authorities (DEL),Neighbourhoods,CORNWALL UNITARY AUTHORITY,,,,211334404,5000283231,,Disabled Facilities Capital,TR1 3AY,"30,879.00",Yes
Communities & Local Government,DCLG,03/03/2015,Cap Grants to Local Authorities (DEL),Neighbourhoods,HAMMERSMITH & FULHAM LB,,,,216929489,5000283223,,Disabled Facilities Capital,W6 9JU,"2,208.00",Yes
Communities & Local Government,DCLG,03/03/2015,Cap Grants to Local Authorities (DEL),Neighbourhoods,LEWES DC,,,,213090082,5000283221,,Disabled Facilities Capital,BN7 1AB,"13,243.00",Yes
Communities & Local Government,DCLG,03/03/2015,Cap Grants to Local Authorities (DEL),Neighbourhoods,MERTON LB,,,,,5000283224,,Disabled Facilities Capital,SM4 5DX,"17,098.00",Yes
Communities & Local Government,DCLG,03/03/2015,Cap Grants to Local Authorities (DEL),Neighbourhoods,SOLIHULL MBC,,,,,5000283225,,Disabled Facilities Capital,B91 3QR,"11,645.00",Yes
Communities & Local Government,DCLG,03/03/2015,Cap Grants to Local Authorities (DEL),Neighbourhoods,STOKE ON TRENT CITY COUNCIL,,,,216037890,5000283226,,Disabled Facilities Capital,ST4 1HH,"5,852.00",Yes
Communities & Local Government,DCLG,03/03/2015,Cap Grants to Local Authorities (DEL),Neighbourhoods,TAMESIDE MBC,,,,212635875,5000283227,,Disabled Facilities Capital,OL6 6DL,"6,820.00",Yes
Communities & Local Government,DCLG,03/03/2015,Cap Grants to Local Authorities (DEL),Neighbourhoods,TRAFFORD MBC,,,,,5000283228,,Disabled Facilities Capital,M32 0TH,"7,484.00",Yes
Communities & Local Government,DCLG,03/03/2015,Cap Grants to Local Authorities (DEL),Neighbourhoods,WORCESTER CITY CNCL,,,,227419751,5000283229,,Disabled Facilities Capital,WR1 2EZ,"3,847.00",Yes
Communities & Local Government,DCLG,03/03/2015,Current (non AEF) Grants to Local Authorities,Neighbourhoods,COTSWOLD COUNTY COUNCIL,,Large,,232462085,2100251665,,Support to Las for Housing Developments,GL7 1PX,"183,800.00",Yes
Communities & Local Government,DCLG,03/03/2015,Current Grants to Non Profit Bodies,Neighbourhoods,CEL GROUP,,Medium,,394794614,5106210722,Technical Services,Home Improvement Agency,WA2 0YL,"76,564.63",Yes
Communities & Local Government,DCLG,03/03/2015,Domestic Services,Finance & Corporate Services,AMEY COMMUNITY LTD,,Large,,,5106210748,Building Operation,2014-15 Lateral Additional Cleaning-EA,OX4 4DQ,"1,202.84",
Communities & Local Government,DCLG,03/03/2015,Domestic Services,Finance & Corporate Services,AMEY COMMUNITY LTD,,Large,,,5106210748,Building Operation,2014-15 Lateral Cleaning,OX4 4DQ,"4,552.59",
Communities & Local Government,DCLG,03/03/2015,Facilities Management (ISD use only),Finance & Corporate Services,AMEY COMMUNITY LTD,,Large,,,5106210748,Property Occupation,2014-15 Lateral Estate Service,OX4 4DQ,"1,867.44",
Communities & Local Government,DCLG,03/03/2015,Facilities Management (ISD use only),Finance & Corporate Services,AMEY COMMUNITY LTD,,Large,,,5106210748,Property Occupation,2014-15 Lateral General Requirements,OX4 4DQ,"3,969.80",
Communities & Local Government,DCLG,03/03/2015,Facilities Management (ISD use only),Finance & Corporate Services,AMEY COMMUNITY LTD,,Large,,,5106210748,Property Occupation,2014-15 Lateral Helpdesk,OX4 4DQ,368.59,
Communities & Local Government,DCLG,03/03/2015,Facilities Management (ISD use only),Finance & Corporate Services,AMEY COMMUNITY LTD,,Large,,,5106210748,Property Occupation,2014-15 Lateral Porterage Services,OX4 4DQ,18.33,
Communities & Local Government,DCLG,03/03/2015,Facilities Management (ISD use only),Finance & Corporate Services,AMEY COMMUNITY LTD,,Large,,,5106210748,Property Occupation,2014-15 Lateral X-Ray devices,OX4 4DQ,51.11,
Communities & Local Government,DCLG,03/03/2015,Fixed Maintenance,Finance & Corporate Services,AMEY COMMUNITY LTD,,Large,,,5106210748,Business Support,2014-15 Lateral Grounds &Gardens,OX4 4DQ,169.08,
Communities & Local Government,DCLG,03/03/2015,IT - Service Contracts,Finance & Corporate Services,FUJITSU SERVICES LTD,,Large,,423375062,5106209756,IT Managed / Outsourced Services,PINS NR orders Q4 FY 2014/15,WA3 9BD,"1,952.00",
Communities & Local Government,DCLG,03/03/2015,IT - Service Contracts,Finance & Corporate Services,FUJITSU SERVICES LTD,,Large,,423375062,5106210653,IT Managed / Outsourced Services,PINS NR orders Q4 FY 2014/15,WA3 9BD,"-2,500.00",
Communities & Local Government,DCLG,03/03/2015,IT - Service Contracts,Finance & Corporate Services,FUJITSU SERVICES LTD,,Large,,423375062,5106210654,IT Managed / Outsourced Services,DCLG NR Orders Q4 FY 2014/15,WA3 9BD,"-1,961.00",
Communities & Local Government,DCLG,03/03/2015,IT - Service Contracts,Finance & Corporate Services,FUJITSU SERVICES LTD,,Large,,423375062,5106210751,IT Managed / Outsourced Services,NRF0056 LiveLink Upgrade Project,WA3 9BD,"3,924.12",
Communities & Local Government,DCLG,03/03/2015,IT - Service Contracts,Neighbourhoods,APTO SOLUTIONS LTD,,Small,,739026040,5106210730,IT Managed / Outsourced Services,Planning Portal 1 APP forms contract,BS8 3BA,"3,784.00",
Communities & Local Government,DCLG,03/03/2015,IT - Service Contracts,Neighbourhoods,APTO SOLUTIONS LTD,,Small,,739026040,5106210742,IT Managed / Outsourced Services,Support Services CRM Tool  2014/15,BS8 3BA,"2,176.00",
Communities & Local Government,DCLG,03/03/2015,IT - Service Contracts,Neighbourhoods,DEXTROUS WEB LTD,,Micro,,211267270,5106210729,IT Managed / Outsourced Services,Hosting support and RAMP,N1 7NG,868.80,
Communities & Local Government,DCLG,03/03/2015,Legal Fees,Finance & Corporate Services,TREASURY SOLICITOR,,Public Bodies,,215580680,2100251662,Legal,Legal Advice,WC2B 4TS,"13,000.00",
Communities & Local Government,DCLG,03/03/2015,Security,Finance & Corporate Services,AMEY COMMUNITY LTD,,Large,,,5106210748,Security,2014-15 Lateral Reception Services,OX4 4DQ,846.70,
Communities & Local Government,DCLG,03/03/2015,Steady State Service Provision,Finance & Corporate Services,CGI IT UK LIMITED,,Large,,239881618,5106210726,Business Process Outsourcing Services,Payroll Services & Licences  14/15,CF31 9AP,"7,302.93",
Communities & Local Government,DCLG,03/03/2015,Training,Finance & Corporate Services,AUDITWARE TRAINING & CONSULTANCY,,Small,,397316647,5106210694,Development and Training,Introduction to IDEA Data Analysis (AV),TN4 9JR,450.00,
Communities & Local Government,DCLG,03/03/2015,Training,Finance & Corporate Services,AUDITWARE TRAINING & CONSULTANCY,,Small,,397316647,5106210694,Development and Training,Introduction to IDEA Data Analysis (DH),TN4 9JR,450.00,
Communities & Local Government,DCLG,03/03/2015,Training,Finance & Corporate Services,AUDITWARE TRAINING & CONSULTANCY,,Small,,397316647,5106210694,Development and Training,Introduction to IDEA Data Analysis (MM),TN4 9JR,450.00,
Communities & Local Government,DCLG,03/03/2015,Training,Finance & Corporate Services,AUDITWARE TRAINING & CONSULTANCY,,Small,,397316647,5106210694,Development and Training,Introduction to IDEA Data Analysis (PC),TN4 9JR,450.00,
Communities & Local Government,DCLG,03/03/2015,Training,Finance & Corporate Services,BPP PROFESSIONAL EDUCATION,,,,732726158,5106210607,Development and Training,CIMA F8 Audit & Assurance study & examination,W12 8AA,973.96,
Communities & Local Government,DCLG,03/03/2015,Training,Finance & Corporate Services,BPP PROFESSIONAL EDUCATION,,,,732726158,5106210607,Development and Training,CIMA F9 Finance Management study & exam,W12 8AA,"1,069.59",
Communities & Local Government,DCLG,03/03/2015,Training,Finance & Corporate Services,CAPITA BUS. SERV. LTD (CSL),,Large,,215580993,5106210410,Development and Training,Individually Facilitated Learning Sessio,DL1 9HB,"-1,878.00",
Communities & Local Government,DCLG,03/03/2015,Training,Finance & Corporate Services,CAPITA BUS. SERV. LTD (CSL),,Large,,215580993,5106210719,Development and Training,APMP Body of Knowledge 5 Exam� Preparation Refresher Course,DL1 9HB,"2,890.24",
Communities & Local Government,DCLG,03/03/2015,Training,Finance & Corporate Services,CAPITA BUS. SERV. LTD (CSL),,Large,,215580993,5106210721,Development and Training,PRINCE2  Practitioner Re-registration,DL1 9HB,321.00,
Communities & Local Government,DCLG,03/03/2015,Training,Finance & Corporate Services,CAPITA BUS. SERV. LTD (CSL),,Large,,215580993,5106210724,Development and Training,Proofamatics,DL1 9HB,250.00,
Communities & Local Government,DCLG,03/03/2015,Training,Finance & Corporate Services,CAPITA BUS. SERV. LTD (CSL),,Large,,215580993,5106210749,Development and Training,Fast Stream Training (First year courses,DL1 9HB,694.80,
Communities & Local Government,DCLG,03/03/2015,Training,Finance & Corporate Services,CAPITA BUS. SERV. LTD (CSL),,Large,,215580993,5106210752,Development and Training,Individually Facilitated Learning Sessio,DL1 9HB,"1,878.00",
Communities & Local Government,DCLG,03/03/2015,Training,Neighbourhoods,R T P I CONFERENCES,,Medium,,504955154,5106210723,Development and Training,RTPI Season Ticket for Training,EC1V 1NY,"14,295.00",
Communities & Local Government,DCLG,03/03/2015,Waste Disposal and pest control,Finance & Corporate Services,AMEY COMMUNITY LTD,,Large,,,5106210748,Environmental Services,2014-15 Lateral Pest Control Services,OX4 4DQ,42.76,
Communities & Local Government,DCLG,03/03/2015,Waste Disposal and pest control,Finance & Corporate Services,AMEY COMMUNITY LTD,,Large,,,5106210748,Waste Management Services,2014-15 Lateral Waste Management,OX4 4DQ,"1,059.21",
Communities & Local Government,DCLG,03/03/2015,Work In Progress Pre-Cert 40373 Spend,Neighbourhoods,BASSETLAW DISTRICT COUNCIL,,Large,,,7600012071,,Revenue Grant To Be Paid,S81 2AH,"12,565.27",Yes
Communities & Local Government,DCLG,03/03/2015,Work In Progress Pre-Cert 40373 Spend,Neighbourhoods,LEICESTER UNIVERSITY,,Large,,,7600012073,,Revenue Grant To Be Paid,LE1 7RH,"19,381.12",Yes
Communities & Local Government,DCLG,03/03/2015,Work In Progress Pre-Cert 40373 Spend,Neighbourhoods,NORTH TYNESIDE COUNCIL,,,,,7600012074,,Revenue Grant To Be Paid,NE27 0BY,"76,158.76",Yes
Communities & Local Government,DCLG,03/03/2015,Work In Progress Pre-Cert 40373 Spend,Neighbourhoods,NORTHUM'LAND BUSINESS SERVICES LTD,,,,,7600012069,,Revenue Grant To Be Paid,NE63 8QZ,"165,880.43",Yes
Communities & Local Government,DCLG,03/03/2015,Work In Progress Pre-Cert 40373 Spend,Neighbourhoods,NOTTINGHAM UNIVERSITY,,Large,,,7600012068,,Revenue Grant To Be Paid,NG7 2RD,"20,094.35",Yes
Communities & Local Government,DCLG,03/03/2015,Work In Progress Pre-Cert 40373 Spend,Neighbourhoods,NOTTINGHAM UNIVERSITY,,Large,,,7600012070,,Revenue Grant To Be Paid,NG7 2RD,"15,998.83",Yes
Communities & Local Government,DCLG,03/03/2015,Work In Progress Pre-Cert 40373 Spend,Neighbourhoods,NOTTINGHAMSHIRE COUNTY COUNCIL,,Large,,,7600012067,,Revenue Grant To Be Paid,NG2 7QP,"8,942.55",Yes
Communities & Local Government,DCLG,03/03/2015,Work In Progress Pre-Cert 40373 Spend,Neighbourhoods,SERCO REGIONAL SERVICES LTD,,,,,7600012075,,Revenue Grant To Be Paid,PL6 8LU,"219,676.00",Yes
Communities & Local Government,DCLG,03/03/2015,Work In Progress Pre-Cert 40373 Spend,Neighbourhoods,SERCO REGIONAL SERVICES LTD,,,,,7600012076,,Revenue Grant To Be Paid,PL6 8LU,"36,095.50",Yes
Communities & Local Government,DCLG,03/03/2015,Work In Progress Pre-Cert 40373 Spend,Neighbourhoods,SERCO REGIONAL SERVICES LTD,,,,,7600012077,,Revenue Grant To Be Paid,PL6 8LU,"31,717.05",Yes
Communities & Local Government,DCLG,03/03/2015,Work In Progress Pre-Cert 40373 Spend,Neighbourhoods,SERCO REGIONAL SERVICES LTD,,,,,7600012078,,Revenue Grant To Be Paid,PL6 8LU,"211,897.19",Yes
Communities & Local Government,DCLG,03/03/2015,Work In Progress Pre-Cert 40467 Spend,Neighbourhoods,ASHFIELD DISTRICT COUNCIL,,Large,,,7600012072,,Capital Grant To Be Paid,NG17 8DA,"132,391.77",Yes
Communities & Local Government,DCLG,03/03/2015,Work In Progress Pre-Cert 40467 Spend,Neighbourhoods,SERCO REGIONAL SERVICES LTD,,,,,7600012075,,Capital Grant To Be Paid,PL6 8LU,"2,665.97",Yes
Communities & Local Government,DCLG,04/03/2015,Advertising,"Strategy, Communications and Private Office",LOCAL MEDIA WORKS,,Small,,,5106210776,Advertising,LMW 2014-15 Adapts,SW1V 1AE,"1,710.00",
Communities & Local Government,DCLG,04/03/2015,Advertising,"Strategy, Communications and Private Office",LOCAL MEDIA WORKS,,Small,,,5106210777,Advertising,LMW 2014-15 Residency,SW1V 1AE,"10,800.00",
Communities & Local Government,DCLG,04/03/2015,Advertising,"Strategy, Communications and Private Office",TULLO MARSHALL WARREN LTD,,Medium,,,5106210741,Advertising,Right to Buy Marketing Contract,W1F 9NB,"2,498.00",
Communities & Local Government,DCLG,04/03/2015,Advertising,"Strategy, Communications and Private Office",TULLO MARSHALL WARREN LTD,,Medium,,,5106210743,Advertising,Right to Buy Marketing Contract,W1F 9NB,"1,470.00",
Communities & Local Government,DCLG,04/03/2015,Advertising,"Strategy, Communications and Private Office",TULLO MARSHALL WARREN LTD,,Medium,,,5106210744,Advertising,Right to Buy Marketing Contract,W1F 9NB,"1,788.00",
Communities & Local Government,DCLG,04/03/2015,Agency Staff,Neighbourhoods,CAPITA RESOURCING LTD,,Large,,215581006,5106210764,Contingent Labour,Interim Manager,SL6 1DP,"3,339.00",
Communities & Local Government,DCLG,04/03/2015,Agency Staff,Neighbourhoods,REED EMPLOYMENT SERVICES,,Large,,292193364,5106210773,Contingent Labour,Extension untill transfer,SW20 0BA,809.10,
Communities & Local Government,DCLG,04/03/2015,Current (non AEF) Grants to Local Authorities,Localism,CORNWALL UNITARY AUTHORITY,,,,211334404,5000283235,,Weekly Collection Support Scheme,TR1 3AY,"131,256.00",Yes
Communities & Local Government,DCLG,04/03/2015,Current (non AEF) Grants to Local Authorities,Localism,COVENTRY CITY CNCL,,,,210384802,5000283232,,Weekly Collection Support Scheme,CV1 2QL,"410,000.00",Yes
Communities & Local Government,DCLG,04/03/2015,Current (non AEF) Grants to Local Authorities,Localism,ISLINGTON LB,,,,225716729,5000283233,,Weekly Collection Support Scheme,N1 1XR,"90,920.00",Yes
Communities & Local Government,DCLG,04/03/2015,Current (non AEF) Grants to Local Authorities,Localism,LUTON BC,,,,365112155,5000283234,,Weekly Collection Support Scheme,LU1 2BQ,"730,865.00",Yes
Communities & Local Government,DCLG,04/03/2015,EU Cur Grnt to Priv Sect-Persons & NPISH,Neighbourhoods,PARK ROYAL PARTNERSHIP LTD,,Small,,771373180,7500028282,,Recovery of irregular payment,W3 6UR,"-5,953.02",Yes
Communities & Local Government,DCLG,04/03/2015,EU Cur Grnt to Priv Sect-Persons & NPISH,Neighbourhoods,DEVELOP,,Medium,,,7500027870,,Recovery of irregular payment,NE23 6QE,"-4,191.00",Yes
Communities & Local Government,DCLG,04/03/2015,EU Cur Grnt to Priv Sect-Persons & NPISH,Neighbourhoods,S C E D U,,,,,7500027564,,Recovery of irregular payment,S3 8EN,"-457,316.19",Yes
Communities & Local Government,DCLG,04/03/2015,IT - Service Contracts,Finance & Corporate Services,FUJITSU SERVICES LTD,,Large,,423375062,5106210756,IT Managed / Outsourced Services,DCLG NR Orders Q4 FY 2014/15,WA3 9BD,675.00,
Communities & Local Government,DCLG,04/03/2015,IT - Service Contracts,Localism,INFORMED SOLUTIONS LTD,,Small,,346179542,5106210774,IT Managed / Outsourced Services,GPS Managed Services to January 2015,WA14 4PA,"1,400.00",
Communities & Local Government,DCLG,04/03/2015,Legal Fees,Neighbourhoods,LEASE CONFERENCES LTD,,Small,,,5106210780,Legal,Legal Advice,EC4Y 8JX,"9,957.60",
Communities & Local Government,DCLG,04/03/2015,Mobile phone costs,Finance & Corporate Services,ORANGE (AIRTIME/LINE RENTAL),,Large,,210707540,2100251695,Telecoms,Monthly consolidated telephone costs March 2015,S98 1DX,391.80,
Communities & Local Government,DCLG,04/03/2015,Printing,"Strategy, Communications and Private Office",STATIONERY OFFICE LTD,,Large,,779375633,5106210778,Printing Services,Statutory Instruments Print: Non-Vatable,NR3 1PD,165.00,
Communities & Local Government,DCLG,04/03/2015,Printing,"Strategy, Communications and Private Office",STATIONERY OFFICE LTD,,Large,,779375633,5106210778,Printing Services,Statutory Instruments Print: Vatable,NR3 1PD,130.00,
Communities & Local Government,DCLG,04/03/2015,Publications,Finance & Corporate Services,JONES YARRELL LEADENHALL LTD,,Large,,505670265,5106210783,Learning and Development Materials,Journal and Newspaper supply 2014-15,E3 3JH,309.68,
Communities & Local Government,DCLG,04/03/2015,Publicity,"Strategy, Communications and Private Office",JONES YARRELL LEADENHALL LTD,,Large,,505670265,5106210779,Advertising,Newspaper and Magazines 14/15,E3 3JH,452.82,
Communities & Local Government,DCLG,04/03/2015,Revenue Support grant payable,Localism,ADUR DC,,,,227472891,5000282817,,Grant Payable by Exchequer,BN43 6PR,"82,585.00",Yes
Communities & Local Government,DCLG,04/03/2015,Revenue Support grant payable,Localism,ALLERDALE BOROUGH COUNCIL,,,,230824120,5000282822,,Grant Payable by Exchequer,CA14 3YJ,"256,920.00",Yes
Communities & Local Government,DCLG,04/03/2015,Revenue Support grant payable,Localism,AMBER VALLEY BC,,,,,5000282825,,Grant Payable by Exchequer,DE5 3BT,"188,215.00",Yes
Communities & Local Government,DCLG,04/03/2015,Revenue Support grant payable,Localism,ARUN DC,,,,211217668,5000282828,,Grant Payable by Exchequer,BN17 5LF,"169,554.00",Yes
Communities & Local Government,DCLG,04/03/2015,Revenue Support grant payable,Localism,ASHFIELD DC,,,,235415296,5000282832,,Grant Payable by Exchequer,NG17 8DA,"274,463.00",Yes
Communities & Local Government,DCLG,04/03/2015,Revenue Support grant payable,Localism,ASHFORD BC,,,,229467071,5000282835,,Grant Payable by Exchequer,TN23 1PL,"165,431.00",Yes
Communities & Local Government,DCLG,04/03/2015,Revenue Support grant payable,Localism,AVON FIRE AUTHORITY,,,,424872570,5000282837,,Grant Payable by Exchequer,BS1 6EU,"709,674.00",Yes
Communities & Local Government,DCLG,04/03/2015,Revenue Support grant payable,Localism,AYLESBURY VALE DC,,,,396710709,5000282841,,Grant Payable by Exchequer,HP19 8FF,"178,650.00",Yes
Communities & Local Government,DCLG,04/03/2015,Revenue Support grant payable,Localism,BABERGH DC,,,,232618405,5000282844,,Grant Payable by Exchequer,IP7 6SJ,"99,374.00",Yes
Communities & Local Government,DCLG,04/03/2015,Revenue Support grant payable,Localism,BARKING & DAGENHAM LB,,Public Bodies,,227419488,5000282848,,Grant Payable by Exchequer,RM10 7BY,"4,361,677.00",Yes
Communities & Local Government,DCLG,04/03/2015,Revenue Support grant payable,Localism,BARNET LBC,,,,211049507,5000282851,,Grant Payable by Exchequer,N11 1NP,"1,957,397.00",Yes
Communities & Local Government,DCLG,04/03/2015,Revenue Support grant payable,Localism,BARNSLEY MBC,,Public Bodies,,211178595,5000282854,,Grant Payable by Exchequer,S70 2AQ,"3,564,478.00",Yes
Communities & Local Government,DCLG,04/03/2015,Revenue Support grant payable,Localism,BARROW BC,,,,295632913,5000282857,,Grant Payable by Exchequer,LA14 2LD,"218,010.00",Yes
Communities & Local Government,DCLG,04/03/2015,Revenue Support grant payable,Localism,BASILDON DC,,,,,5000282860,,Grant Payable by Exchequer,SS14 0DF,"264,053.00",Yes
Communities & Local Government,DCLG,04/03/2015,Revenue Support grant payable,Localism,BASINGSTOKE & DEANE BC,,,,228328506,5000282863,,Grant Payable by Exchequer,RG21 2AJ,"179,194.00",Yes
Communities & Local Government,DCLG,04/03/2015,Revenue Support grant payable,Localism,BASSETLAW DC,,,,230225054,5000282865,,Grant Payable by Exchequer,S80 2AH,"286,607.00",Yes
Communities & Local Government,DCLG,04/03/2015,Revenue Support grant payable,Localism,BATH & NORTH EAST SOMERSET DC,,,,214502499,5000282868,,Grant Payable by Exchequer,BA1 5AW,"397,028.00",Yes
Communities & Local Government,DCLG,04/03/2015,Revenue Support grant payable,Localism,BEDFORD BOROUGH COUNCIL,,,,211166889,5000282982,,Grant Payable by Exchequer,MK40 1SJ,"813,798.00",Yes
Communities & Local Government,DCLG,04/03/2015,Revenue Support grant payable,Localism,BEDS & LUTON FIRE & RESCUE SERVICE,,,,387821283,5000282871,,Grant Payable by Exchequer,MK42 7NR,"235,648.00",Yes
Communities & Local Government,DCLG,04/03/2015,Revenue Support grant payable,Localism,BEXLEY LB,,,,,5000282878,,Grant Payable by Exchequer,DA8 1TL,"1,420,750.00",Yes
Communities & Local Government,DCLG,04/03/2015,Revenue Support grant payable,Localism,BIRMINGHAM CITY CNCL,,,,213780559,5000282881,,Grant Payable by Exchequer,B3 3AB,"27,163,707.00",Yes
Communities & Local Government,DCLG,04/03/2015,Revenue Support grant payable,Localism,BLABY DC,,,,,5000282884,,Grant Payable by Exchequer,LE9 5EP,"102,008.00",Yes
Communities & Local Government,DCLG,04/03/2015,Revenue Support grant payable,Localism,BLACKBURN WITH DARWEN BC,,,,,5000282887,,Grant Payable by Exchequer,BB1 7DY,"2,779,684.00",Yes
Communities & Local Government,DCLG,04/03/2015,Revenue Support grant payable,Localism,BLACKPOOL BC,,,,,5000282890,,Grant Payable by Exchequer,FY1 1NA,"3,020,988.00",Yes
Communities & Local Government,DCLG,04/03/2015,Revenue Support grant payable,Localism,BOLSOVER DC,,Large,,235516523,5000282894,,Grant Payable by Exchequer,S43 4JY,"169,160.00",Yes
Communities & Local Government,DCLG,04/03/2015,Revenue Support grant payable,Localism,BOLTON MBC,,,,,5000282897,,Grant Payable by Exchequer,BL1 1RU,"4,221,630.00",Yes
Communities & Local Government,DCLG,04/03/2015,Revenue Support grant payable,Localism,BOSTON BC,,,,236417713,5000282899,,Grant Payable by Exchequer,PE21 8QR,"191,216.00",Yes
Communities & Local Government,DCLG,04/03/2015,Revenue Support grant payable,Localism,BOURNEMOUTH DC,,,,,5000282902,,Grant Payable by Exchequer,BH2 6EB,"1,205,764.00",Yes
Communities & Local Government,DCLG,04/03/2015,Revenue Support grant payable,Localism,BRACKNELL FOREST DC,,,,236184867,5000282905,,Grant Payable by Exchequer,RG12 1AQ,"578,904.00",Yes
Communities & Local Government,DCLG,04/03/2015,Revenue Support grant payable,Localism,BRADFORD MBC,,,,,5000282908,,Grant Payable by Exchequer,BD1 1HX,"10,456,162.00",Yes
Communities & Local Government,DCLG,04/03/2015,Revenue Support grant payable,Localism,BRAINTREE DC,,,,226941730,5000282911,,Grant Payable by Exchequer,CM7 9HB,"160,653.00",Yes
Communities & Local Government,DCLG,04/03/2015,Revenue Support grant payable,Localism,BRECKLAND DC,,,,232611384,5000282914,,Grant Payable by Exchequer,NR19 1EE,"279,273.00",Yes
Communities & Local Government,DCLG,04/03/2015,Revenue Support grant payable,Localism,BRENT LB,,,,,5000282917,,Grant Payable by Exchequer,HA9 9EZ,"6,675,768.00",Yes
Communities & Local Government,DCLG,04/03/2015,Revenue Support grant payable,Localism,BRENTWOOD BC,,,,227473188,5000282920,,Grant Payable by Exchequer,CM15 8AY,"77,378.00",Yes
Communities & Local Government,DCLG,04/03/2015,Revenue Support grant payable,Localism,BRIGHTON & HOVE CITY COUNCIL,,Large,,228455218,5000282923,,Grant Payable by Exchequer,BN3 2LS,"2,854,881.00",Yes
Communities & Local Government,DCLG,04/03/2015,Revenue Support grant payable,Localism,BRISTOL CITY CNCL,,,,211103882,5000282926,,Grant Payable by Exchequer,BS99 7BL,"4,971,245.00",Yes
Communities & Local Government,DCLG,04/03/2015,Revenue Support grant payable,Localism,BROADLAND DC,,,,219737785,5000282929,,Grant Payable by Exchequer,NR7 0DU,"168,040.00",Yes
Communities & Local Government,DCLG,04/03/2015,Revenue Support grant payable,Localism,BROMLEY LB,,,,211331954,5000282931,,Grant Payable by Exchequer,BR1 3UH,"945,701.00",Yes
Communities & Local Government,DCLG,04/03/2015,Revenue Support grant payable,Localism,BROMSGROVE DC,,,,236654745,5000282934,,Grant Payable by Exchequer,B60 1AA,"61,651.00",Yes
Communities & Local Government,DCLG,04/03/2015,Revenue Support grant payable,Localism,BROXBOURNE BOROUGH COUNCIL,,,,239931918,5000282937,,Grant Payable by Exchequer,EN8 9XQ,"167,130.00",Yes
Communities & Local Government,DCLG,04/03/2015,Revenue Support grant payable,Localism,BROXTOWE BC,,,,239877640,5000282940,,Grant Payable by Exchequer,NG9 1AB,"169,568.00",Yes
Communities & Local Government,DCLG,04/03/2015,Revenue Support grant payable,Localism,BUCKS & MILTON KEYNES FIRE AUTH,,Public Bodies,,423679463,5000282943,,Grant Payable by Exchequer,HP20 1BD,"210,448.00",Yes
Communities & Local Government,DCLG,04/03/2015,Revenue Support grant payable,Localism,BURNLEY BC,,,,229413281,5000282946,,Grant Payable by Exchequer,BB11 1JA,"297,062.00",Yes
Communities & Local Government,DCLG,04/03/2015,Revenue Support grant payable,Localism,BURY MBC,,,,236491114,5000282950,,Grant Payable by Exchequer,BL9 0SP,"1,750,033.00",Yes
Communities & Local Government,DCLG,04/03/2015,Revenue Support grant payable,Localism,CALDERDALE MBC,,Public Bodies,,,5000282953,,Grant Payable by Exchequer,HX1 1YP,"2,031,482.00",Yes
Communities & Local Government,DCLG,04/03/2015,Revenue Support grant payable,Localism,CAMBRIDGE CITY COUNCIL,,,,210357534,5000282956,,Grant Payable by Exchequer,CB2 3NA,"301,757.00",Yes
Communities & Local Government,DCLG,04/03/2015,Revenue Support grant payable,Localism,CAMBRIDGESHIRE COUNTY CNCL,,,,219047347,5000282962,,Grant Payable by Exchequer,CB3 0AP,"1,620,381.00",Yes
Communities & Local Government,DCLG,04/03/2015,Revenue Support grant payable,Localism,CAMBS & PETERBOROUGH FIRE AUTHORITY,,,,235999737,5000282960,,Grant Payable by Exchequer,PE29 2NA,"311,694.00",Yes
Communities & Local Government,DCLG,04/03/2015,Revenue Support grant payable,Localism,CAMDEN LONDON BOROUGH,,,,,5000282964,,Grant Payable by Exchequer,WC1H 8NG,"6,828,338.00",Yes
Communities & Local Government,DCLG,04/03/2015,Revenue Support grant payable,Localism,CANNOCK CHASE DC,,,,215064770,5000282967,,Grant Payable by Exchequer,WS11 1BG,"174,495.00",Yes
Communities & Local Government,DCLG,04/03/2015,Revenue Support grant payable,Localism,CANTERBURY CITY CNCL,,,,,5000282970,,Grant Payable by Exchequer,CT1 1YW,"270,127.00",Yes
Communities & Local Government,DCLG,04/03/2015,Revenue Support grant payable,Localism,CARLISLE CITY CNCL,,,,227471059,5000282974,,Grant Payable by Exchequer,CA3 8QG,"238,837.00",Yes
Communities & Local Government,DCLG,04/03/2015,Revenue Support grant payable,Localism,CASTLE POINT BC,,Public Bodies,,228217931,5000282977,,Grant Payable by Exchequer,SS7 1TF,"102,108.00",Yes
Communities & Local Government,DCLG,04/03/2015,Revenue Support grant payable,Localism,CENTRAL BEDFORDSHIRE COUNCIL,,,,232624882,5000282958,,Grant Payable by Exchequer,SG17 5TQ,"830,131.00",Yes
Communities & Local Government,DCLG,04/03/2015,Revenue Support grant payable,Localism,CHARNWOOD BC,,,,,5000282980,,Grant Payable by Exchequer,LE11 2TU,"249,674.00",Yes
Communities & Local Government,DCLG,04/03/2015,Revenue Support grant payable,Localism,CHELMSFORD BC,,,,,5000282983,,Grant Payable by Exchequer,CM1 1JE,"153,328.00",Yes
Communities & Local Government,DCLG,04/03/2015,Revenue Support grant payable,Localism,CHELTENHAM BC,,,,,5000282985,,Grant Payable by Exchequer,GL50 1PW,"167,951.00",Yes
Communities & Local Government,DCLG,04/03/2015,Revenue Support grant payable,Localism,CHERWELL DC,,,,,5000282987,,Grant Payable by Exchequer,OX15 4AA,"222,230.00",Yes
Communities & Local Government,DCLG,04/03/2015,Revenue Support grant payable,Localism,CHESHIRE EAST BOROUGH COUNCIL,,,,293699450,5000282963,,Grant Payable by Exchequer,CW11 1HZ,"2,187,032.00",Yes
Communities & Local Government,DCLG,04/03/2015,Revenue Support grant payable,Localism,CHESHIRE FIRE AUTHORITY,,,,424872737,5000282989,,Grant Payable by Exchequer,CW7 2FQ,"375,386.00",Yes
Communities & Local Government,DCLG,04/03/2015,Revenue Support grant payable,Localism,CHESHIRE WEST AND CHESTER,,Large,,215584383,5000282965,,Grant Payable by Exchequer,CH1 2NP,"3,311,398.00",Yes
Communities & Local Government,DCLG,04/03/2015,Revenue Support grant payable,Localism,CHESTERFIELD BC,,,,232102301,5000282991,,Grant Payable by Exchequer,S40 1LP,"234,824.00",Yes
Communities & Local Government,DCLG,04/03/2015,Revenue Support grant payable,Localism,CHICHESTER DC,,,,739800998,5000282993,,Grant Payable by Exchequer,PO19 1TY,"102,716.00",Yes
Communities & Local Government,DCLG,04/03/2015,Revenue Support grant payable,Localism,CHILTERN DC,,,,236183554,5000282995,,Grant Payable by Exchequer,HP6 5AW,"22,600.00",Yes
Communities & Local Government,DCLG,04/03/2015,Revenue Support grant payable,Localism,CHORLEY DC,,,,236415576,5000282996,,Grant Payable by Exchequer,PR7 1AL,"172,417.00",Yes
Communities & Local Government,DCLG,04/03/2015,Revenue Support grant payable,Localism,CHRISTCHURCH BC,,,,227415213,5000282998,,Grant Payable by Exchequer,BH23 1AZ,"45,169.00",Yes
Communities & Local Government,DCLG,04/03/2015,Revenue Support grant payable,Localism,CITY OF LINCOLN COUNCIL,,,,,5000282892,,Grant Payable by Exchequer,LN1 1DB,"265,909.00",Yes
Communities & Local Government,DCLG,04/03/2015,Revenue Support grant payable,Localism,CITY OF WAKEFIELD MDC,,,,,5000282858,,Grant Payable by Exchequer,WF1 2QW,"4,474,613.00",Yes
Communities & Local Government,DCLG,04/03/2015,Revenue Support grant payable,Localism,CLEVELAND FIRE AUTHORITY,,,,424872778,5000283004,,Grant Payable by Exchequer,TS25 5TB,"740,736.00",Yes
Communities & Local Government,DCLG,04/03/2015,Revenue Support grant payable,Localism,CO DURHAM & DARLINGTON FIRE AND RES,,,,424872851,5000283051,,Grant Payable by Exchequer,DH1 5UE,"370,720.00",Yes
Communities & Local Government,DCLG,04/03/2015,Revenue Support grant payable,Localism,COLCHESTER BC,,,,,5000283006,,Grant Payable by Exchequer,CO3 3WG,"255,160.00",Yes
Communities & Local Government,DCLG,04/03/2015,Revenue Support grant payable,Localism,COPELAND BC,,,,236414827,5000283009,,Grant Payable by Exchequer,CA28 7NY,"175,967.00",Yes
Communities & Local Government,DCLG,04/03/2015,Revenue Support grant payable,Localism,CORBY BC,,,,,5000283010,,Grant Payable by Exchequer,NN17 1GD,"149,788.00",Yes
Communities & Local Government,DCLG,04/03/2015,Revenue Support grant payable,Localism,CORNWALL COUNCIL,,,,211334404,5000282968,,Grant Payable by Exchequer,TR1 3AY,"4,313,803.00",Yes
Communities & Local Government,DCLG,04/03/2015,Revenue Support grant payable,Localism,CORPORATION OF LONDON,,,,225438175,5000283000,,Grant Payable by Exchequer,EC2P 2EJ,"1,517,759.00",Yes
Communities & Local Government,DCLG,04/03/2015,Revenue Support grant payable,Localism,COTSWOLD DC,,,,232462085,5000283012,,Grant Payable by Exchequer,GL7 1PX,"70,126.00",Yes
Communities & Local Government,DCLG,04/03/2015,Revenue Support grant payable,Localism,COVENTRY CITY CNCL,,,,210384802,5000283014,,Grant Payable by Exchequer,CV1 2QL,"5,016,347.00",Yes
Communities & Local Government,DCLG,04/03/2015,Revenue Support grant payable,Localism,CRAVEN DISTRICT COUNCIL,,,,215577851,5000283016,,Grant Payable by Exchequer,BD23 1PS,"69,985.00",Yes
Communities & Local Government,DCLG,04/03/2015,Revenue Support grant payable,Localism,CRAWLEY BOROUGH COUNCIL,,,,211222500,5000283018,,Grant Payable by Exchequer,RH10 1UZ,"259,393.00",Yes
Communities & Local Government,DCLG,04/03/2015,Revenue Support grant payable,Localism,CROYDON LB,,,,212419973,5000283020,,Grant Payable by Exchequer,CR9 3JS,"3,622,705.00",Yes
Communities & Local Government,DCLG,04/03/2015,Revenue Support grant payable,Localism,CUMBRIA COUNTY CNCL,,,,211316542,5000283022,,Grant Payable by Exchequer,CA3 8NA,"3,023,758.00",Yes
Communities & Local Government,DCLG,04/03/2015,Revenue Support grant payable,Localism,DACORUM BC,,,,236448643,5000283024,,Grant Payable by Exchequer,HP1 1HH,"173,498.00",Yes
Communities & Local Government,DCLG,04/03/2015,Revenue Support grant payable,Localism,DARLINGTON BC,,,,,5000283026,,Grant Payable by Exchequer,TS19 1JA,"1,112,839.00",Yes
Communities & Local Government,DCLG,04/03/2015,Revenue Support grant payable,Localism,DARTFORD BC,,,,225694942,5000283028,,Grant Payable by Exchequer,DA1 1DR,"159,285.00",Yes
Communities & Local Government,DCLG,04/03/2015,Revenue Support grant payable,Localism,DAVENTRY DC,,,,239859333,5000283029,,Grant Payable by Exchequer,NN11 5AF,"122,580.00",Yes
Communities & Local Government,DCLG,04/03/2015,Revenue Support grant payable,Localism,DERBY CITY CNCL,,,,229641378,5000283031,,Grant Payable by Exchequer,DE1 2FS,"3,570,466.00",Yes
Communities & Local Government,DCLG,04/03/2015,Revenue Support grant payable,Localism,DERBYSHIRE COUNTYCOUNCIL,,,,232152967,5000283035,,Grant Payable by Exchequer,DE4 3AG,"2,840,067.00",Yes
Communities & Local Government,DCLG,04/03/2015,Revenue Support grant payable,Localism,DERBYSHIRE DALES DC,,,,,5000283037,,Grant Payable by Exchequer,DE4 3NN,"80,725.00",Yes
Communities & Local Government,DCLG,04/03/2015,Revenue Support grant payable,Localism,DERBYSHIRE FIRE AND RESCUE SERVICE,,,,424872935,5000283033,,Grant Payable by Exchequer,DE23 6EH,"467,814.00",Yes
Communities & Local Government,DCLG,04/03/2015,Revenue Support grant payable,Localism,DEVON & SOMERSET FIRE & RESCUE SERV,,,,424872976,5000283041,,Grant Payable by Exchequer,EX3 0NW,"633,371.00",Yes
Communities & Local Government,DCLG,04/03/2015,Revenue Support grant payable,Localism,DEVON COUNTY CNCL,,,,213754018,5000283039,,Grant Payable by Exchequer,EX2 4QJ,"1,743,071.00",Yes
Communities & Local Government,DCLG,04/03/2015,Revenue Support grant payable,Localism,DONCASTER MBC,,,,,5000283043,,Grant Payable by Exchequer,DN1 3QA,"4,798,358.00",Yes
Communities & Local Government,DCLG,04/03/2015,Revenue Support grant payable,Localism,DORSET FIRE AUTHORITY,,,,,5000283045,,Grant Payable by Exchequer,DT1 1FB,"227,011.00",Yes
Communities & Local Government,DCLG,04/03/2015,Revenue Support grant payable,Localism,DOVER DC,,,,,5000283047,,Grant Payable by Exchequer,CT16 3PD,"258,888.00",Yes
Communities & Local Government,DCLG,04/03/2015,Revenue Support grant payable,Localism,DUDLEY MBC,,,,,5000283049,,Grant Payable by Exchequer,DY1 1HF,"4,345,413.00",Yes
Communities & Local Government,DCLG,04/03/2015,Revenue Support grant payable,Localism,DURHAM COUNTY COUNCIL,,,,228453601,5000282971,,Grant Payable by Exchequer,DH1 5UE,"6,241,950.00",Yes
Communities & Local Government,DCLG,04/03/2015,Revenue Support grant payable,Localism,EALING LB,,,,,5000283053,,Grant Payable by Exchequer,W5 2BY,"4,818,251.00",Yes
Communities & Local Government,DCLG,04/03/2015,Revenue Support grant payable,Localism,EAST CAMBRIDGESHIRE DC,,,,236472023,5000283055,,Grant Payable by Exchequer,CB7 4PL,"142,269.00",Yes
Communities & Local Government,DCLG,04/03/2015,Revenue Support grant payable,Localism,EAST DEVON DC,,,,,5000283057,,Grant Payable by Exchequer,EX10 8HL,"124,442.00",Yes
Communities & Local Government,DCLG,04/03/2015,Revenue Support grant payable,Localism,EAST DORSET DC,,,,228470456,5000283059,,Grant Payable by Exchequer,BH21 4HN,"31,436.00",Yes
Communities & Local Government,DCLG,04/03/2015,Revenue Support grant payable,Localism,EAST HAMPSHIRE DC,,,,,5000283060,,Grant Payable by Exchequer,GU31 4EX,"66,704.00",Yes
Communities & Local Government,DCLG,04/03/2015,Revenue Support grant payable,Localism,EAST HERTFORDSHIRE DC,,,,236176954,5000283062,,Grant Payable by Exchequer,SG13 8EQ,"98,543.00",Yes
Communities & Local Government,DCLG,04/03/2015,Revenue Support grant payable,Localism,EAST LINDSEY DC,,,,,5000283064,,Grant Payable by Exchequer,LN11 8UP,"540,515.00",Yes
Communities & Local Government,DCLG,04/03/2015,Revenue Support grant payable,Localism,EAST NORTHAMPTONSHIRE COUNCIL,,,,227475290,5000283066,,Grant Payable by Exchequer,NN14 4LZ,"140,228.00",Yes
Communities & Local Government,DCLG,04/03/2015,Revenue Support grant payable,Localism,EAST RIDING OF YORKS,,,,,5000283068,,Grant Payable by Exchequer,HU17 9AB,"1,762,195.00",Yes
Communities & Local Government,DCLG,04/03/2015,Revenue Support grant payable,Localism,EAST STAFFORDSHIRE BC,,,,226778033,5000283070,,Grant Payable by Exchequer,DE14 2EB,"187,194.00",Yes
Communities & Local Government,DCLG,04/03/2015,Revenue Support grant payable,Localism,EAST SUSSEX FIRE & RESCUE SERVICE,,,,424873057,5000283072,,Grant Payable by Exchequer,BN21 1EU,"271,533.00",Yes
Communities & Local Government,DCLG,04/03/2015,Revenue Support grant payable,Localism,EASTBOURNE BC,,,,229896428,5000283074,,Grant Payable by Exchequer,BN21 4TW,"214,819.00",Yes
Communities & Local Government,DCLG,04/03/2015,Revenue Support grant payable,Localism,EASTLEIGH BOROUGH COUNCIL,,,,232669911,5000283076,,Grant Payable by Exchequer,SO5 9YN,"118,618.00",Yes
Communities & Local Government,DCLG,04/03/2015,Revenue Support grant payable,Localism,EDEN DC,,,,,5000283078,,Grant Payable by Exchequer,CA11 7QF,"103,536.00",Yes
Communities & Local Government,DCLG,04/03/2015,Revenue Support grant payable,Localism,ELMBRIDGE BOROUGH COUNCIL,,Large,,236082442,5000283080,,Grant Payable by Exchequer,KT10 9SD,"52,919.00",Yes
Communities & Local Government,DCLG,04/03/2015,Revenue Support grant payable,Localism,ENFIELD LB,,,,,5000283082,,Grant Payable by Exchequer,EN1 3XF,"3,621,867.00",Yes
Communities & Local Government,DCLG,04/03/2015,Revenue Support grant payable,Localism,EPPING FOREST DC,,,,775876360,5000283084,,Grant Payable by Exchequer,CM16 4BZ,"153,450.00",Yes
Communities & Local Government,DCLG,04/03/2015,Revenue Support grant payable,Localism,EPSOM & EWELL BC,,,,225423094,5000283086,,Grant Payable by Exchequer,KT18 5BY,"64,603.00",Yes
Communities & Local Government,DCLG,04/03/2015,Revenue Support grant payable,Localism,EREWASH BC,,,,211209762,5000283088,,Grant Payable by Exchequer,DE7 5RP,"236,088.00",Yes
Communities & Local Government,DCLG,04/03/2015,Revenue Support grant payable,Localism,ESSEX COUNTY CNCL,,,,233572986,5000283090,,Grant Payable by Exchequer,CM1 1JZ,"2,526,942.00",Yes
Communities & Local Government,DCLG,04/03/2015,Revenue Support grant payable,Localism,ESSEX FIRE AUTHORITY,,,,345412402,5000283092,,Grant Payable by Exchequer,CM8 3HB,"669,964.00",Yes
Communities & Local Government,DCLG,04/03/2015,Revenue Support grant payable,Localism,EXETER CITY CNCL,,,,,5000283094,,Grant Payable by Exchequer,EX1 1JW,"363,563.00",Yes
Communities & Local Government,DCLG,04/03/2015,Revenue Support grant payable,Localism,FAREHAM BC,,,,228474144,5000283096,,Grant Payable by Exchequer,PO16 7PU,"89,626.00",Yes
Communities & Local Government,DCLG,04/03/2015,Revenue Support grant payable,Localism,FENLAND DC,,,,227476348,5000283098,,Grant Payable by Exchequer,PE15 8NQ,"211,990.00",Yes
Communities & Local Government,DCLG,04/03/2015,Revenue Support grant payable,Localism,FOREST HEATH DISTRICT COUNCIL,,,,236678116,5000283099,,Grant Payable by Exchequer,IP28 7EY,"141,358.00",Yes
Communities & Local Government,DCLG,04/03/2015,Revenue Support grant payable,Localism,FOREST OF DEAN DC,,,,211278890,5000283101,,Grant Payable by Exchequer,GL16 8HG,"151,981.00",Yes
Communities & Local Government,DCLG,04/03/2015,Revenue Support grant payable,Localism,FYLDE BC,,,,227479912,5000283103,,Grant Payable by Exchequer,FY8 1LW,"114,522.00",Yes
Communities & Local Government,DCLG,04/03/2015,Revenue Support grant payable,Localism,GATESHEAD COUNCIL,,,,216116041,5000283105,,Grant Payable by Exchequer,NE8 1HH,"3,683,372.00",Yes
Communities & Local Government,DCLG,04/03/2015,Revenue Support grant payable,Localism,GEDLING BC,,,,236180337,5000283107,,Grant Payable by Exchequer,NG5 6LU,"214,493.00",Yes
Communities & Local Government,DCLG,04/03/2015,Revenue Support grant payable,Localism,GLOUCESTER CITY COUNCIL,,,,230841392,5000283112,,Grant Payable by Exchequer,GL1 2EQ,"265,985.00",Yes
Communities & Local Government,DCLG,04/03/2015,Revenue Support grant payable,Localism,GLOUCESTERSHIRE COUNTY CNCL,,,,211272067,5000283114,,Grant Payable by Exchequer,GL1 2TG,"1,289,742.00",Yes
Communities & Local Government,DCLG,04/03/2015,Revenue Support grant payable,Localism,GOSPORT BOROUGH COUNCIL,,,,239825078,5000283116,,Grant Payable by Exchequer,PO12 1ED,"147,074.00",Yes
Communities & Local Government,DCLG,04/03/2015,Revenue Support grant payable,Localism,GRAVESHAM BC,,,,236178612,5000283118,,Grant Payable by Exchequer,DA12 1AU,"207,043.00",Yes
Communities & Local Government,DCLG,04/03/2015,Revenue Support grant payable,Localism,GREAT YARMOUTH BC,,,,292697372,5000283120,,Grant Payable by Exchequer,NR30 2QG,"270,227.00",Yes
Communities & Local Government,DCLG,04/03/2015,Revenue Support grant payable,Localism,GREATER LONDON AUTHORITY,,Public Bodies,,232112404,5000283110,,Grant Payable by Exchequer,SE10 1AJ,"11,137,636.00",Yes
Communities & Local Government,DCLG,04/03/2015,Revenue Support grant payable,Localism,GREATER MANCHESTER FIRE & RESCUE AU,,,,,5000282918,,Grant Payable by Exchequer,M27 8US,"2,534,600.00",Yes
Communities & Local Government,DCLG,04/03/2015,Revenue Support grant payable,Localism,GREENWICH LB,,,,,5000283122,,Grant Payable by Exchequer,SE18 6HQ,"6,295,212.00",Yes
Communities & Local Government,DCLG,04/03/2015,Revenue Support grant payable,Localism,GUILDFORD BC,,,,236663720,5000283124,,Grant Payable by Exchequer,GU2 5BB,"133,314.00",Yes
Communities & Local Government,DCLG,04/03/2015,Revenue Support grant payable,Localism,HALTON BC,,,,227959376,5000283127,,Grant Payable by Exchequer,WA8 7QF,"2,241,808.00",Yes
Communities & Local Government,DCLG,04/03/2015,Revenue Support grant payable,Localism,HAMBLETON DC,,Large,,503481319,5000283129,,Grant Payable by Exchequer,DL6 2UU,"153,031.00",Yes
Communities & Local Government,DCLG,04/03/2015,Revenue Support grant payable,Localism,HAMMERSMITH & FULHAM LB,,,,216929489,5000283131,,Grant Payable by Exchequer,W6 9JU,"4,623,765.00",Yes
Communities & Local Government,DCLG,04/03/2015,Revenue Support grant payable,Localism,HAMPSHIRE FIRE & RESCUE AUTHORITY,,,,211325832,5000283133,,Grant Payable by Exchequer,SO23 8UB,"591,339.00",Yes
Communities & Local Government,DCLG,04/03/2015,Revenue Support grant payable,Localism,HARBOROUGH DC,,Public Bodies,,232611962,5000283135,,Grant Payable by Exchequer,LE16 7AG,"83,232.00",Yes
Communities & Local Government,DCLG,04/03/2015,Revenue Support grant payable,Localism,HARINGEY LB,,,,217471767,5000283137,,Grant Payable by Exchequer,N22 7TR,"5,071,556.00",Yes
Communities & Local Government,DCLG,04/03/2015,Revenue Support grant payable,Localism,HARLOW COUNCIL,,,,239999055,5000283140,,Grant Payable by Exchequer,CM20 1WG,"179,551.00",Yes
Communities & Local Government,DCLG,04/03/2015,Revenue Support grant payable,Localism,HARROGATE BOROUGH COUNCIL,,,,236660031,5000283142,,Grant Payable by Exchequer,HG1 2SG,"176,240.00",Yes
Communities & Local Government,DCLG,04/03/2015,Revenue Support grant payable,Localism,HARROW LB,,,,,5000283144,,Grant Payable by Exchequer,HA1 2UZ,"1,279,146.00",Yes
Communities & Local Government,DCLG,04/03/2015,Revenue Support grant payable,Localism,HART DC,,,,229723895,5000283146,,Grant Payable by Exchequer,GU13 8AE,"32,960.00",Yes
Communities & Local Government,DCLG,04/03/2015,Revenue Support grant payable,Localism,HARTLEPOOL BOROUGH COUNCIL,,,,424291797,5000283147,,Grant Payable by Exchequer,TS24 8AY,"1,779,713.00",Yes
Communities & Local Government,DCLG,04/03/2015,Revenue Support grant payable,Localism,HASTINGS BC,,,,,5000283149,,Grant Payable by Exchequer,TN34 3WN,"272,008.00",Yes
Communities & Local Government,DCLG,04/03/2015,Revenue Support grant payable,Localism,HAVANT BC,,,,211047543,5000283151,,Grant Payable by Exchequer,PO9 2AX,"197,074.00",Yes
Communities & Local Government,DCLG,04/03/2015,Revenue Support grant payable,Localism,HAVERING LB,,,,211209770,5000283153,,Grant Payable by Exchequer,RM1 3BB,"875,018.00",Yes
Communities & Local Government,DCLG,04/03/2015,Revenue Support grant payable,Localism,HEREFORD & WORCESTER FIRE & RESCUE,,,,236425484,5000283155,,Grant Payable by Exchequer,WR5 1JR,"200,257.00",Yes
Communities & Local Government,DCLG,04/03/2015,Revenue Support grant payable,Localism,HEREFORDSHIRE DISTRICT COUNCIL,,,,211510826,5000283157,,Grant Payable by Exchequer,HR1 1SH,"1,074,348.00",Yes
Communities & Local Government,DCLG,04/03/2015,Revenue Support grant payable,Localism,HERTFORDSHIRE COUNTY CNCL,,,,,5000283159,,Grant Payable by Exchequer,SG13 9BD,"1,084,400.00",Yes
Communities & Local Government,DCLG,04/03/2015,Revenue Support grant payable,Localism,HERTSMERE BC,,,,237549253,5000283161,,Grant Payable by Exchequer,WD6 1WA,"160,034.00",Yes
Communities & Local Government,DCLG,04/03/2015,Revenue Support grant payable,Localism,HIGH PEAK BC,,,,239967771,5000283163,,Grant Payable by Exchequer,SK17 6EL,"139,627.00",Yes
Communities & Local Government,DCLG,04/03/2015,Revenue Support grant payable,Localism,HILLINGDON LB,,,,211198585,5000283165,,Grant Payable by Exchequer,UB8 1UW,"1,820,638.00",Yes
Communities & Local Government,DCLG,04/03/2015,Revenue Support grant payable,Localism,HINCKLEY & BOSWORTH BC,,,,211176144,5000282806,,Grant Payable by Exchequer,LE10 1BZ,"151,050.00",Yes
Communities & Local Government,DCLG,04/03/2015,Revenue Support grant payable,Localism,HORSHAM DC,,,,229776588,5000282810,,Grant Payable by Exchequer,RH12 1RL,"75,220.00",Yes
Communities & Local Government,DCLG,04/03/2015,Revenue Support grant payable,Localism,HOUNSLOW LB,,,,210388999,5000282813,,Grant Payable by Exchequer,TW3 4DN,"2,429,112.00",Yes
Communities & Local Government,DCLG,04/03/2015,Revenue Support grant payable,Localism,HULL CITY COUNCIL,,,,217460984,5000282850,,Grant Payable by Exchequer,HU1 2AA,"6,122,059.00",Yes
Communities & Local Government,DCLG,04/03/2015,Revenue Support grant payable,Localism,HUMBERSIDE FIRE & RESCUE SERVICE,,,,229832563,5000282816,,Grant Payable by Exchequer,HU4 7BB,"844,336.00",Yes
Communities & Local Government,DCLG,04/03/2015,Revenue Support grant payable,Localism,HUNTINGDONSHIRE DC,,,,235999216,5000282819,,Grant Payable by Exchequer,PE18 6TN,"262,385.00",Yes
Communities & Local Government,DCLG,04/03/2015,Revenue Support grant payable,Localism,HYNDBURN BC,,,,,5000282820,,Grant Payable by Exchequer,BB5 1EZ,"254,264.00",Yes
Communities & Local Government,DCLG,04/03/2015,Revenue Support grant payable,Localism,IPSWICH BC,,,,226861391,5000282827,,Grant Payable by Exchequer,IP3 8SF,"196,177.00",Yes
Communities & Local Government,DCLG,04/03/2015,Revenue Support grant payable,Localism,ISLE OF WIGHT CNCL,,,,236431730,5000282824,,Grant Payable by Exchequer,PO30 1UD,"1,258,468.00",Yes
Communities & Local Government,DCLG,04/03/2015,Revenue Support grant payable,Localism,ISLES OF SCILLY COUNCIL,,,,214146040,5000282830,,Grant Payable by Exchequer,TR21 0LW,"136,278.00",Yes
Communities & Local Government,DCLG,04/03/2015,Revenue Support grant payable,Localism,ISLINGTON LB,,,,225716729,5000282833,,Grant Payable by Exchequer,N1 1XR,"6,408,328.00",Yes
Communities & Local Government,DCLG,04/03/2015,Revenue Support grant payable,Localism,KENT & MEDWAY TOWNS FIRE AUTHORITY,,,,423679414,5000282842,,Grant Payable by Exchequer,ME15 6XB,"606,258.00",Yes
Communities & Local Government,DCLG,04/03/2015,Revenue Support grant payable,Localism,KENT COUNTY CNCL,,,,211334420,5000282839,,Grant Payable by Exchequer,ME14 1XQ,"3,196,376.00",Yes
Communities & Local Government,DCLG,04/03/2015,Revenue Support grant payable,Localism,KETTERING BC,,,,211271796,5000282845,,Grant Payable by Exchequer,NN15 7QX,"148,921.00",Yes
Communities & Local Government,DCLG,04/03/2015,Revenue Support grant payable,Localism,KINGS LYNN & WEST NORFOLK BC,,,,236417671,5000282847,,Grant Payable by Exchequer,PE30 1EX,"390,213.00",Yes
Communities & Local Government,DCLG,04/03/2015,Revenue Support grant payable,Localism,KINGSTON UPON THAMES,,,,,5000282853,,Grant Payable by Exchequer,KT1 1EU,"358,105.00",Yes
Communities & Local Government,DCLG,04/03/2015,Revenue Support grant payable,Localism,KIRKLEES MBC,,,,,5000282856,,Grant Payable by Exchequer,HD1 2YU,"3,973,306.00",Yes
Communities & Local Government,DCLG,04/03/2015,Revenue Support grant payable,Localism,KNOWSLEY MBC,,,,,5000282859,,Grant Payable by Exchequer,L36 9YZ,"4,737,854.00",Yes
Communities & Local Government,DCLG,04/03/2015,Revenue Support grant payable,Localism,LANCASHIRE COMBINED FIRE AUTHORITY,,,,230398732,5000282869,,Grant Payable by Exchequer,PR2 3LH,"1,037,309.00",Yes
Communities & Local Government,DCLG,04/03/2015,Revenue Support grant payable,Localism,LANCASHIRE COUNTY CNCL,,,,233136584,5000282866,,Grant Payable by Exchequer,PR1 8RD,"6,377,805.00",Yes
Communities & Local Government,DCLG,04/03/2015,Revenue Support grant payable,Localism,LANCASTER CITY CNCL,,,,228669990,5000282872,,Grant Payable by Exchequer,LA1 1PJ,"399,019.00",Yes
Communities & Local Government,DCLG,04/03/2015,Revenue Support grant payable,Localism,LEEDS CITY CNCL,,,,,5000282874,,Grant Payable by Exchequer,LS1 1JF,"9,908,327.00",Yes
Communities & Local Government,DCLG,04/03/2015,Revenue Support grant payable,Localism,LEICESTER CITY CNCL,,,,228219960,5000282877,,Grant Payable by Exchequer,LE1 1FZ,"7,605,565.00",Yes
Communities & Local Government,DCLG,04/03/2015,Revenue Support grant payable,Localism,LEICS LEICESTERSHIRE RUTLAND CFA,,,,,5000282880,,Grant Payable by Exchequer,LE4 3BU,"585,926.00",Yes
Communities & Local Government,DCLG,04/03/2015,Revenue Support grant payable,Localism,LEWES DC,,Large,,213090082,5000282883,,Grant Payable by Exchequer,BN7 1AB,"81,403.00",Yes
Communities & Local Government,DCLG,04/03/2015,Revenue Support grant payable,Localism,LEWISHAM LONDON BOROUGH,,Large,,235653300,5000282886,,Grant Payable by Exchequer,SE6 4RU,"7,119,427.00",Yes
Communities & Local Government,DCLG,04/03/2015,Revenue Support grant payable,Localism,LICHFIELD DC,,,,236780086,5000282889,,Grant Payable by Exchequer,WS13 6YX,"95,218.00",Yes
Communities & Local Government,DCLG,04/03/2015,Revenue Support grant payable,Localism,LINCOLNSHIRE COUNTY CNCL,,,,,5000282895,,Grant Payable by Exchequer,LN1 1YT,"4,360,131.00",Yes
Communities & Local Government,DCLG,04/03/2015,Revenue Support grant payable,Localism,LIVERPOOL CITY COUNCIL,,,,,5000282898,,Grant Payable by Exchequer,L2 2DH,"13,246,306.00",Yes
Communities & Local Government,DCLG,04/03/2015,Revenue Support grant payable,Localism,LONDON BOROUGH OF HACKNEY,,,,225221597,5000283125,,Grant Payable by Exchequer,E8 4RU,"10,342,218.00",Yes
Communities & Local Government,DCLG,04/03/2015,Revenue Support grant payable,Localism,LONDON BOROUGH OF LAMBETH,,,,228216479,5000282862,,Grant Payable by Exchequer,SW2 1RL,"8,391,611.00",Yes
Communities & Local Government,DCLG,04/03/2015,Revenue Support grant payable,Localism,LONDON BOROUGH OF NEWHAM,,Large,,228454344,5000282972,,Grant Payable by Exchequer,E16 2QU,"10,437,641.00",Yes
Communities & Local Government,DCLG,04/03/2015,Revenue Support grant payable,Localism,LONDON BOROUGH OF REDBRIDGE,,,,211341417,5000283040,,Grant Payable by Exchequer,IG1 1NN,"2,612,460.00",Yes
Communities & Local Government,DCLG,04/03/2015,Revenue Support grant payable,Localism,LUTON BC,,,,365112155,5000282901,,Grant Payable by Exchequer,LU1 2BQ,"2,998,039.00",Yes
Communities & Local Government,DCLG,04/03/2015,Revenue Support grant payable,Localism,MAIDSTONE BC,,,,293004214,5000282904,,Grant Payable by Exchequer,ME15 6JQ,"114,633.00",Yes
Communities & Local Government,DCLG,04/03/2015,Revenue Support grant payable,Localism,MALDON DC,,,,424668663,5000282907,,Grant Payable by Exchequer,CM9 7DL,"69,221.00",Yes
Communities & Local Government,DCLG,04/03/2015,Revenue Support grant payable,Localism,MALVERN HILLS DC,,,,227470424,5000282912,,Grant Payable by Exchequer,WR14 3AF,"83,583.00",Yes
Communities & Local Government,DCLG,04/03/2015,Revenue Support grant payable,Localism,MANCHESTER CITY CNCL,,,,211241393,5000282915,,Grant Payable by Exchequer,M60 2JR,"13,391,369.00",Yes
Communities & Local Government,DCLG,04/03/2015,Revenue Support grant payable,Localism,MANSFIELD DC,,,,237922968,5000282921,,Grant Payable by Exchequer,NG19 7BH,"264,435.00",Yes
Communities & Local Government,DCLG,04/03/2015,Revenue Support grant payable,Localism,MEDWAY COUNCIL,,,,210389746,5000282924,,Grant Payable by Exchequer,ME4 4TR,"2,357,605.00",Yes
Communities & Local Government,DCLG,04/03/2015,Revenue Support grant payable,Localism,MELTON BC,,,,346268340,5000282927,,Grant Payable by Exchequer,LE13 0UL,"79,697.00",Yes
Communities & Local Government,DCLG,04/03/2015,Revenue Support grant payable,Localism,MENDIP DISTRICT COUNCIL,,,,,5000282930,,Grant Payable by Exchequer,BA4 5BA,"172,638.00",Yes
Communities & Local Government,DCLG,04/03/2015,Revenue Support grant payable,Localism,MERSEYSIDE FIRE & RESCUE SERVICE,,,,210372331,5000282933,,Grant Payable by Exchequer,L30 4YD,"1,593,159.00",Yes
Communities & Local Government,DCLG,04/03/2015,Revenue Support grant payable,Localism,MERTON LB,,,,,5000282936,,Grant Payable by Exchequer,SM4 5DX,"1,390,843.00",Yes
Communities & Local Government,DCLG,04/03/2015,Revenue Support grant payable,Localism,MID DEVON DC,,,,213241137,5000282939,,Grant Payable by Exchequer,EX16 6PP,"133,168.00",Yes
Communities & Local Government,DCLG,04/03/2015,Revenue Support grant payable,Localism,MID SUFFOLK DC,,,,219028933,5000282942,,Grant Payable by Exchequer,IP6 8DL,"106,918.00",Yes
Communities & Local Government,DCLG,04/03/2015,Revenue Support grant payable,Localism,MID SUSSEX DC,,,,236675989,5000282945,,Grant Payable by Exchequer,RH16 1SS,"67,261.00",Yes
Communities & Local Government,DCLG,04/03/2015,Revenue Support grant payable,Localism,MIDDLESBROUGH BC,,,,,5000282948,,Grant Payable by Exchequer,TS1 9GA,"3,437,331.00",Yes
Communities & Local Government,DCLG,04/03/2015,Revenue Support grant payable,Localism,MILTON KEYNES BC,,,,506884659,5000282951,,Grant Payable by Exchequer,MK9 3EJ,"2,245,950.00",Yes
Communities & Local Government,DCLG,04/03/2015,Revenue Support grant payable,Localism,MOLE VALLEY DC,,,,225385772,5000282954,,Grant Payable by Exchequer,RH4 1SJ,"45,381.00",Yes
Communities & Local Government,DCLG,04/03/2015,Revenue Support grant payable,Localism,NEW FOREST DC,,,,,5000282959,,Grant Payable by Exchequer,SO41 9ZG,"143,801.00",Yes
Communities & Local Government,DCLG,04/03/2015,Revenue Support grant payable,Localism,NEWARK & SHERWOOD DC,,,,236186755,5000282961,,Grant Payable by Exchequer,NG23 5QX,"214,390.00",Yes
Communities & Local Government,DCLG,04/03/2015,Revenue Support grant payable,Localism,NEWCASTLE UNDER LYME BC,,,,229894373,5000282969,,Grant Payable by Exchequer,ST5 2AG,"265,677.00",Yes
Communities & Local Government,DCLG,04/03/2015,Revenue Support grant payable,Localism,NEWCASTLE UPON TYNE DC,,,,239154040,5000282966,,Grant Payable by Exchequer,NE99 1RD,"6,886,622.00",Yes
Communities & Local Government,DCLG,04/03/2015,Revenue Support grant payable,Localism,NORFOLK COUNTY COUNCIL,,,,232602789,5000282975,,Grant Payable by Exchequer,NR1 2DW,"5,284,051.00",Yes
Communities & Local Government,DCLG,04/03/2015,Revenue Support grant payable,Localism,NORTH DEVON DC,,,,,5000282978,,Grant Payable by Exchequer,EX31 1EA,"177,063.00",Yes
Communities & Local Government,DCLG,04/03/2015,Revenue Support grant payable,Localism,NORTH DORSET DC,,,,236185005,5000282981,,Grant Payable by Exchequer,DT11 7LL,"97,117.00",Yes
Communities & Local Government,DCLG,04/03/2015,Revenue Support grant payable,Localism,NORTH EAST DERBYSHIRE DC,,,,238879308,5000282957,,Grant Payable by Exchequer,S40 1LF,"125,874.00",Yes
Communities & Local Government,DCLG,04/03/2015,Revenue Support grant payable,Localism,NORTH EAST LINCOLN COUNCIL,,Public Bodies,,423962570,5000282984,,Grant Payable by Exchequer,DN35 8LN,"1,949,275.00",Yes
Communities & Local Government,DCLG,04/03/2015,Revenue Support grant payable,Localism,NORTH HERTS DC,,,,233593917,5000282986,,Grant Payable by Exchequer,SG6 3HN,"123,058.00",Yes
Communities & Local Government,DCLG,04/03/2015,Revenue Support grant payable,Localism,NORTH KESTEVEN DC,,,,,5000282988,,Grant Payable by Exchequer,NG34 7EF,"180,641.00",Yes
Communities & Local Government,DCLG,04/03/2015,Revenue Support grant payable,Localism,NORTH LINCOLNSHIRE DC,,Public Bodies,,221034841,5000282990,,Grant Payable by Exchequer,DN16 1AB,"1,628,314.00",Yes
Communities & Local Government,DCLG,04/03/2015,Revenue Support grant payable,Localism,NORTH NORFOLK DC,,,,239975964,5000282992,,Grant Payable by Exchequer,NR27 9EN,"191,554.00",Yes
Communities & Local Government,DCLG,04/03/2015,Revenue Support grant payable,Localism,NORTH SOMERSET DC,,,,,5000282994,,Grant Payable by Exchequer,BS21 6FW,"779,274.00",Yes
Communities & Local Government,DCLG,04/03/2015,Revenue Support grant payable,Localism,NORTH TYNESIDE MBC,,,,,5000282997,,Grant Payable by Exchequer,NE27 0BY,"3,052,892.00",Yes
Communities & Local Government,DCLG,04/03/2015,Revenue Support grant payable,Localism,NORTH WARWICKSHIRE BC,,,,,5000282999,,Grant Payable by Exchequer,CV9 1DE,"88,343.00",Yes
Communities & Local Government,DCLG,04/03/2015,Revenue Support grant payable,Localism,NORTH WEST LEICESTER DC,,,,232605782,5000283017,,Grant Payable by Exchequer,LE67 3FJ,"110,397.00",Yes
Communities & Local Government,DCLG,04/03/2015,Revenue Support grant payable,Localism,NORTH YORKSHIRE FIRE & RESCUE AUTH,,,,423679778,5000283001,,Grant Payable by Exchequer,DL6 1AB,"252,839.00",Yes
Communities & Local Government,DCLG,04/03/2015,Revenue Support grant payable,Localism,NORTHAMPTON BOROUGH COUNCIL,,Large,,228310017,5000283003,,Grant Payable by Exchequer,NN4 4FF,"400,068.00",Yes
Communities & Local Government,DCLG,04/03/2015,Revenue Support grant payable,Localism,NORTHAMPTONSHIRE COUNTY COUNCIL,,Public Bodies,,385469184,5000283005,,Grant Payable by Exchequer,NN4 7DB,"3,108,174.00",Yes
Communities & Local Government,DCLG,04/03/2015,Revenue Support grant payable,Localism,NORTHUMBERLAND,,,,210308905,5000282973,,Grant Payable by Exchequer,NE61 2EF,"2,678,872.00",Yes
Communities & Local Government,DCLG,04/03/2015,Revenue Support grant payable,Localism,NORWICH CITY CNCL,,,,235981297,5000283007,,Grant Payable by Exchequer,NR2 1NH,"418,646.00",Yes
Communities & Local Government,DCLG,04/03/2015,Revenue Support grant payable,Localism,NOTTINGHAM CITY COUNCIL,,,,214495447,5000283008,,Grant Payable by Exchequer,NG2 3NG,"7,228,514.00",Yes
Communities & Local Government,DCLG,04/03/2015,Revenue Support grant payable,Localism,NOTTINGHAMSHIRE COUNTY CNCL,,,,,5000283011,,Grant Payable by Exchequer,NG2 7QP,"1,830,539.00",Yes
Communities & Local Government,DCLG,04/03/2015,Revenue Support grant payable,Localism,NOTTS & CITY NOTTINGHAM FIRE AUTH,,,,296814999,5000283013,,Grant Payable by Exchequer,NG5 8PD,"562,997.00",Yes
Communities & Local Government,DCLG,04/03/2015,Revenue Support grant payable,Localism,NUNEATON & BEDWORTH BC,,Large,,,5000283015,,Grant Payable by Exchequer,CV11 5AA,"216,187.00",Yes
Communities & Local Government,DCLG,04/03/2015,Revenue Support grant payable,Localism,OADBY & WIGSTON BC,,,,239831878,5000283019,,Grant Payable by Exchequer,LE8 2DR,"90,740.00",Yes
Communities & Local Government,DCLG,04/03/2015,Revenue Support grant payable,Localism,OLDHAM MBC,,,,213015574,5000283021,,Grant Payable by Exchequer,OL1 1UH,"3,998,213.00",Yes
Communities & Local Government,DCLG,04/03/2015,Revenue Support grant payable,Localism,OXFORD CITY CNCL,,,,236042586,5000283023,,Grant Payable by Exchequer,OX1 1DS,"443,837.00",Yes
Communities & Local Government,DCLG,04/03/2015,Revenue Support grant payable,Localism,PENDLE BC,,,,548605328,5000283025,,Grant Payable by Exchequer,BB9 OLX,"287,927.00",Yes
Communities & Local Government,DCLG,04/03/2015,Revenue Support grant payable,Localism,PETERBOROUGH CITY CNCL,,,,,5000283027,,Grant Payable by Exchequer,PE1 1HG,"2,643,464.00",Yes
Communities & Local Government,DCLG,04/03/2015,Revenue Support grant payable,Localism,PLYMOUTH CITY COUNCIL,,Public Bodies,,236416095,5000283030,,Grant Payable by Exchequer,PL1 2AA,"3,586,214.00",Yes
Communities & Local Government,DCLG,04/03/2015,Revenue Support grant payable,Localism,PORTSMOUTH CITY COUNCIL,,Large,,211183082,5000283032,,Grant Payable by Exchequer,PO1 2AR,"2,993,643.00",Yes
Communities & Local Government,DCLG,04/03/2015,Revenue Support grant payable,Localism,PRESTON BC,,,,232604124,5000283034,,Grant Payable by Exchequer,PR1 2RL,"387,923.00",Yes
Communities & Local Government,DCLG,04/03/2015,Revenue Support grant payable,Localism,PURBECK DC,,Public Bodies,,,5000283036,,Grant Payable by Exchequer,BH20 4PP,"52,365.00",Yes
Communities & Local Government,DCLG,04/03/2015,Revenue Support grant payable,Localism,READING BC,,,,210220399,5000283038,,Grant Payable by Exchequer,RG1 7TD,"1,493,064.00",Yes
Communities & Local Government,DCLG,04/03/2015,Revenue Support grant payable,Localism,REDCAR & CLEVELAND BOROUGH COUNCIL,,,,215175196,5000283042,,Grant Payable by Exchequer,TS6 9AR,"2,221,516.00",Yes
Communities & Local Government,DCLG,04/03/2015,Revenue Support grant payable,Localism,REDDITCH BC,,,,231421491,5000283044,,Grant Payable by Exchequer,B98 8AH,"130,377.00",Yes
Communities & Local Government,DCLG,04/03/2015,Revenue Support grant payable,Localism,REIGATE & BANSTEAD BC,,,,211313515,5000283046,,Grant Payable by Exchequer,RH2 OSH,"84,009.00",Yes
Communities & Local Government,DCLG,04/03/2015,Revenue Support grant payable,Localism,RIBBLE VALLEY BC,,,,232617894,5000283048,,Grant Payable by Exchequer,BB7 2RA,"80,359.00",Yes
Communities & Local Government,DCLG,04/03/2015,Revenue Support grant payable,Localism,RICHMONDSHIRE DC,,Large,,232245142,5000283050,,Grant Payable by Exchequer,DL10 4JX,"69,707.00",Yes
Communities & Local Government,DCLG,04/03/2015,Revenue Support grant payable,Localism,ROCHDALE MBC,,,,,5000283052,,Grant Payable by Exchequer,OL16 1YG,"3,809,431.00",Yes
Communities & Local Government,DCLG,04/03/2015,Revenue Support grant payable,Localism,ROCHFORD DISTRICT COUNCIL,,,,387828767,5000283054,,Grant Payable by Exchequer,SS4 1BW,"60,992.00",Yes
Communities & Local Government,DCLG,04/03/2015,Revenue Support grant payable,Localism,ROSSENDALE BC,,,,237654020,5000283056,,Grant Payable by Exchequer,OL13 0BB,"128,501.00",Yes
Communities & Local Government,DCLG,04/03/2015,Revenue Support grant payable,Localism,ROTHER DC,,,,,5000283058,,Grant Payable by Exchequer,TN39 3JX,"110,801.00",Yes
Communities & Local Government,DCLG,04/03/2015,Revenue Support grant payable,Localism,ROTHERHAM MBC,,,,211266937,5000283061,,Grant Payable by Exchequer,S65 1UF,"4,031,416.00",Yes
Communities & Local Government,DCLG,04/03/2015,Revenue Support grant payable,Localism,ROYAL BERKSHIRE FIRE AUTHORITY,,,,424872653,5000282875,,Grant Payable by Exchequer,RG30 4FS,"363,252.00",Yes
Communities & Local Government,DCLG,04/03/2015,Revenue Support grant payable,Localism,ROYAL BORO OF KENSINGTON & CHELSEA,,,,211124466,5000282836,,Grant Payable by Exchequer,W8 7NX,"3,237,049.00",Yes
Communities & Local Government,DCLG,04/03/2015,Revenue Support grant payable,Localism,RUGBY BC,,,,,5000283063,,Grant Payable by Exchequer,CV21 2RR,"142,205.00",Yes
Communities & Local Government,DCLG,04/03/2015,Revenue Support grant payable,Localism,RUNNYMEDE BOROUGH COUNCIL,,,,232225722,5000283065,,Grant Payable by Exchequer,KT15 2AH,"106,681.00",Yes
Communities & Local Government,DCLG,04/03/2015,Revenue Support grant payable,Localism,RUSHCLIFFE BOROUGH COUNCIL,,,,,5000283067,,Grant Payable by Exchequer,NG2 5FE,"106,981.00",Yes
Communities & Local Government,DCLG,04/03/2015,Revenue Support grant payable,Localism,RUSHMOOR BC,,,,232607606,5000283069,,Grant Payable by Exchequer,GU14 7JU,"140,340.00",Yes
Communities & Local Government,DCLG,04/03/2015,Revenue Support grant payable,Localism,RYEDALE DC,,,,,5000283071,,Grant Payable by Exchequer,YO17 0HH,"78,552.00",Yes
Communities & Local Government,DCLG,04/03/2015,Revenue Support grant payable,Localism,SALFORD CITY CNCL,,,,213180073,5000283073,,Grant Payable by Exchequer,M27 5AW,"4,543,378.00",Yes
Communities & Local Government,DCLG,04/03/2015,Revenue Support grant payable,Localism,SANDWELL MBC,,,,,5000283075,,Grant Payable by Exchequer,B69 3DE,"7,758,182.00",Yes
Communities & Local Government,DCLG,04/03/2015,Revenue Support grant payable,Localism,SCARBOROUGH BC,,Large,,,5000283077,,Grant Payable by Exchequer,YO11 2HG,"250,666.00",Yes
Communities & Local Government,DCLG,04/03/2015,Revenue Support grant payable,Localism,SEDGEMOOR DC,,,,211204011,5000283079,,Grant Payable by Exchequer,TA6 3AR,"247,690.00",Yes
Communities & Local Government,DCLG,04/03/2015,Revenue Support grant payable,Localism,SEFTON MBC,,,,232936125,5000283081,,Grant Payable by Exchequer,L20 3NQ,"3,182,880.00",Yes
Communities & Local Government,DCLG,04/03/2015,Revenue Support grant payable,Localism,SELBY DC,,,,239816721,5000283083,,Grant Payable by Exchequer,YO8 9FT,"144,927.00",Yes
Communities & Local Government,DCLG,04/03/2015,Revenue Support grant payable,Localism,SEVENOAKS DC,,,,236100913,5000283085,,Grant Payable by Exchequer,TN13 1HG,"69,502.00",Yes
Communities & Local Government,DCLG,04/03/2015,Revenue Support grant payable,Localism,SHEFFIELD CITY CNCL,,Large,,,5000283087,,Grant Payable by Exchequer,S1 1UJ,"9,053,942.00",Yes
Communities & Local Government,DCLG,04/03/2015,Revenue Support grant payable,Localism,SHEPWAY DC,,,,235550878,5000283089,,Grant Payable by Exchequer,CT20 2QY,"172,305.00",Yes
Communities & Local Government,DCLG,04/03/2015,Revenue Support grant payable,Localism,SHROPSHIRE & WREKIN FIRE AUTHORITY,,,,424873610,5000283091,,Grant Payable by Exchequer,SY1 2HJ,"134,546.00",Yes
Communities & Local Government,DCLG,04/03/2015,Revenue Support grant payable,Localism,SHROPSHIRE COUNCIL,,Large,,217036490,5000282976,,Grant Payable by Exchequer,SY2 6ND,"1,711,742.00",Yes
Communities & Local Government,DCLG,04/03/2015,Revenue Support grant payable,Localism,SLOUGH BOROUGH COUNCIL,,,,211027123,5000283093,,Grant Payable by Exchequer,SL1 3UF,"1,867,428.00",Yes
Communities & Local Government,DCLG,04/03/2015,Revenue Support grant payable,Localism,SOLIHULL MBC,,,,,5000283095,,Grant Payable by Exchequer,B91 3QR,"1,016,892.00",Yes
Communities & Local Government,DCLG,04/03/2015,Revenue Support grant payable,Localism,SOMERSET COUNTY CNCL,,,,211229406,5000283097,,Grant Payable by Exchequer,TA1 4DY,"1,142,117.00",Yes
Communities & Local Government,DCLG,04/03/2015,Revenue Support grant payable,Localism,SOUTH BUCKS DC,,,,221356624,5000283100,,Grant Payable by Exchequer,UB9 4LH,"34,848.00",Yes
Communities & Local Government,DCLG,04/03/2015,Revenue Support grant payable,Localism,SOUTH CAMBRIDGESHIRE DC,,,,,5000283102,,Grant Payable by Exchequer,CB3 6EA,"119,575.00",Yes
Communities & Local Government,DCLG,04/03/2015,Revenue Support grant payable,Localism,SOUTH DERBYSHIRE D C,,Public Bodies,,232612416,5000283104,,Grant Payable by Exchequer,DE11 0AH,"147,401.00",Yes
Communities & Local Government,DCLG,04/03/2015,Revenue Support grant payable,Localism,SOUTH GLOUCESTERSHIRE COUNCIL,,,,212834242,5000283106,,Grant Payable by Exchequer,BS15 2TR,"971,354.00",Yes
Communities & Local Government,DCLG,04/03/2015,Revenue Support grant payable,Localism,SOUTH HAMS DC,,,,236445342,5000283108,,Grant Payable by Exchequer,TQ9 5NE,"89,046.00",Yes
Communities & Local Government,DCLG,04/03/2015,Revenue Support grant payable,Localism,SOUTH HOLLAND,,,,236445383,5000283109,,Grant Payable by Exchequer,PE11 2XE,"237,434.00",Yes
Communities & Local Government,DCLG,04/03/2015,Revenue Support grant payable,Localism,SOUTH KESTEVEN DC,,,,227470747,5000283111,,Grant Payable by Exchequer,NG31 6PZ,"258,277.00",Yes
Communities & Local Government,DCLG,04/03/2015,Revenue Support grant payable,Localism,SOUTH LAKELAND DC,,,,236445466,5000283113,,Grant Payable by Exchequer,LA49 4DQ,"107,519.00",Yes
Communities & Local Government,DCLG,04/03/2015,Revenue Support grant payable,Localism,SOUTH NORFOLK DC,,,,232605717,5000283115,,Grant Payable by Exchequer,NR15 2XE,"144,956.00",Yes
Communities & Local Government,DCLG,04/03/2015,Revenue Support grant payable,Localism,SOUTH NORTHAMPTONSHIRE DC,,,,,5000283117,,Grant Payable by Exchequer,NN12 7AE,"88,601.00",Yes
Communities & Local Government,DCLG,04/03/2015,Revenue Support grant payable,Localism,SOUTH OXFORDSHIRE DC,,,,212296766,5000283119,,Grant Payable by Exchequer,OX10 8ED,"93,533.00",Yes
Communities & Local Government,DCLG,04/03/2015,Revenue Support grant payable,Localism,SOUTH RIBBLE BOROUGH COUNCIL,,,,,5000283121,,Grant Payable by Exchequer,PR5 1DH,"109,141.00",Yes
Communities & Local Government,DCLG,04/03/2015,Revenue Support grant payable,Localism,SOUTH SOMERSET DC,,,,239850811,5000283123,,Grant Payable by Exchequer,BA20 2DS,"169,522.00",Yes
Communities & Local Government,DCLG,04/03/2015,Revenue Support grant payable,Localism,SOUTH STAFFORDSHIRE DC,,,,210305155,5000283126,,Grant Payable by Exchequer,WV8 1PX,"136,477.00",Yes
Communities & Local Government,DCLG,04/03/2015,Revenue Support grant payable,Localism,SOUTH TYNESIDE COUNCIL,,,,345736438,5000283128,,Grant Payable by Exchequer,NE33 2RL,"3,779,384.00",Yes
Communities & Local Government,DCLG,04/03/2015,Revenue Support grant payable,Localism,SOUTH YORKSHIRE FIRE & CD,,,,424872620,5000283130,,Grant Payable by Exchequer,S1 3FG,"1,240,402.00",Yes
Communities & Local Government,DCLG,04/03/2015,Revenue Support grant payable,Localism,SOUTHAMPTON CITY CNCL,,,,216927475,5000283132,,Grant Payable by Exchequer,SO14 7LY,"3,415,936.00",Yes
Communities & Local Government,DCLG,04/03/2015,Revenue Support grant payable,Localism,SOUTHEND ON SEA BC,,,,217067263,5000283134,,Grant Payable by Exchequer,SS2 6EP,"1,717,561.00",Yes
Communities & Local Government,DCLG,04/03/2015,Revenue Support grant payable,Localism,SOUTHWARK LB,,,,,5000283136,,Grant Payable by Exchequer,SE1P 5LX,"10,874,599.00",Yes
Communities & Local Government,DCLG,04/03/2015,Revenue Support grant payable,Localism,SPELTHORNE DC,,,,211177332,5000283138,,Grant Payable by Exchequer,TW18 1XB,"86,971.00",Yes
Communities & Local Government,DCLG,04/03/2015,Revenue Support grant payable,Localism,ST ALBANS CITY COUNCIL,,,,218692510,5000283139,,Grant Payable by Exchequer,AL1 3JE,"79,257.00",Yes
Communities & Local Government,DCLG,04/03/2015,Revenue Support grant payable,Localism,ST EDMUNDSBURY BC,,,,,5000283141,,Grant Payable by Exchequer,IP33 3YU,"117,005.00",Yes
Communities & Local Government,DCLG,04/03/2015,Revenue Support grant payable,Localism,ST HELENS MBC,,,,,5000283143,,Grant Payable by Exchequer,WA10 1HP,"2,887,248.00",Yes
Communities & Local Government,DCLG,04/03/2015,Revenue Support grant payable,Localism,STAFFORD BC,,,,227476934,5000283145,,Grant Payable by Exchequer,ST16 3AQ,"166,118.00",Yes
Communities & Local Government,DCLG,04/03/2015,Revenue Support grant payable,Localism,STAFFORDSHIRE  FIRE & RESCUE SERV,,Large,,232600577,5000283150,,Grant Payable by Exchequer,ST15 0BS,"501,185.00",Yes
Communities & Local Government,DCLG,04/03/2015,Revenue Support grant payable,Localism,STAFFORDSHIRE COUNTY CNCL,,,,,5000283148,,Grant Payable by Exchequer,ST16 2LH,"1,720,914.00",Yes
Communities & Local Government,DCLG,04/03/2015,Revenue Support grant payable,Localism,STAFFORDSHIRE MOORLANDS DC,,,,232749775,5000283152,,Grant Payable by Exchequer,ST13 6HQ,"153,646.00",Yes
Communities & Local Government,DCLG,04/03/2015,Revenue Support grant payable,Localism,STEVENAGE BC,,,,236440186,5000283154,,Grant Payable by Exchequer,SG1 1HN,"183,433.00",Yes
Communities & Local Government,DCLG,04/03/2015,Revenue Support grant payable,Localism,STOCKPORT MBC,,,,228706248,5000283156,,Grant Payable by Exchequer,SK1 3XE,"1,554,465.00",Yes
Communities & Local Government,DCLG,04/03/2015,Revenue Support grant payable,Localism,STOCKTON ON TEES BC,,,,,5000283158,,Grant Payable by Exchequer,TS23 2YS,"2,436,347.00",Yes
Communities & Local Government,DCLG,04/03/2015,Revenue Support grant payable,Localism,STOKE ON TRENT CITY COUNCIL,,,,216037890,5000283160,,Grant Payable by Exchequer,ST4 1HH,"4,589,116.00",Yes
Communities & Local Government,DCLG,04/03/2015,Revenue Support grant payable,Localism,STRATFORD ON AVON DC,,,,227473881,5000283162,,Grant Payable by Exchequer,CV37 6HX,"115,893.00",Yes
Communities & Local Government,DCLG,04/03/2015,Revenue Support grant payable,Localism,STROUD DC,,,,,5000283164,,Grant Payable by Exchequer,GL5 4UB,"89,437.00",Yes
Communities & Local Government,DCLG,04/03/2015,Revenue Support grant payable,Localism,SUFFOLK COASTAL DC,,,,239933203,5000283167,,Grant Payable by Exchequer,IP12 1AU,"134,096.00",Yes
Communities & Local Government,DCLG,04/03/2015,Revenue Support grant payable,Localism,SUFFOLK COUNTY CNCL,,Public Bodies,,232767710,5000283166,,Grant Payable by Exchequer,IP4 2JP,"2,610,393.00",Yes
Communities & Local Government,DCLG,04/03/2015,Revenue Support grant payable,Localism,SUNDERLAND DC,,,,215599312,5000282794,,Grant Payable by Exchequer,SR2 7DN,"6,577,760.00",Yes
Communities & Local Government,DCLG,04/03/2015,Revenue Support grant payable,Localism,SURREY HEATH BC,,,,236445441,5000282795,,Grant Payable by Exchequer,GU15 3HD,"55,229.00",Yes
Communities & Local Government,DCLG,04/03/2015,Revenue Support grant payable,Localism,SUTTON LB,,,,,5000282796,,Grant Payable by Exchequer,SM1 1EA,"1,251,215.00",Yes
Communities & Local Government,DCLG,04/03/2015,Revenue Support grant payable,Localism,SWALE BC,,,,239842768,5000282797,,Grant Payable by Exchequer,ME10 3HT,"304,421.00",Yes
Communities & Local Government,DCLG,04/03/2015,Revenue Support grant payable,Localism,SWINDON BC,,,,458639697,5000282799,,Grant Payable by Exchequer,SN1 2JH,"1,084,194.00",Yes
Communities & Local Government,DCLG,04/03/2015,Revenue Support grant payable,Localism,TAMESIDE MBC,,,,212635875,5000282800,,Grant Payable by Exchequer,OL6 6DL,"3,480,708.00",Yes
Communities & Local Government,DCLG,04/03/2015,Revenue Support grant payable,Localism,TAMWORTH BOROUGH COUNCIL,,,,232612457,5000282802,,Grant Payable by Exchequer,B79 7BZ,"163,786.00",Yes
Communities & Local Government,DCLG,04/03/2015,Revenue Support grant payable,Localism,TANDRIDGE DC,,,,225481076,5000282804,,Grant Payable by Exchequer,RH8 0BT,"46,364.00",Yes
Communities & Local Government,DCLG,04/03/2015,Revenue Support grant payable,Localism,TAUNTON DEANE BC,,,,236185294,5000282807,,Grant Payable by Exchequer,TA1 1HE,"159,063.00",Yes
Communities & Local Government,DCLG,04/03/2015,Revenue Support grant payable,Localism,TEIGNBRIDGE DC,,,,236440475,5000282809,,Grant Payable by Exchequer,TQ12 4XX,"199,477.00",Yes
Communities & Local Government,DCLG,04/03/2015,Revenue Support grant payable,Localism,TELFORD & WREKIN DC,,,,230235801,5000282812,,Grant Payable by Exchequer,TF3 4LF,"2,419,100.00",Yes
Communities & Local Government,DCLG,04/03/2015,Revenue Support grant payable,Localism,TENDRING DC,,,,,5000282815,,Grant Payable by Exchequer,CO15 1SE,"357,317.00",Yes
Communities & Local Government,DCLG,04/03/2015,Revenue Support grant payable,Localism,TEST VALLEY BC,,Large,,225442698,5000282818,,Grant Payable by Exchequer,SP10 3AJ,"136,898.00",Yes
Communities & Local Government,DCLG,04/03/2015,Revenue Support grant payable,Localism,TEWKESBURY BC,,,,232740399,5000282821,,Grant Payable by Exchequer,GL20 5TT,"107,668.00",Yes
Communities & Local Government,DCLG,04/03/2015,Revenue Support grant payable,Localism,THANET DC,,,,232309369,5000282823,,Grant Payable by Exchequer,CT8 1XZ,"295,082.00",Yes
Communities & Local Government,DCLG,04/03/2015,Revenue Support grant payable,Localism,THREE RIVERS DC,,,,,5000282826,,Grant Payable by Exchequer,WD3 1RL,"71,985.00",Yes
Communities & Local Government,DCLG,04/03/2015,Revenue Support grant payable,Localism,THURROCK  BOROUGH COUNCIL,,,,,5000282829,,Grant Payable by Exchequer,RM17 6LT,"1,613,453.00",Yes
Communities & Local Government,DCLG,04/03/2015,Revenue Support grant payable,Localism,TONBRIDGE & MALLING BC,,,,,5000282831,,Grant Payable by Exchequer,ME19 6LZ,"80,751.00",Yes
Communities & Local Government,DCLG,04/03/2015,Revenue Support grant payable,Localism,TORBAY BC,,,,,5000282834,,Grant Payable by Exchequer,TQ1 3DR,"1,589,706.00",Yes
Communities & Local Government,DCLG,04/03/2015,Revenue Support grant payable,Localism,TORRIDGE DC,,Public Bodies,,,5000282838,,Grant Payable by Exchequer,EX39 2HT,"172,521.00",Yes
Communities & Local Government,DCLG,04/03/2015,Revenue Support grant payable,Localism,TOWER HAMLETS LB,,,,231315144,5000282840,,Grant Payable by Exchequer,E14 2BG,"10,348,669.00",Yes
Communities & Local Government,DCLG,04/03/2015,Revenue Support grant payable,Localism,TRAFFORD MBC,,,,,5000282843,,Grant Payable by Exchequer,M32 0TH,"1,813,527.00",Yes
Communities & Local Government,DCLG,04/03/2015,Revenue Support grant payable,Localism,TUNBRIDGE WELLS BC,,,,775221013,5000282846,,Grant Payable by Exchequer,TN1 1RS,"106,947.00",Yes
Communities & Local Government,DCLG,04/03/2015,Revenue Support grant payable,Localism,TYNE & WEAR FIRE AUTHORITY,,,,215599312,5000282849,,Grant Payable by Exchequer,SR2 7DN,"1,247,143.00",Yes
Communities & Local Government,DCLG,04/03/2015,Revenue Support grant payable,Localism,UTTLESFORD DC,,,,424423242,5000282852,,Grant Payable by Exchequer,CB11 4ER,"57,495.00",Yes
Communities & Local Government,DCLG,04/03/2015,Revenue Support grant payable,Localism,VALE OF WHITE HORSE DC,,,,,5000282855,,Grant Payable by Exchequer,OX14 3JE,"109,248.00",Yes
Communities & Local Government,DCLG,04/03/2015,Revenue Support grant payable,Localism,W YORKSHIRE FIRE & RESCUE AUTH,,,,236428595,5000282913,,Grant Payable by Exchequer,BD11 2DY,"1,957,397.00",Yes
Communities & Local Government,DCLG,04/03/2015,Revenue Support grant payable,Localism,WALSALL MBC,,,,212515585,5000282861,,Grant Payable by Exchequer,WS1 1TW,"4,619,570.00",Yes
Communities & Local Government,DCLG,04/03/2015,Revenue Support grant payable,Localism,WALTHAM FOREST LB,,Large,,,5000282864,,Grant Payable by Exchequer,E17 4JF,"4,374,578.00",Yes
Communities & Local Government,DCLG,04/03/2015,Revenue Support grant payable,Localism,WANDSWORTH LB,,,,,5000282867,,Grant Payable by Exchequer,SW18 2PU,"6,864,474.00",Yes
Communities & Local Government,DCLG,04/03/2015,Revenue Support grant payable,Localism,WARRINGTON BC,,,,,5000282870,,Grant Payable by Exchequer,WA1 1BN,"1,189,505.00",Yes
Communities & Local Government,DCLG,04/03/2015,Revenue Support grant payable,Localism,WARWICK,,,,,5000282873,,Grant Payable by Exchequer,CV32 4NW,"202,104.00",Yes
Communities & Local Government,DCLG,04/03/2015,Revenue Support grant payable,Localism,WATFORD COUNCIL,,,,215498572,5000282876,,Grant Payable by Exchequer,WD17 3EX,"132,629.00",Yes
Communities & Local Government,DCLG,04/03/2015,Revenue Support grant payable,Localism,WAVENEY DISTRICT COUNCIL,,Large,,229740980,5000282879,,Grant Payable by Exchequer,NR32 1HS,"285,692.00",Yes
Communities & Local Government,DCLG,04/03/2015,Revenue Support grant payable,Localism,WAVERLEY BC,,Public Bodies,,236429064,5000282882,,Grant Payable by Exchequer,GU7 1HR,"63,048.00",Yes
Communities & Local Government,DCLG,04/03/2015,Revenue Support grant payable,Localism,WEALDEN DC,,,,232688697,5000282885,,Grant Payable by Exchequer,BN22 9LN,"93,054.00",Yes
Communities & Local Government,DCLG,04/03/2015,Revenue Support grant payable,Localism,WELLINGBOROUGH BOROUGH COUNCIL,,Large,,230851581,5000282888,,Grant Payable by Exchequer,NN8 1BP,"170,667.00",Yes
Communities & Local Government,DCLG,04/03/2015,Revenue Support grant payable,Localism,WELWYN HATFIELD COUNCIL,,,,210360804,5000282891,,Grant Payable by Exchequer,AL8 6AE,"104,815.00",Yes
Communities & Local Government,DCLG,04/03/2015,Revenue Support grant payable,Localism,WEST DEVON BC,,,,234002095,5000282893,,Grant Payable by Exchequer,PL19 0BZ,"76,520.00",Yes
Communities & Local Government,DCLG,04/03/2015,Revenue Support grant payable,Localism,WEST DORSET DC,,,,424295350,5000282896,,Grant Payable by Exchequer,DT1 1UZ,"173,989.00",Yes
Communities & Local Government,DCLG,04/03/2015,Revenue Support grant payable,Localism,WEST LANCASHIRE BC,,,,232240978,5000282900,,Grant Payable by Exchequer,L39 2DF,"193,803.00",Yes
Communities & Local Government,DCLG,04/03/2015,Revenue Support grant payable,Localism,WEST LINDSEY DC,,,,227471026,5000282903,,Grant Payable by Exchequer,DN21 2NA,"176,278.00",Yes
Communities & Local Government,DCLG,04/03/2015,Revenue Support grant payable,Localism,WEST MIDLANDS FIRE & CIVIL DEFENCE,,,,232913731,5000282906,,Grant Payable by Exchequer,B4 7DE,"2,667,928.00",Yes
Communities & Local Government,DCLG,04/03/2015,Revenue Support grant payable,Localism,WEST OXFORDSHIRE DC,,Large,,210401379,5000282909,,Grant Payable by Exchequer,OX28 1NB,"126,291.00",Yes
Communities & Local Government,DCLG,04/03/2015,Revenue Support grant payable,Localism,WEST SOMERSET DC,,,,216015144,5000282910,,Grant Payable by Exchequer,TA4 4QA,"70,423.00",Yes
Communities & Local Government,DCLG,04/03/2015,Revenue Support grant payable,Localism,WESTMINSTER CITY CNCL,,,,229845706,5000282916,,Grant Payable by Exchequer,SW1E 6QP,"8,424,737.00",Yes
Communities & Local Government,DCLG,04/03/2015,Revenue Support grant payable,Localism,WEYMOUTH & PORTLAND BC,,,,735157948,5000282919,,Grant Payable by Exchequer,DT4 8TA,"92,309.00",Yes
Communities & Local Government,DCLG,04/03/2015,Revenue Support grant payable,Localism,WIGAN MBC,,,,,5000282922,,Grant Payable by Exchequer,WN1 1AZ,"4,363,466.00",Yes
Communities & Local Government,DCLG,04/03/2015,Revenue Support grant payable,Localism,WILTSHIRE & SWINDON FIRE AUTHORITY,,,,232691089,5000282925,,Grant Payable by Exchequer,SN10 5PP,"193,562.00",Yes
Communities & Local Government,DCLG,04/03/2015,Revenue Support grant payable,Localism,WILTSHIRE COUNCIL,,,,211341656,5000282979,,Grant Payable by Exchequer,BA14 4DS,"818,395.00",Yes
Communities & Local Government,DCLG,04/03/2015,Revenue Support grant payable,Localism,WINCHESTER CITY CNCL,,,,228838280,5000282928,,Grant Payable by Exchequer,SO23 9LJ,"104,831.00",Yes
Communities & Local Government,DCLG,04/03/2015,Revenue Support grant payable,Localism,WIRRAL BOROUGH COUNCIL,,,,,5000282932,,Grant Payable by Exchequer,CH41 6BU,"5,030,820.00",Yes
Communities & Local Government,DCLG,04/03/2015,Revenue Support grant payable,Localism,WOKING BC,,,,211163449,5000282935,,Grant Payable by Exchequer,GU21 1YL,"96,471.00",Yes
Communities & Local Government,DCLG,04/03/2015,Revenue Support grant payable,Localism,WOLVERHAMPTON MBC,,,,229895453,5000282938,,Grant Payable by Exchequer,WV1 1RL,"6,086,965.00",Yes
Communities & Local Government,DCLG,04/03/2015,Revenue Support grant payable,Localism,WORCESTER CITY CNCL,,,,227419751,5000282941,,Grant Payable by Exchequer,WR1 2EZ,"187,102.00",Yes
Communities & Local Government,DCLG,04/03/2015,Revenue Support grant payable,Localism,WORTHING BC,,,,236429734,5000282944,,Grant Payable by Exchequer,BN11 1HB,"160,489.00",Yes
Communities & Local Government,DCLG,04/03/2015,Revenue Support grant payable,Localism,WYCHAVON DISTRICT COUNCIL,,,,232257139,5000282947,,Grant Payable by Exchequer,WR10 1PT,"155,558.00",Yes
Communities & Local Government,DCLG,04/03/2015,Revenue Support grant payable,Localism,WYCOMBE DC,,,,232683771,5000282949,,Grant Payable by Exchequer,HP11 1BB,"154,616.00",Yes
Communities & Local Government,DCLG,04/03/2015,Revenue Support grant payable,Localism,WYRE BC,,,,236646493,5000282952,,Grant Payable by Exchequer,FY6 7PU,"199,396.00",Yes
Communities & Local Government,DCLG,04/03/2015,Revenue Support grant payable,Localism,WYRE FOREST DISTRICT COUNCIL,,,,,5000282955,,Grant Payable by Exchequer,DY11 7WF,"167,452.00",Yes
Communities & Local Government,DCLG,04/03/2015,Revenue Support grant payable,Localism,YORK CITY CNCL,,,,,5000283002,,Grant Payable by Exchequer,YO1 1XH,"863,026.00",Yes
Communities & Local Government,DCLG,04/03/2015,Software Licences,Finance & Corporate Services,BYTES SOFTWARE SERVICES LTD,,Medium,,225273754,5106210754,Software,MindManager single licence v15,KT22 7TW,277.96,
Communities & Local Government,DCLG,04/03/2015,Software Licences,Finance & Corporate Services,BYTES SOFTWARE SERVICES LTD,,Medium,,225273754,5106210754,Software,Service disk copying charge,KT22 7TW,36.00,
Communities & Local Government,DCLG,04/03/2015,Training,Finance & Corporate Services,CAPITA BUS. SERV. LTD (CSL),,Large,,215580993,5106210767,Development and Training,(MSP ): Foundation and Practitioner,DL1 9HB,705.00,
Communities & Local Government,DCLG,04/03/2015,Vehicle hire,"Strategy, Communications and Private Office",GOVERNMENT CAR & DESPATCH AGENCY,,Public Bodies,,,5106210769,Vehicle Hire and Lease,Ministerial Duty Car 2(LT206) 2014-15,SW8 5AX,543.75,
Communities & Local Government,DCLG,04/03/2015,Vehicle hire,"Strategy, Communications and Private Office",GOVERNMENT CAR & DESPATCH AGENCY,,Public Bodies,,,5106210775,Vehicle Hire and Lease,Ministerial Duty Car 2(LT206) 2014-15,SW8 5AX,"1,345.51",
Communities & Local Government,DCLG,04/03/2015,Work In Progress Pre-Cert 40373 Spend,Neighbourhoods,LINCONSHIRE COUNTY COUNCIL,,Large,,,7600012081,,Revenue Grant To Be Paid,LN1 1YT,"1,345.37",Yes
Communities & Local Government,DCLG,04/03/2015,Work In Progress Pre-Cert 40373 Spend,Neighbourhoods,MIGHTY CREATIVES,,Small,,,7600012079,,Revenue Grant To Be Paid,LE1 1RE,"33,621.45",Yes
Communities & Local Government,DCLG,04/03/2015,Work In Progress Pre-Cert 40373 Spend,Neighbourhoods,PRINCES TRUST,,Medium,,,7600012082,,Revenue Grant To Be Paid,B9 4AA,"61,197.91",Yes
Communities & Local Government,DCLG,04/03/2015,Work In Progress Pre-Cert 40467 Spend,Neighbourhoods,DARLINGTON BOROUGH COUNCIL,,,,,7600012080,,Capital Grant To Be Paid,DL1 1QT,"1,099,520.46",Yes
Communities & Local Government,DCLG,05/03/2015,Building Renovations,Finance & Corporate Services,SKANSEN GROUP LIMITED,,Medium,,222973468,5106210794,Construction Service Providers,2 Rivergate  Refurbishment,SW18 1SF,"430,950.00",
Communities & Local Government,DCLG,05/03/2015,IT - Service Contracts,Finance & Corporate Services,FUJITSU SERVICES LTD,,Large,,423375062,5106210733,IT Managed / Outsourced Services,PINS NR orders Q4 FY 2014/15,WA3 9BD,"3,816.25",
Communities & Local Government,DCLG,05/03/2015,Legal Fees,Neighbourhoods,IVY LEGAL LIMITED,,Micro,,219262084,5106210788,Legal,Legal Advice,EC1Y 4TW,396.00,
Communities & Local Government,DCLG,05/03/2015,Legal Fees,Neighbourhoods,PINSENT MASONS LLP,,Large,,215580626,5106210796,Legal,Legal Advice,EC1R 0ER,"17,041.28",
Communities & Local Government,DCLG,05/03/2015,Management Consultancy,Neighbourhoods,LOCAL PARTNERSHIPS LLP,,,,211702438,5106210804,Consultancy,Ebbsfleet delivery options consultancy,SW1P 3HZ,"4,596.17",
Communities & Local Government,DCLG,05/03/2015,Management Consultancy,Neighbourhoods,LOCAL PARTNERSHIPS LLP,,,,211702438,5106210804,Consultancy,Official Travel and Subsistence,SW1P 3HZ,298.80,
Communities & Local Government,DCLG,05/03/2015,Office Supplies,Finance & Corporate Services,PINPOINT FACILITATION LTD,,Small,,738540173,5106210805,Office Supplies,Pinpoint Presentation Equipment,OX44 7RW,490.50,
Communities & Local Government,DCLG,05/03/2015,Professional services,Localism,GOVT ACTUARYS DEPARTMENT,,Public Bodies,,217789766,5106210768,Financial,Budget 14/15,EC4A 1AB,"43,816.03",
Communities & Local Government,DCLG,05/03/2015,Revenue Support grant payable,Localism,SOUTH GLOUCESTERSHIRE COUNCIL,,,,212834242,2100251740,,RSG payment - Emergency CHAPS,BS15 2TR,"971,354.00",Yes
Communities & Local Government,DCLG,05/03/2015,Training,Finance & Corporate Services,CAPITA BUS. SERV. LTD (CSL),,Large,,215580993,5106210801,Development and Training,Management of Risk (M_o_R ) Foundation L,DL1 9HB,426.00,
Communities & Local Government,DCLG,05/03/2015,Training,Finance & Corporate Services,INSTITUTE OF INTERNAL AUDITORS,,Small,,292669967,5106210793,Development and Training,M1 Strategic Management Revision worksho,SW4 7BX,535.00,
Communities & Local Government,DCLG,05/03/2015,Training,Finance & Corporate Services,INSTITUTE OF INTERNAL AUDITORS,,Small,,292669967,5106210793,Development and Training,M1 Strategic Management Tuition,SW4 7BX,440.00,
Communities & Local Government,DCLG,05/03/2015,Training,Finance & Corporate Services,INSTITUTE OF INTERNAL AUDITORS,,Small,,292669967,5106210793,Development and Training,M3 Risk Assurance & Audit Management Rev,SW4 7BX,535.00,
Communities & Local Government,DCLG,05/03/2015,Training,Finance & Corporate Services,INSTITUTE OF INTERNAL AUDITORS,,Small,,292669967,5106210793,Development and Training,M3 Risk Assurance & Audit Management Tui,SW4 7BX,440.00,
Communities & Local Government,DCLG,05/03/2015,Training,Finance & Corporate Services,PRIVACY & DATA PROTECTION LTD,,Micro,,219697385,5106210798,Development and Training,Exam resit for Practitioner in FOI,SW4 0JY,290.00,
Communities & Local Government,DCLG,05/03/2015,Work In Progress Pre-Cert 40373 Spend,Neighbourhoods,ASTON UNIVERSITY,,Large,,,7600012083,,Revenue Grant Clawback Offset,B4 7ET,"-4,648.34",Yes
Communities & Local Government,DCLG,05/03/2015,Work In Progress Pre-Cert 40373 Spend,Neighbourhoods,ASTON UNIVERSITY,,Large,,,7600012083,,Revenue Grant To Be Paid,B4 7ET,"74,558.21",Yes
Communities & Local Government,DCLG,05/03/2015,Work In Progress Pre-Cert 40373 Spend,Neighbourhoods,ASTON UNIVERSITY,,Large,,,7600012085,,Revenue Grant Clawback Offset,B4 7ET,"-1,254.78",Yes
Communities & Local Government,DCLG,05/03/2015,Work In Progress Pre-Cert 40373 Spend,Neighbourhoods,ASTON UNIVERSITY,,Large,,,7600012085,,Revenue Grant To Be Paid,B4 7ET,"76,555.93",Yes
Communities & Local Government,DCLG,05/03/2015,Work In Progress Pre-Cert 40373 Spend,Neighbourhoods,ASTON UNIVERSITY,,Large,,,7600012089,,Revenue Grant To Be Paid,B4 7ET,"20,924.52",Yes
Communities & Local Government,DCLG,05/03/2015,Work In Progress Pre-Cert 40373 Spend,Neighbourhoods,ASTON UNIVERSITY,,Large,,,7600012091,,Revenue Grant To Be Paid,B4 7ET,"16,329.81",Yes
Communities & Local Government,DCLG,05/03/2015,Work In Progress Pre-Cert 40373 Spend,Neighbourhoods,COVENTRY UNIVERSITY ENTERPRISES LTD,,Medium,,,7600012093,,Revenue Grant To Be Paid,CV1 2TT,"14,638.41",Yes
Communities & Local Government,DCLG,05/03/2015,Work In Progress Pre-Cert 40373 Spend,Neighbourhoods,INTERNATIONAL SYNERGIES LTD,,Small,,,7600012095,,Revenue Grant To Be Paid,B30 3ES,"30,160.02",Yes
Communities & Local Government,DCLG,05/03/2015,Work In Progress Pre-Cert 40373 Spend,Neighbourhoods,SANDWELL MBC,,Large,,,7600012084,,Revenue Grant To Be Paid,B69 3BS,"23,257.70",Yes
Communities & Local Government,DCLG,05/03/2015,Work In Progress Pre-Cert 40373 Spend,Neighbourhoods,SANDWELL MBC,,Large,,,7600012090,,Revenue Grant To Be Paid,B69 3BS,"14,159.24",Yes
Communities & Local Government,DCLG,05/03/2015,Work In Progress Pre-Cert 40373 Spend,Neighbourhoods,STAVELEY TOWN COUNCIL,,Small,,,7600012094,,Revenue Grant To Be Paid,S43 3TN,750.00,Yes
Communities & Local Government,DCLG,05/03/2015,Work In Progress Pre-Cert 40373 Spend,Neighbourhoods,STOKE-ON-TRENT CITY COUNCIL,,Large,,,7600012088,,Revenue Grant To Be Paid,ST4 1HP,"6,634.21",Yes
Communities & Local Government,DCLG,05/03/2015,Work In Progress Pre-Cert 40373 Spend,Neighbourhoods,STOKE-ON-TRENT CITY COUNCIL,,Large,,,7600012092,,Revenue Grant To Be Paid,ST4 1HP,"6,717.11",Yes
Communities & Local Government,DCLG,05/03/2015,Work In Progress Pre-Cert 40373 Spend,Neighbourhoods,UNIVERSITY OF WOLVERHAMPTON,,Large,,,7600012086,,Revenue Grant To Be Paid,WV1 1SB,"26,332.73",Yes
Communities & Local Government,DCLG,05/03/2015,Work In Progress Pre-Cert 40373 Spend,Neighbourhoods,UNIVERSITY OF WOLVERHAMPTON,,Large,,,7600012087,,Revenue Grant To Be Paid,WV1 1SB,"70,824.69",Yes
Communities & Local Government,DCLG,05/03/2015,Work In Progress Pre-Cert 40467 Spend,Neighbourhoods,ASTON UNIVERSITY,,Large,,,7600012083,,Capital Grant Clawback Offset,B4 7ET,"-145,351.66",Yes
Communities & Local Government,DCLG,05/03/2015,Work In Progress Pre-Cert 40467 Spend,Neighbourhoods,ASTON UNIVERSITY,,Large,,,7600012083,,Capital Grant To Be Paid,B4 7ET,"292,039.50",Yes
Communities & Local Government,DCLG,05/03/2015,Work In Progress Pre-Cert 40467 Spend,Neighbourhoods,ASTON UNIVERSITY,,Large,,,7600012085,,Capital Grant Clawback Offset,B4 7ET,"-39,236.35",Yes
Communities & Local Government,DCLG,05/03/2015,Work In Progress Pre-Cert 40467 Spend,Neighbourhoods,SANDWELL MBC,,Large,,,7600012084,,Capital Grant Clawback Offset,B69 3BS,"-2,943.40",Yes
Communities & Local Government,DCLG,05/03/2015,Work In Progress Pre-Cert 40467 Spend,Neighbourhoods,STAVELEY TOWN COUNCIL,,Small,,,7600012094,,Capital Grant To Be Paid,S43 3TN,"2,902.47",Yes
Communities & Local Government,DCLG,05/03/2015,Work In Progress Pre-Cert 40467 Spend,Neighbourhoods,STAVELEY TOWN COUNCIL,,Small,,,7600012096,,Capital Grant To Be Paid,S43 3TN,815.17,Yes
Communities & Local Government,DCLG,05/03/2015,Work In Progress Pre-Cert 40467 Spend,Neighbourhoods,STOKE-ON-TRENT CITY COUNCIL,,Large,,,7600012092,,Capital Grant To Be Paid,ST4 1HP,"29,900.25",Yes
Communities & Local Government,DCLG,06/03/2015,Advertising,"Strategy, Communications and Private Office",ENTER HERE LLP,,Medium,,672098311,5106210831,Advertising,Fire Kills extension 14/15,W1F 9NB,"5,000.00",
Communities & Local Government,DCLG,06/03/2015,Advertising,"Strategy, Communications and Private Office",TULLO MARSHALL WARREN LTD,,Medium,,,5106210795,Advertising,Right to Buy Marketing Contract,W1F 9NB,500.00,
Communities & Local Government,DCLG,06/03/2015,Advertising,"Strategy, Communications and Private Office",TULLO MARSHALL WARREN LTD,,Medium,,,5106210822,Advertising,Right to Buy Marketing Contract,W1F 9NB,"8,723.00",
Communities & Local Government,DCLG,06/03/2015,Agency Staff,Finance & Corporate Services,CAPITA BUS. SERV. LTD (CON LAB),,Large,,,5106210817,Contingent Labour,Interim Manager,DL1 9HB,"6,113.52",
Communities & Local Government,DCLG,06/03/2015,Agency Staff,Finance & Corporate Services,CAPITA BUS. SERV. LTD (CON LAB),,Large,,,5106210821,Contingent Labour,Interim Manager,DL1 9HB,"4,305.17",
Communities & Local Government,DCLG,06/03/2015,Agency Staff,Localism,CAPITA BUS. SERV. LTD (CON LAB),,Large,,,5106210839,Contingent Labour,Interim Manager,DL1 9HB,"3,199.92",
Communities & Local Government,DCLG,06/03/2015,Agency Staff,Neighbourhoods,CAPITA BUS. SERV. LTD (CON LAB),,Large,,,5106210815,Contingent Labour,Interim Manager,DL1 9HB,566.78,
Communities & Local Government,DCLG,06/03/2015,Agency Staff,Neighbourhoods,CAPITA BUS. SERV. LTD (CON LAB),,Large,,,5106210816,Contingent Labour,Interim Manager,DL1 9HB,"2,575.92",
Communities & Local Government,DCLG,06/03/2015,Agency Staff,Neighbourhoods,CAPITA BUS. SERV. LTD (CON LAB),,Large,,,5106210818,Contingent Labour,Interim and Specialist Contractor,DL1 9HB,"3,327.42",
Communities & Local Government,DCLG,06/03/2015,Current (non AEF) Grants to Local Authorities,Finance & Corporate Services,DURHAM & DARLINGTON FIRE RESCUE SER,,Public Bodies,,211684266,2100242019,,Regional Centre Centre Grant,DH1 1TW,"150,320.92",Yes
Communities & Local Government,DCLG,06/03/2015,Current (non AEF) Grants to Local Authorities,Finance & Corporate Services,GREATER LONDON AUTHORITY,,Large,,225353416,2100242007,,Regional Centre Centre Grant,SE10 1AP,"142,073.92",Yes
Communities & Local Government,DCLG,06/03/2015,Current (non AEF) Grants to Local Authorities,Finance & Corporate Services,GREATER MANCHESTER FIRE & RESCUE,,Public Bodies,,424873172,2100241993,,Regional Centre Centre Grant,M27 8US,"105,122.25",Yes
Communities & Local Government,DCLG,06/03/2015,Current Grants to Non Profit Bodies,Neighbourhoods,SCOFF PR LTD,,,,,5000283591,,Right to Manage,SW18 3BL,"2,464.00",Yes
Communities & Local Government,DCLG,06/03/2015,Current Grants to Non Profit Bodies,Neighbourhoods,SWINDON BC,,,,,2100251746,,Planning advisory Service,SN1 1TZ,"12,500.00",Yes
Communities & Local Government,DCLG,06/03/2015,Current Grants to Non Profit Bodies,Neighbourhoods,WELWYN HATFIELD COUNCIL,,Large,,211214929,2100251747,,Planning advisory Service,AL8 6AE,"12,500.00",Yes
Communities & Local Government,DCLG,06/03/2015,Fixed Maintenance,Finance & Corporate Services,BABCOCK CIVIL INFRASTRUCTURE LTD,,Large,,233110530,5106210813,Property Occupation,SW Taunton RCC Reactive Costs 2014-15,NG15 0DR,"2,777.29",
Communities & Local Government,DCLG,06/03/2015,"Furniture, Fittings and carpets",Finance & Corporate Services,AMARYLLIS LTD,,Medium,,672277696,5106210786,"Furniture, Fixtures and Fittings",JR683 12 Electronic Height Adj Desks,CM7 2GD,"2,034.77",
Communities & Local Government,DCLG,06/03/2015,Grant in Aid to NDPBs (non budget),Finance & Corporate Services,COMMISSION LOCAL ADMINISTRATION,,,,215271508,2100251669,,DEL budget contr re CLAE 14/15,SW1P 4QP,"1,032,000.00",Yes
Communities & Local Government,DCLG,06/03/2015,Grant in Aid to NDPBs (non budget),Finance & Corporate Services,VALUATION TRIBUNAL SERVICE,,,,211218366,2100251744,,Non domestic rates appeals,E1 8EU,"1,123,409.00",Yes
Communities & Local Government,DCLG,06/03/2015,IT - Service Contracts,Finance & Corporate Services,FUJITSU SERVICES LTD,,Large,,423375062,5106210728,IT Managed / Outsourced Services,MPLS WAN Project Resourcing (10122507),WA3 9BD,"2,426.00",
Communities & Local Government,DCLG,06/03/2015,IT - Service Contracts,Finance & Corporate Services,FUJITSU SERVICES LTD,,Large,,423375062,5106210728,IT Managed / Outsourced Services,phase 2 charges for PSN email,WA3 9BD,"35,335.00",
Communities & Local Government,DCLG,06/03/2015,IT - Service Contracts,Finance & Corporate Services,FUJITSU SERVICES LTD,,Large,,423375062,5106210802,IT Managed / Outsourced Services,MPLS WAN Project Resourcing (10122507),WA3 9BD,"10,178.04",
Communities & Local Government,DCLG,06/03/2015,IT - Service Contracts,Finance & Corporate Services,FUJITSU SERVICES LTD,,Large,,423375062,5106210841,IT Managed / Outsourced Services,PINS NR orders Q4 FY 2014/15,WA3 9BD,"2,186.00",
Communities & Local Government,DCLG,06/03/2015,IT - Service Contracts,Finance & Corporate Services,MARKLOGIC CORPORATION,,Large,,,5106210843,IT Managed / Outsourced Services,ML System Development & Set Up,CA 94070,"19,500.00",
Communities & Local Government,DCLG,06/03/2015,IT - Service Contracts,Localism,AIRWAVE SOLUTIONS LTD,,Large,,232603469,5106210639,IT Managed / Outsourced Services,Phase A England 2014/15,SL1 2EJ,"2,015.34",
Communities & Local Government,DCLG,06/03/2015,IT - Service Contracts,Localism,AIRWAVE SOLUTIONS LTD,,Large,,232603469,5106210672,IT Managed / Outsourced Services,Phase B England 2014/15,SL1 2EJ,"260,404.82",
Communities & Local Government,DCLG,06/03/2015,IT - Service Contracts,Localism,AIRWAVE SOLUTIONS LTD,,Large,,232603469,5106210673,IT Managed / Outsourced Services,Phase A England 2014/15,SL1 2EJ,"204,899.64",
Communities & Local Government,DCLG,06/03/2015,IT - Service Contracts,Localism,AIRWAVE SOLUTIONS LTD,,Large,,232603469,5106210673,IT Managed / Outsourced Services,Phase A Wales 2014/15,SL1 2EJ,"23,392.94",
Communities & Local Government,DCLG,06/03/2015,IT - Service Contracts,Localism,AIRWAVE SOLUTIONS LTD,,Large,,232603469,5106210673,IT Managed / Outsourced Services,Phase A Scotland 2014/15,SL1 2EJ,"53,550.12",
Communities & Local Government,DCLG,06/03/2015,IT - Service Contracts,Localism,AIRWAVE SOLUTIONS LTD,,Large,,232603469,5106210674,IT Managed / Outsourced Services,Phase B Wales 2014/15,SL1 2EJ,"32,295.06",
Communities & Local Government,DCLG,06/03/2015,IT - Service Contracts,Localism,AIRWAVE SOLUTIONS LTD,,Large,,232603469,5106210675,IT Managed / Outsourced Services,Phase A England 2014/15,SL1 2EJ,"1,027,758.55",
Communities & Local Government,DCLG,06/03/2015,IT - Service Contracts,Localism,AIRWAVE SOLUTIONS LTD,,Large,,232603469,5106210676,IT Managed / Outsourced Services,Phase A Scotland 2014/15,SL1 2EJ,"48,528.50",
Communities & Local Government,DCLG,06/03/2015,IT - Service Contracts,Localism,AIRWAVE SOLUTIONS LTD,,Large,,232603469,5106210677,IT Managed / Outsourced Services,Phase C England (MDT1A) 2014/15,SL1 2EJ,"108,987.17",
Communities & Local Government,DCLG,06/03/2015,IT - Service Contracts,Localism,AIRWAVE SOLUTIONS LTD,,Large,,232603469,5106210678,IT Managed / Outsourced Services,Phase A Wales 2014/15,SL1 2EJ,"141,205.28",
Communities & Local Government,DCLG,06/03/2015,IT - Service Contracts,Localism,VERIZON UK LTD,,Large,,346786171,5106210735,IT Managed / Outsourced Services,Fire Dedicated Hosting 14/15,RG2 6DA,"3,411.07",
Communities & Local Government,DCLG,06/03/2015,IT - Service Contracts,Localism,VERIZON UK LTD,,Large,,346786171,5106210736,IT Managed / Outsourced Services,Fire Dedicated Hosting 14/15,RG2 6DA,"3,411.07",
Communities & Local Government,DCLG,06/03/2015,IT - Service Contracts,Localism,VERIZON UK LTD,,Large,,346786171,5106210737,IT Managed / Outsourced Services,Fire Dedicated Hosting 14/15,RG2 6DA,"3,411.07",
Communities & Local Government,DCLG,06/03/2015,IT - Service Contracts,Localism,VERIZON UK LTD,,Large,,346786171,5106210738,IT Managed / Outsourced Services,Fire Dedicated Hosting 14/15,RG2 6DA,"3,411.07",
Communities & Local Government,DCLG,06/03/2015,IT - Service Contracts,Localism,VERIZON UK LTD,,Large,,346786171,5106210739,IT Managed / Outsourced Services,Fire Dedicated Hosting 14/15,RG2 6DA,"3,411.07",
Communities & Local Government,DCLG,06/03/2015,IT - Service Contracts,Localism,VERIZON UK LTD,,Large,,346786171,5106210740,IT Managed / Outsourced Services,Fire Dedicated Hosting 14/15,RG2 6DA,"3,411.07",
Communities & Local Government,DCLG,06/03/2015,IT - Service Contracts,Localism,VERIZON UK LTD,,Large,,346786171,5106210835,IT Managed / Outsourced Services,Fire Dedicated Hosting 14/15,RG2 6DA,"3,411.07",
Communities & Local Government,DCLG,06/03/2015,IT - Service Contracts,Localism,VERIZON UK LTD,,Large,,346786171,5106210837,IT Managed / Outsourced Services,Fire Dedicated Hosting 14/15,RG2 6DA,"3,411.07",
Communities & Local Government,DCLG,06/03/2015,IT - Service Contracts,Localism,VERIZON UK LTD,,Large,,346786171,5106210838,IT Managed / Outsourced Services,Fire Dedicated Hosting 14/15,RG2 6DA,"3,411.07",
Communities & Local Government,DCLG,06/03/2015,IT - Software Maintenance,Finance & Corporate Services,KAIZEN ASSOCIATES LTD,,Micro,,217482430,5106210812,IT Managed / Outsourced Services,SAP Application Support,SE1 6SW,"2,207.88",
Communities & Local Government,DCLG,06/03/2015,IT Consultancy,Finance & Corporate Services,INFO-ASSURE LTD,,Small,,,5106210789,Consultancy,LOGASnet Data Mart Security Accreditatio,GU14 0LX,"1,918.38",
Communities & Local Government,DCLG,06/03/2015,IT Maintenance,Finance & Corporate Services,NEW RICOH UK,,Large,,424537512,5106210827,ICT Services,Novation Agreement (confirmed value),NN4 7YB,"156,636.57",
Communities & Local Government,DCLG,06/03/2015,Management Consultancy,Localism,LOCALITY,,Medium,,347998312,5106210825,Business Process Outsourcing Services,Mobilisation events,N1 6DR,514.99,
Communities & Local Government,DCLG,06/03/2015,Printing,"Strategy, Communications and Private Office",WILLIAMS LEA LIMITED,,Large,,393456413,5106210814,Printing Services,Year 3 Print services (0% VAT),NR3 1PD,752.50,
Communities & Local Government,DCLG,06/03/2015,Professional services,Finance & Corporate Services,DAWES & FRASER CONSULTING LTD,,Small,,,5106210826,Financial,Contract and Technical support for IPC C,SE20 7BS,"4,266.00",
Communities & Local Government,DCLG,06/03/2015,Professional services,Finance & Corporate Services,E C HARRIS LLP,,Large,,,5106210810,Construction Service Providers,PAMU Com 144 PAMU Transformation,N1 9AB,"24,000.00",
Communities & Local Government,DCLG,06/03/2015,Professional services,Finance & Corporate Services,GVA GRIMLEY LTD,,Large,,210158990,5106210762,Business Support,Com 162 Sen Surveyor Est Rationalisation,B1 2JB,"5,400.00",
Communities & Local Government,DCLG,06/03/2015,Professional services,Finance & Corporate Services,GVA GRIMLEY LTD,,Large,,210158990,5106210763,Business Support,Com 161 Sen Surveyor Est Rationalisation,B1 2JB,"3,240.00",
Communities & Local Government,DCLG,06/03/2015,Removals and Porterage,Finance & Corporate Services,AMARYLLIS LTD,,Medium,,672277696,5106210832,Transport,JR689 Rivergate Filing Move Option TBC,CM7 2GD,"1,321.68",
Communities & Local Government,DCLG,06/03/2015,Removals and Porterage,Finance & Corporate Services,JOHNSONS BUSINESS MOVES,,Medium,,,5106210787,Transport,Reloc Mtg Rm Furniture to Hempstead Hse,CW7 3PD,"3,223.00",
Communities & Local Government,DCLG,06/03/2015,Steady State Service Provision,Finance & Corporate Services,VODAFONE LTD FORMELY CABLE  & WIREL,,Large,,239869688,5106210819,Business Process Outsourcing Services,PSN WAN Services FY14/15,MK3 5JP,"35,653.99",
Communities & Local Government,DCLG,06/03/2015,Steady State Service Provision,Neighbourhoods,IFC CONSULTING LTD,,Large,,,5106210830,Business Process Outsourcing Services,Year 2 Fieldwork and Interim Reporting,EC4M 5SB,"43,609.68",
Communities & Local Government,DCLG,06/03/2015,Steady State Service Provision,Neighbourhoods,LOCALITY,,Medium,,347998312,5106210825,Business Process Outsourcing Services,Direct Support,N1 6DR,"141,379.23",
Communities & Local Government,DCLG,06/03/2015,Steady State Service Provision,Neighbourhoods,LOCALITY,,Medium,,347998312,5106210825,Business Process Outsourcing Services,Grant Administration,N1 6DR,"8,544.16",
Communities & Local Government,DCLG,06/03/2015,Steady State Service Provision,Neighbourhoods,LOCALITY,,Medium,,347998312,5106210842,Business Process Outsourcing Services,Programme Delivery,N1 6DR,"36,915.65",
Communities & Local Government,DCLG,06/03/2015,Steady State Service Provision,Neighbourhoods,LOCALITY,,Medium,,347998312,5106210842,Business Process Outsourcing Services,Sharing And Learning,N1 6DR,"4,375.00",
Communities & Local Government,DCLG,06/03/2015,Training,Finance & Corporate Services,LSR TRAINING AND DEVELOPMENT,,Micro,,,5106210806,Development and Training,Module 1: Authentic Senior Leadership wi,S44 6UQ,830.00,
Communities & Local Government,DCLG,06/03/2015,Training,Finance & Corporate Services,LSR TRAINING AND DEVELOPMENT,,Micro,,,5106210806,Development and Training,"Module 2: Managing Staff, Contractors an",S44 6UQ,830.00,
Communities & Local Government,DCLG,06/03/2015,Training,Finance & Corporate Services,LSR TRAINING AND DEVELOPMENT,,Micro,,,5106210806,Development and Training,Module 3: Leading Effective Relationship,S44 6UQ,830.00,
Communities & Local Government,DCLG,06/03/2015,Training,Neighbourhoods,R T P I CONFERENCES,,Medium,,504955154,5106210809,Development and Training,Environmental Impact Assessment Feb 2015,EC1V 1NY,"2,000.00",
Communities & Local Government,DCLG,06/03/2015,Travel and Subsistence Account,"Strategy, Communications and Private Office",DIAL A CAB,,Medium,,225338235,2100251749,Business Travel,Travel February 2015,N1 6AH,80.55,
Communities & Local Government,DCLG,06/03/2015,Travel and Subsistence Account,"Strategy, Communications and Private Office",DIAL A CAB,,Medium,,225338235,2100251749,Business Travel,Travel February 2015,N1 6AH,77.02,
Communities & Local Government,DCLG,06/03/2015,Travel and Subsistence Account,"Strategy, Communications and Private Office",DIAL A CAB,,Medium,,225338235,2100251749,Business Travel,Travel February 2015,N1 6AH,488.20,
Communities & Local Government,DCLG,06/03/2015,Travel and Subsistence Account,"Strategy, Communications and Private Office",DIAL A CAB,,Medium,,225338235,2100251749,Business Travel,Travel February 2015,N1 6AH,54.67,
Communities & Local Government,DCLG,06/03/2015,Work In Progress Pre-Cert 40373 Spend,Neighbourhoods,BOLSOVER DISTRICT COUNCIL,,Large,,,7600012101,,Revenue Grant To Be Paid,S44 6NF,"2,888.95",Yes
Communities & Local Government,DCLG,06/03/2015,Work In Progress Pre-Cert 40373 Spend,Neighbourhoods,EXPERIENCE NOTTINGHAMSHIRE LTD,,Small,,,7600012098,,Revenue Grant To Be Paid,NG1 1JU,"20,252.23",Yes
Communities & Local Government,DCLG,06/03/2015,Work In Progress Pre-Cert 40373 Spend,Neighbourhoods,SERCO REGIONAL SERVICES LTD,,,,,7600012097,,Revenue Grant To Be Paid,PL6 8LU,"97,566.77",Yes
Communities & Local Government,DCLG,06/03/2015,Work In Progress Pre-Cert 40373 Spend,Neighbourhoods,SOUTH DEVON COLLEGE,,,,,7600012102,,Revenue Grant To Be Paid,TQ4 7EJ,"34,420.58",Yes
Communities & Local Government,DCLG,06/03/2015,Work In Progress Pre-Cert 40373 Spend,Neighbourhoods,WSX ENTERPRISE LIMITED,,,,,7600012100,,Revenue Grant To Be Paid,PO16 7BJ,"73,451.20",Yes
Communities & Local Government,DCLG,06/03/2015,Work In Progress Pre-Cert 40467 Spend,Neighbourhoods,BOLSOVER DISTRICT COUNCIL,,Large,,,7600012101,,Capital Grant To Be Paid,S44 6NF,47.66,Yes
Communities & Local Government,DCLG,06/03/2015,Work In Progress Pre-Cert 40467 Spend,Neighbourhoods,SOUTH DEVON COLLEGE,,,,,7600012102,,Capital Grant Clawback Offset,TQ4 7EJ,"-20,000.00",Yes
Communities & Local Government,DCLG,09/03/2015,Advertising,"Strategy, Communications and Private Office",TULLO MARSHALL WARREN LTD,,Medium,,,5106210858,Advertising,Right to Buy Marketing Contract,W1F 9NB,"29,625.33",
Communities & Local Government,DCLG,09/03/2015,Agency Staff,Finance & Corporate Services,ALLEN LANE FINANCIAL RECRUITMENT,,Medium,Yes,738603443,5106210857,Contingent Labour,Interim Accountant (Ext 02),,"3,416.47",
Communities & Local Government,DCLG,09/03/2015,Current (non AEF) Grants to Local Authorities,Troubled Families,WESTMINSTER CITY CNCL,,,,229845706,5000279202,,Overpayment of Grant recovered by Exchequer,SW1E 6QP,"-176,000.00",Yes
Communities & Local Government,DCLG,09/03/2015,Current (non AEF) Grants to Local Authorities,Troubled Families,WESTMINSTER CITY CNCL,,,,229845706,5000279203,,Overpayment of Grant recovered by Exchequer,SW1E 6QP,"-36,000.00",Yes
Communities & Local Government,DCLG,09/03/2015,Current Grants to Non Profit Bodies,Neighbourhoods,BRITISH PROPERTY FEDERATION,,Small,,,2100251748,,Fragmented ownerership Federation,SW1Y 4QX,"75,000.00",Yes
Communities & Local Government,DCLG,09/03/2015,Electricity,Finance & Corporate Services,EDF ENERGY 1 LIMITED,,Large,,230840469,5106210863,Energy,SW Taunton Electricity 2014-15,PL3 5XQ,"2,216.15",
Communities & Local Government,DCLG,09/03/2015,Electricity,Finance & Corporate Services,EDF ENERGY 1 LIMITED,,Large,,230840469,5106210869,Energy,EoE Waterbeach Electricity 2013-14 0%VAT,PL3 5XQ,9.77,
Communities & Local Government,DCLG,09/03/2015,Electricity,Finance & Corporate Services,EDF ENERGY 1 LIMITED,,Large,,230840469,5106210869,Energy,EoE Waterbeach Electricity 2014-15,PL3 5XQ,"2,344.00",
Communities & Local Government,DCLG,09/03/2015,Electricity,Finance & Corporate Services,EDF ENERGY 1 LIMITED,,Large,,230840469,5106210871,Energy,Y&H Wakefield Electricity 2014-15,PL3 5XQ,"2,243.33",
Communities & Local Government,DCLG,09/03/2015,Electricity,Finance & Corporate Services,EDF ENERGY 1 LIMITED,,Large,,230840469,5106210910,Energy,EM Castle Don Electricity 2014-15,PL3 5XQ,"2,728.60",
Communities & Local Government,DCLG,09/03/2015,IT - Service Contracts,Finance & Corporate Services,FUJITSU SERVICES LTD,,Large,,423375062,5106210885,IT Managed / Outsourced Services,PINS NR orders Q4 FY 2014/15,WA3 9BD,543.40,
Communities & Local Government,DCLG,09/03/2015,IT - Service Contracts,Finance & Corporate Services,TRIAD GROUP PLC,,Medium,,,5106210851,IT Managed / Outsourced Services,Discovery Phase Configure MSSharePoint,GU7 1XE,"8,400.00",
Communities & Local Government,DCLG,09/03/2015,Legal Fees,Finance & Corporate Services,TREASURY SOLICITOR,,Public Bodies,,215580680,2100251767,Legal,Legal Advice,WC2B 4TS,"11,000.00",
Communities & Local Government,DCLG,09/03/2015,Licence Fees/Levies,Finance & Corporate Services,PLANNING INSPECTORATE,,Public Bodies,,213918365,5106210917,Business Support,TQH TV Licence Fee 14-15,BS1 6PN,145.50,
Communities & Local Government,DCLG,09/03/2015,Medals,Localism,ROYAL MINT,,Public Bodies,,211722976,5106210876,Learning and Development Materials,FireFighter Medals for LS  Good Conduct,CF72 8YT,302.40,
Communities & Local Government,DCLG,09/03/2015,Medals,Localism,ROYAL MINT,,Public Bodies,,211722976,5106210902,Learning and Development Materials,FireFighter Medals for LS  Good Conduct,CF72 8YT,428.40,
Communities & Local Government,DCLG,09/03/2015,Medals,Localism,ROYAL MINT,,Public Bodies,,211722976,5106210908,Learning and Development Materials,FireFighter Medals for LS  Good Conduct,CF72 8YT,554.40,
Communities & Local Government,DCLG,09/03/2015,Mobile phone costs,Finance & Corporate Services,PLANNING INSPECTORATE,,Public Bodies,,213918365,5106210917,Business Support,TQH Vodafone Charges 14-15,BS1 6PN,101.19,
Communities & Local Government,DCLG,09/03/2015,Online Database Information Retrieval,Finance & Corporate Services,DUN & BRADSTREET LTD,,Large,,229515499,5106210920,ICT Services,D&B reports additional usage,SL7 1AJ,"1,118.92",
Communities & Local Government,DCLG,09/03/2015,Professional services,Finance & Corporate Services,GVA GRIMLEY LTD,,Large,,210158990,5106210790,Business Support,Com 153 Acquisitn 3rd/4th Flr High Trees,B1 2JB,"7,861.57",
Communities & Local Government,DCLG,09/03/2015,Publicity,"Strategy, Communications and Private Office",PRESS ASSOCIATION,,Large,,217191704,5106210808,Advertising,PRESS ASSOCIATION (PA) 2014-17,DN14 7YH,"1,325.74",
Communities & Local Government,DCLG,09/03/2015,Research,Finance & Corporate Services,NATIONAL CENTRE FOR SOCIAL RESEARCH,,Large,,424047426,5106210914,Research,Research - English Housing Survey,EC1V 0AX,"6,780.00",
Communities & Local Government,DCLG,09/03/2015,Research,Finance & Corporate Services,NATIONAL CENTRE FOR SOCIAL RESEARCH,,Large,,424047426,5106210914,Research,Research - English Housing Survey,EC1V 0AX,"297,348.15",
Communities & Local Government,DCLG,09/03/2015,Research,Neighbourhoods,BUILDING RESEARCH ESTABLISHMENT,,Large,,896495033,5106210845,Research,T&S costs Contract Duration,WD25 9XX,551.10,
Communities & Local Government,DCLG,09/03/2015,Services provided by other Govt Orgs,Finance & Corporate Services,CABINET OFFICE,,Public Bodies,,349606306,5106210868,Financial,CS Resourcing (core services),CF14 3UW,"13,990.98",Yes
Communities & Local Government,DCLG,09/03/2015,Services provided by other Govt Orgs,Finance & Corporate Services,CABINET OFFICE,,Public Bodies,,349606306,5106210868,Financial,Civil Service learning,CF14 3UW,"21,331.64",Yes
Communities & Local Government,DCLG,09/03/2015,Services provided by other Govt Orgs,Finance & Corporate Services,CABINET OFFICE,,Public Bodies,,349606306,5106210868,Financial,CS Employee Policy,CF14 3UW,"21,334.83",Yes
Communities & Local Government,DCLG,09/03/2015,Services provided by other Govt Orgs,Finance & Corporate Services,CABINET OFFICE,,Public Bodies,,349606306,5106210868,Financial,CS organisational development,CF14 3UW,0.01,Yes
Communities & Local Government,DCLG,09/03/2015,Services provided by other Govt Orgs,Finance & Corporate Services,CABINET OFFICE,,Public Bodies,,349606306,5106210868,Financial,Organisational Development and designe,CF14 3UW,"1,975.82",Yes
Communities & Local Government,DCLG,09/03/2015,Steady State Service Provision,Localism,LOCALITY,,Medium,,347998312,5106210879,Business Process Outsourcing Services,Neighbourhood Planning & CRTB,N1 6DR,"10,092.20",
Communities & Local Government,DCLG,09/03/2015,Telecoms equipment (non-capitalised),Finance & Corporate Services,DAMOVO UK LTD,,Large,,221481042,5106210852,Telecoms,WiFi for Regional Offices,RH12 4QP,"1,104.00",
Communities & Local Government,DCLG,09/03/2015,Telecoms equipment (non-capitalised),Finance & Corporate Services,DAMOVO UK LTD,,Large,,221481042,5106210918,Telecoms,Hardware,RH12 4QP,"1,638.72",
Communities & Local Government,DCLG,09/03/2015,Telecoms equipment (non-capitalised),Finance & Corporate Services,DAMOVO UK LTD,,Large,,221481042,5106210918,Telecoms,PINS 100 Teleworkers CCN030,RH12 4QP,"1,707.00",
Communities & Local Government,DCLG,09/03/2015,Telephone call costs,Finance & Corporate Services,PLANNING INSPECTORATE,,Public Bodies,,213918365,5106210917,Business Support,TQH BT Lines 14-15,BS1 6PN,"2,062.77",
Communities & Local Government,DCLG,09/03/2015,Web Services,"Strategy, Communications and Private Office",DEXTROUS WEB LTD,,Micro,,211267270,5106210915,ICT Services,DCLG Intranet Hosting & Support,N1 7NG,874.18,
Communities & Local Government,DCLG,09/03/2015,Web Services,"Strategy, Communications and Private Office",MEMSET,,Small,,641014779,5106210913,ICT Services,Mini server hosting Feb 2015 to Feb 2016,GU2 7YD,437.40,
Communities & Local Government,DCLG,09/03/2015,Work In Progress Pre-Cert 40373 Spend,Neighbourhoods,GENERATOR,,Micro,,,7600012105,,Revenue Grant To Be Paid,NE1 2PQ,"11,311.72",Yes
Communities & Local Government,DCLG,09/03/2015,Work In Progress Pre-Cert 40373 Spend,Neighbourhoods,SES,,,,,7600012106,,Revenue Grant To Be Paid,SR1 8EL,"36,353.00",Yes
Communities & Local Government,DCLG,09/03/2015,Work In Progress Pre-Cert 40373 Spend,Neighbourhoods,UNIVERSITY COLLEGE FALMOUTH,,,,,7600012103,,Revenue Grant To Be Paid,TR11 4RH,"405,898.11",Yes
Communities & Local Government,DCLG,09/03/2015,Work In Progress Pre-Cert 40373 Spend,Neighbourhoods,UNIVERSITY OF PLYMOUTH GENERAL A/C,,,,,7600012107,,Revenue Grant To Be Paid,PL4 8AA,"153,636.99",Yes
Communities & Local Government,DCLG,09/03/2015,Work In Progress Pre-Cert 40467 Spend,Neighbourhoods,SUNDERLAND CITY COUNCIL,,,,,7600012104,,Capital Grant Clawback Offset,SR2 7DN,-0.97,Yes
Communities & Local Government,DCLG,09/03/2015,Work In Progress Pre-Cert 40467 Spend,Neighbourhoods,SUNDERLAND CITY COUNCIL,,,,,7600012104,,Capital Grant To Be Paid,SR2 7DN,"441,673.62",Yes
Communities & Local Government,DCLG,10/03/2015,Current (non AEF) Grants to Local Authorities,Neighbourhoods,FAREHAM BC,,Public Bodies,,228474144,2100251830,,LA s Housing Development,PO16 7PU,"375,000.00",Yes
Communities & Local Government,DCLG,10/03/2015,IT - Service Contracts,Finance & Corporate Services,FUJITSU SERVICES LTD,,Large,,423375062,5106210957,IT Managed / Outsourced Services,DCLG NR Orders Q4 FY 2014/15,WA3 9BD,"2,500.00",
Communities & Local Government,DCLG,10/03/2015,IT - Service Contracts,Finance & Corporate Services,FUJITSU SERVICES LTD,,Large,,423375062,5106210977,IT Managed / Outsourced Services,PINS NR orders Q4 FY 2014/15,WA3 9BD,"-2,186.00",
Communities & Local Government,DCLG,10/03/2015,IT - Service Contracts,Finance & Corporate Services,MARKLOGIC CORPORATION,,Large,,,5106210953,IT Managed / Outsourced Services,ML System Development & Set Up,CA 94070,"37,350.00",
Communities & Local Government,DCLG,10/03/2015,IT - Software Maintenance,Finance & Corporate Services,METHODS CONSULTING LTD,,Medium,,505275578,5106210855,IT Managed / Outsourced Services,PIMS Application Support 17mths,WC2H 8AD,"24,000.00",
Communities & Local Government,DCLG,10/03/2015,IT - Software Maintenance,Finance & Corporate Services,METHODS CONSULTING LTD,,Medium,,505275578,5106210943,IT Managed / Outsourced Services,PIMS Application Support 17mths,WC2H 8AD,"24,000.00",
Communities & Local Government,DCLG,10/03/2015,IT Maintenance,Finance & Corporate Services,NEW RICOH UK,,Large,,424537512,5106210967,ICT Services,MFD Service Charges FY14/15,NN4 7YB,"27,696.20",
Communities & Local Government,DCLG,10/03/2015,IT Maintenance,Finance & Corporate Services,NEW RICOH UK,,Large,,424537512,5106210969,ICT Services,MFD Service Charges FY14/15,NN4 7YB,"11,186.17",
Communities & Local Government,DCLG,10/03/2015,Legal Fees,Finance & Corporate Services,TREASURY SOLICITORS DEPT,,Public Bodies,,215580680,5106210944,Legal,Legal Advice,WC2B 4TS,"1,287.31",
Communities & Local Government,DCLG,10/03/2015,Physical Storage,Finance & Corporate Services,IRON MOUNTAIN (UK) LIMITED,,Large,,501338354,5106210962,Warehousing and Storage,Offsite storage - tapes 2014-15,EH54 7DF,392.32,
Communities & Local Government,DCLG,10/03/2015,Professional services,Localism,VALUATION OFFICE AGENCY,,Public Bodies,,215253886,2100251829,Environmental Services,Valuation Office Agency,W1B 5BU,"10,083,333.00",
Communities & Local Government,DCLG,10/03/2015,Publicity,"Strategy, Communications and Private Office",GORKANA GROUP LTD,,Large,,210089876,5106210954,Advertising,Press cuttings,EC1Y 8QE,"3,571.97",
Communities & Local Government,DCLG,10/03/2015,Services provided by other Govt Orgs,Finance & Corporate Services,CABINET OFFICE,,Public Bodies,,349606306,2100251895,Financial,REF: TRANSACTION 250011820,CF14 3UW,"3,799.00",Yes
Communities & Local Government,DCLG,10/03/2015,Services provided by other Govt Orgs,Finance & Corporate Services,CABINET OFFICE,,Public Bodies,,349606306,2100251975,Financial,REF: TRANSACTION 250011820,CF14 3UW,"-3,799.00",Yes
Communities & Local Government,DCLG,10/03/2015,Software Licences,Finance & Corporate Services,BYTES SOFTWARE SERVICES LTD,,Medium,,225273754,5106210946,Software,Microsoft Prjct 2013 SNGL MVL,KT22 7TW,"1,431.96",
Communities & Local Government,DCLG,10/03/2015,Software Licences,Finance & Corporate Services,MARKLOGIC CORPORATION,,Large,,,5106210956,Software,Discovery Phase Wks ERDF14-20 Program,CA 94070,"70,500.00",
Communities & Local Government,DCLG,10/03/2015,Steady State Service Provision,Neighbourhoods,TRIBAL EDUCATION-MANAGEMENT FEES,,Large,,221445146,5106210952,Business Process Outsourcing Services,Payment to Tribal re Empty Homes Community Fund for DCLG,BS2 8RR,"4,249.80",
Communities & Local Government,DCLG,10/03/2015,Subscriptions,Finance & Corporate Services,WHITEHALL & INDUSTRY GROUP,,Small,,385853957,5106210811,Subscriptions and Admissions,Renewal of Annual Membership WIG 2015-16,SW1H 9EX,"4,600.00",
Communities & Local Government,DCLG,10/03/2015,Training,Finance & Corporate Services,CAPITA BUS. SERV. LTD (CSL),,Large,,215580993,5106210949,Development and Training,Change Leaders for Senior Managers (G6/7,DL1 9HB,"3,409.00",
Communities & Local Government,DCLG,10/03/2015,Training,Finance & Corporate Services,EML LEARNING,,Micro,,218614350,5106210976,Development and Training,GES Communicating with Ministers and Pol,LS1 9PX,700.00,
Communities & Local Government,DCLG,10/03/2015,Training,Finance & Corporate Services,INSTITUTE OF INTERNAL AUDITORS,,Small,,292669967,5106210975,Development and Training,IIA South West Annual Conference,SW4 7BX,365.00,
Communities & Local Government,DCLG,10/03/2015,Vehicle hire,Finance & Corporate Services,CYCLESCHEME LTD,,Large,,345537935,5106210955,Vehicle Hire and Lease,Salaried Cycle to work scheme,BA1 2LN,"1,308.97",
Communities & Local Government,DCLG,10/03/2015,Vehicle Maintenance,Localism,BABCOCK CRITICAL SERVICES LTD,,Large,,215597451,5106210958,Fleet Management,Planned Vehicle Maintenance 14/15,NG15 0DR,"551,329.19",
Communities & Local Government,DCLG,10/03/2015,Water,Finance & Corporate Services,SEVERN TRENT WATER LTD,,Large,,234404465,5106210963,Operation of Water Supplies and Distribution,2014/15 St Philips B ham Annual Water,CV3 9FJ,674.71,
Communities & Local Government,DCLG,10/03/2015,Work In Progress Pre-Cert 40373 Spend,Neighbourhoods,BLACKBURN WITH DARWEN BC,,,,,2100251910,,Revenue Grant To Be Paid,BB1 7DY,"21,301.50",Yes
Communities & Local Government,DCLG,10/03/2015,Work In Progress Pre-Cert 40373 Spend,Neighbourhoods,BLACKBURN WITH DARWEN BC,,,,,2300002207,,Revenue Grant Clawback Offset,BB1 7DY,"-21,301.50",Yes
Communities & Local Government,DCLG,10/03/2015,Work In Progress Pre-Cert 40373 Spend,Neighbourhoods,COMMUNITY MEDIA SOLUTIONS LTD,,,,,7600012112,,Revenue Grant To Be Paid,S1 2BX,"21,262.60",Yes
Communities & Local Government,DCLG,10/03/2015,Work In Progress Pre-Cert 40373 Spend,Neighbourhoods,E FACTOR ENTERPRISE (NEL) LTD,,Small,,,7600012110,,Revenue Grant To Be Paid,DN34 5BQ,"24,541.91",Yes
Communities & Local Government,DCLG,10/03/2015,Work In Progress Pre-Cert 40373 Spend,Neighbourhoods,OCEAN STUDIOS,,,,,7600012113,,Revenue Grant To Be Paid,PL1 3RP,"9,139.27",Yes
Communities & Local Government,DCLG,10/03/2015,Work In Progress Pre-Cert 40373 Spend,Neighbourhoods,RTC NORTH LTD,,,,,7600012109,,Revenue Grant To Be Paid,SR5 3HD,"71,979.78",Yes
Communities & Local Government,DCLG,10/03/2015,Work In Progress Pre-Cert 40373 Spend,Neighbourhoods,YTKO LIMITED,,,,,7600012108,,Revenue Grant To Be Paid,CB4 2QH,"26,975.60",Yes
Communities & Local Government,DCLG,10/03/2015,Work In Progress Pre-Cert 40373 Spend,Neighbourhoods,YTKO LIMITED,,,,,7600012116,,Revenue Grant Clawback Offset,CB4 2QH,-112.34,Yes
Communities & Local Government,DCLG,10/03/2015,Work In Progress Pre-Cert 40373 Spend,Neighbourhoods,YTKO LIMITED,,,,,7600012116,,Revenue Grant To Be Paid,CB4 2QH,"24,278.69",Yes
Communities & Local Government,DCLG,10/03/2015,Work In Progress Pre-Cert 40467 Spend,Neighbourhoods,APPLE AVIATION LTD,,,,,7600012115,,Capital Grant To Be Paid,WA7 3EH,"37,950.62",Yes
Communities & Local Government,DCLG,10/03/2015,Work In Progress Pre-Cert 40467 Spend,Neighbourhoods,BRITISH TELECOMMUNICATIONS PLC,,,,,7600012114,,Capital Grant To Be Paid,EC1A 7AJ,"5,763,936.89",Yes
Communities & Local Government,DCLG,10/03/2015,Work In Progress Pre-Cert 40467 Spend,Neighbourhoods,NORTH EAST THEATRE TRUST,,,,,7600012111,,Capital Grant To Be Paid,NE1 3DQ,"45,020.00",Yes
Communities & Local Government,DCLG,10/03/2015,Work In Progress Pre-Cert 40467 Spend,Neighbourhoods,OCEAN STUDIOS,,,,,7600012113,,Capital Grant To Be Paid,PL1 3RP,"226,965.42",Yes
Communities & Local Government,DCLG,11/03/2015,Agency Staff,Neighbourhoods,CAPITA RESOURCING LTD,,Large,,215581006,5106210981,Contingent Labour,Specialist staff (commercial finance),SL6 1DP,"3,959.94",
Communities & Local Government,DCLG,11/03/2015,Conferences and Meeting Facilities,Troubled Families,LOCAL GOVERNMENT ASSOCIATION,,Public Bodies,,763817103,5106210982,Business Travel Accommodation,TF Wave2 Early Starter session 9 Dec 14,SW1P 3HZ,576.00,
Communities & Local Government,DCLG,11/03/2015,Courier Services,Finance & Corporate Services,SWISS POST SOLUTIONS,,Large,,,5106210945,Office Solutions,Offsite Mail Screening Screening Service,TW10 6TP,"5,610.13",
Communities & Local Government,DCLG,11/03/2015,Grant in Aid to NDPBs (non budget),Neighbourhoods,HOMES & COMMUNITIES AGENCY,,Public Bodies,,215576860,2100251887,,HCA Grant in Aid for March 2015,NE11 0NA,"428,140,456.00",Yes
Communities & Local Government,DCLG,11/03/2015,IT - Service Contracts,Finance & Corporate Services,LOCKHEED MARTIN BUSINESS TECH SOLUT,,Large,,399909910,5106210988,IT Managed / Outsourced Services,Monthly service cost 2013/14/15,PA4 9LH,"42,400.00",
Communities & Local Government,DCLG,11/03/2015,IT - Service Contracts,Finance & Corporate Services,LOCKHEED MARTIN BUSINESS TECH SOLUT,,Large,,399909910,5106210581,IT Managed / Outsourced Services,CR126 & CR129 Irregularity - Refund of g,PA4 9LH,"-1,487.50",
Communities & Local Government,DCLG,11/03/2015,IT - Service Contracts,Finance & Corporate Services,LOCKHEED MARTIN BUSINESS TECH SOLUT,,Large,,399909910,5106210582,IT Managed / Outsourced Services,CR130 Change calculations to the commitm,PA4 9LH,"-1,002.50",
Communities & Local Government,DCLG,11/03/2015,IT - Service Contracts,Finance & Corporate Services,LOCKHEED MARTIN BUSINESS TECH SOLUT,,Large,,399909910,5106210585,IT Managed / Outsourced Services,CR117 - Updating Programme-Cart 10120052,PA4 9LH,"-5,222.50",
Communities & Local Government,DCLG,11/03/2015,IT - Service Contracts,Finance & Corporate Services,LOCKHEED MARTIN BUSINESS TECH SOLUT,,Large,,399909910,5106210586,IT Managed / Outsourced Services,CR127 Full DR Test for MCIS,PA4 9LH,-410.00,
Communities & Local Government,DCLG,11/03/2015,IT - Service Contracts,Finance & Corporate Services,LOCKHEED MARTIN BUSINESS TECH SOLUT,,Large,,399909910,5106210587,IT Managed / Outsourced Services,CR128 Changes to Visitor Roles and proce,PA4 9LH,-690.00,
Communities & Local Government,DCLG,11/03/2015,IT - Service Contracts,Finance & Corporate Services,LOCKHEED MARTIN BUSINESS TECH SOLUT,,Large,,399909910,5106210588,IT Managed / Outsourced Services,MCISDev Update SAPAccess,PA4 9LH,"-1,730.00",
Communities & Local Government,DCLG,11/03/2015,IT - Service Contracts,Finance & Corporate Services,LOCKHEED MARTIN BUSINESS TECH SOLUT,,Large,,399909910,5106210589,IT Managed / Outsourced Services,CR125 A13 Visits - Deferring declaration,PA4 9LH,"-2,005.00",
Communities & Local Government,DCLG,11/03/2015,IT - Service Contracts,Finance & Corporate Services,LOCKHEED MARTIN BUSINESS TECH SOLUT,,Large,,399909910,5106210727,IT Managed / Outsourced Services,CR133:Change SAP email distribution list,PA4 9LH,"4,995.00",
Communities & Local Government,DCLG,11/03/2015,Management Consultancy,Neighbourhoods,DTZ DEBENHAM TIE LEUNG,,Large,,215585409,5106210996,Consultancy,EZ   Sheffield SLA DTZ (2)14,B4 6AJ,"4,140.00",
Communities & Local Government,DCLG,11/03/2015,Office machinery consumables,Finance & Corporate Services,X M A LTD,,Large,,298484148,5106210979,Office Supplies,Delweekly Longbow Hp Black Print Cartrid,NG11 7EP,286.62,
Communities & Local Government,DCLG,11/03/2015,Office machinery consumables,Finance & Corporate Services,X M A LTD,,Large,,298484148,5106210979,Office Supplies,Delweekly Longbow Hp Colour Laserjet 470,NG11 7EP,563.98,
Communities & Local Government,DCLG,11/03/2015,Research,Finance & Corporate Services,ECORYS UK LTD,,Medium,,,5106210997,Research,Research - Troubled Families,B1 2RA,"20,179.20",
Communities & Local Government,DCLG,11/03/2015,Research,Neighbourhoods,BUILDING RESEARCH ESTABLISHMENT,,Large,,896495033,5106210980,Research,Call off Contract Maintenance,WD25 9XX,2.40,
Communities & Local Government,DCLG,11/03/2015,Research,Neighbourhoods,BUILDING RESEARCH ESTABLISHMENT,,Large,,896495033,5106210980,Research,Building Regulations Research Project,WD25 9XX,"13,576.80",
Communities & Local Government,DCLG,11/03/2015,Telecoms equipment (non-capitalised),Finance & Corporate Services,DAMOVO UK LTD,,Large,,221481042,5106210884,Telecoms,advance monthly service charge for April-Damovo Telephony,RH12 4QP,"123,468.60",
Communities & Local Government,DCLG,11/03/2015,Training,Finance & Corporate Services,CAPITA BUS. SERV. LTD (CSL),,Large,,215580993,5106210212,Development and Training,Briefings and Submissions,DL1 9HB,209.00,
Communities & Local Government,DCLG,11/03/2015,Work In Progress Pre-Cert 40373 Spend,Neighbourhoods,BASSETLAW DISTRICT COUNCIL,,Large,,,7600012117,,Revenue Grant Clawback Offset,S81 2AH,-44.63,Yes
Communities & Local Government,DCLG,11/03/2015,Work In Progress Pre-Cert 40373 Spend,Neighbourhoods,BASSETLAW DISTRICT COUNCIL,,Large,,,7600012117,,Revenue Grant To Be Paid,S81 2AH,"15,177.46",Yes
Communities & Local Government,DCLG,11/03/2015,Work In Progress Pre-Cert 40373 Spend,Neighbourhoods,BASSETLAW DISTRICT COUNCIL,,Large,,,7600012122,,Revenue Grant To Be Paid,S81 2AH,"3,387.69",Yes
Communities & Local Government,DCLG,11/03/2015,Work In Progress Pre-Cert 40373 Spend,Neighbourhoods,BRAUNSTONE FOUNDATION,,Small,,,7600012119,,Revenue Grant To Be Paid,LE3 1HR,"23,170.90",Yes
Communities & Local Government,DCLG,11/03/2015,Work In Progress Pre-Cert 40373 Spend,Neighbourhoods,CASE-DA,,Micro,,,7600012120,,Revenue Grant To Be Paid,LE1 7EA,"10,429.94",Yes
Communities & Local Government,DCLG,11/03/2015,Work In Progress Pre-Cert 40373 Spend,Neighbourhoods,COMMUNITY ACTION DERBY,,,,,7600012118,,Revenue Grant To Be Paid,DE1 2GT,"4,855.93",Yes
Communities & Local Government,DCLG,11/03/2015,Work In Progress Pre-Cert 40373 Spend,Neighbourhoods,UNIVERSITY OF PLYMOUTH GENERAL A/C,,,,,7600012121,,Revenue Grant To Be Paid,PL4 8AA,"22,060.63",Yes
Communities & Local Government,DCLG,11/03/2015,Work In Progress Pre-Cert 40373 Spend,Neighbourhoods,UNIVERSITY OF PLYMOUTH GENERAL A/C,,,,,7600012123,,Revenue Grant To Be Paid,PL4 8AA,"17,871.33",Yes
Communities & Local Government,DCLG,12/03/2015,Cap Grants to Local Authorities (DEL),Neighbourhoods,GREATER LONDON AUTHORITY,,Large,,225353416,2100251828,,EZ Growth Capital - Halton BC,SE10 1AP,"4,500,000.00",Yes
Communities & Local Government,DCLG,12/03/2015,Cap Grants to Local Authorities (DEL),Neighbourhoods,PORTSMOUTH CITY COUNCIL,,Public Bodies,,211183082,2100251827,,EZ Solent - Portsmouth DC,PO1 2BG,"1,090,000.00",Yes
Communities & Local Government,DCLG,12/03/2015,Cap Grants to Private Sector Companies,Neighbourhoods,BEATSON CLARK LTD,,,,,2100251836,,Regional Growth Fund,S60 1TZ,"343,664.00",Yes
Communities & Local Government,DCLG,12/03/2015,Fixed Maintenance,Finance & Corporate Services,HOME OFFICE,,Large,,210019203,5106211010,Property Occupation,2 MS Projects 2014-15,NP20 9BB,"1,053,365.35",
Communities & Local Government,DCLG,12/03/2015,"Furniture, Fittings and carpets",Finance & Corporate Services,AMARYLLIS LTD,,Medium,,672277696,5106211021,"Furniture, Fixtures and Fittings",Remodelling of Furniture for Bristol Prj,CM7 2GD,"10,939.72",
Communities & Local Government,DCLG,12/03/2015,IT - Service Contracts,Finance & Corporate Services,FUJITSU SERVICES LTD,,Large,,423375062,5106208622,IT Managed / Outsourced Services,"FY14/15 DRP Charges ""DRP1Table Charges",WA3 9BD,"-13,638.31",
Communities & Local Government,DCLG,12/03/2015,IT - Service Contracts,Finance & Corporate Services,FUJITSU SERVICES LTD,,Large,,423375062,5106208623,IT Managed / Outsourced Services,Fujitsu Desktop Resource Processing for June,WA3 9BD,"13,638.31",
Communities & Local Government,DCLG,12/03/2015,IT - Service Contracts,Finance & Corporate Services,FUJITSU SERVICES LTD,,Large,,423375062,5106208624,IT Managed / Outsourced Services,"FY14/15 DRP Charges ""DRP1Table Charges",WA3 9BD,"-12,141.59",
Communities & Local Government,DCLG,12/03/2015,IT - Service Contracts,Finance & Corporate Services,FUJITSU SERVICES LTD,,Large,,423375062,5106208625,IT Managed / Outsourced Services,Fujitsu Desktop Resource Processing for July,WA3 9BD,"12,141.59",
Communities & Local Government,DCLG,12/03/2015,IT - Service Contracts,Finance & Corporate Services,FUJITSU SERVICES LTD,,Large,,423375062,5106208810,IT Managed / Outsourced Services,"FY14/15 Storage Charges (""S""TableCharge)",WA3 9BD,"10,762.13",
Communities & Local Government,DCLG,12/03/2015,IT - Service Contracts,Finance & Corporate Services,FUJITSU SERVICES LTD,,Large,,423375062,5106208858,IT Managed / Outsourced Services,Line Business Applications Charge for June,WA3 9BD,"21,951.99",
Communities & Local Government,DCLG,12/03/2015,IT - Service Contracts,Finance & Corporate Services,FUJITSU SERVICES LTD,,Large,,423375062,5106210248,IT Managed / Outsourced Services,Payment for MPLS migration phase one,WA3 9BD,"22,813.18",
Communities & Local Government,DCLG,12/03/2015,IT - Service Contracts,Finance & Corporate Services,FUJITSU SERVICES LTD,,Large,,423375062,5106210999,IT Managed / Outsourced Services,PINS Monitor Refresh Project,WA3 9BD,"56,792.94",
Communities & Local Government,DCLG,12/03/2015,Legal Fees,Finance & Corporate Services,DAVITT JONES BOULD LTD,,Medium,,,5106211016,Legal,Legal Advice,TA1 4EB,476.64,
Communities & Local Government,DCLG,12/03/2015,Legal Fees,Finance & Corporate Services,DAVITT JONES BOULD LTD,,Medium,,,5106211017,Legal,Legal Advice,TA1 4EB,"4,827.32",
Communities & Local Government,DCLG,12/03/2015,Legal Fees,Finance & Corporate Services,DAVITT JONES BOULD LTD,,Medium,,,5106211020,Legal,Legal Advice,TA1 4EB,447.00,
Communities & Local Government,DCLG,12/03/2015,Legal Fees,Finance & Corporate Services,DAVITT JONES BOULD LTD,,Medium,,,5106211023,Legal,Legal Advice,TA1 4EB,495.36,
Communities & Local Government,DCLG,12/03/2015,Legal Fees,Finance & Corporate Services,DAVITT JONES BOULD LTD,,Medium,,,5106211030,Legal,Legal Advice,TA1 4EB,6.00,
Communities & Local Government,DCLG,12/03/2015,Legal Fees,Finance & Corporate Services,DAVITT JONES BOULD LTD,,Medium,,,5106211030,Legal,Legal Advice,TA1 4EB,"2,001.60",
Communities & Local Government,DCLG,12/03/2015,Legal Fees,Neighbourhoods,PINSENT MASONS LLP,,Large,,217552905,5106210951,Legal,Legal Advice,B4 6BH,"25,232.16",
Communities & Local Government,DCLG,12/03/2015,Management Consultancy,Neighbourhoods,LOCAL PARTNERSHIPS LLP,,,,211702438,5106210942,Consultancy,Ebbsfleet delivery options consultancy,SW1P 3HZ,"2,893.88",
Communities & Local Government,DCLG,12/03/2015,Management Consultancy,Neighbourhoods,LOCAL PARTNERSHIPS LLP,,,,211702438,5106210942,Consultancy,Official Travel and Subsistence,SW1P 3HZ,110.75,
Communities & Local Government,DCLG,12/03/2015,Management Consultancy,Neighbourhoods,LOCAL PARTNERSHIPS LLP,,,,211702438,5106210948,Consultancy,Ebbsfleet delivery options consultancy,SW1P 3HZ,"8,914.30",
Communities & Local Government,DCLG,12/03/2015,Management Consultancy,Neighbourhoods,LOCAL PARTNERSHIPS LLP,,,,211702438,5106210950,Consultancy,Ebbsfleet delivery options consultancy,SW1P 3HZ,"7,490.07",
Communities & Local Government,DCLG,12/03/2015,Management Consultancy,Neighbourhoods,LOCAL PARTNERSHIPS LLP,,,,211702438,5106210950,Consultancy,Official Travel and Subsistence,SW1P 3HZ,795.25,
Communities & Local Government,DCLG,12/03/2015,Publications,Neighbourhoods,THOMSON REUTERS (PROFESSIONAL) UK L,,Large,,227272184,5106211018,Learning and Development Materials,Encyclopedia of Planning Law& Practice,SP10 9AH,"1,597.00",
Communities & Local Government,DCLG,12/03/2015,Software Licences,Finance & Corporate Services,ESRI (UK) LIMITED,,Large,,226271518,5106211006,Software,Software - Annual Subscription Renewal,HP21 7QG,"4,320.00",
Communities & Local Government,DCLG,12/03/2015,Steady State Service Provision,Finance & Corporate Services,VODAFONE LTD FORMELY CABLE  & WIREL,,Large,,239869688,5106210990,Business Process Outsourcing Services,Managed Internet Access Line,MK3 5JP,"4,359.92",
Communities & Local Government,DCLG,12/03/2015,Training,Finance & Corporate Services,INSTITUTE OF INTERNAL AUDITORS,,Small,,292669967,5106211019,Development and Training,M2 Financial Management (Distance Learni,SW4 7BX,440.00,
Communities & Local Government,DCLG,12/03/2015,Training,Finance & Corporate Services,INSTITUTE OF INTERNAL AUDITORS,,Small,,292669967,5106211019,Development and Training,M2 Financial Management Revision Worksho,SW4 7BX,535.00,
Communities & Local Government,DCLG,12/03/2015,Work In Progress Pre-Cert 40373 Spend,Neighbourhoods,CORNWALL COLLEGE,,,,,7600012124,,Revenue Grant To Be Paid,TR15 3RD,"44,940.83",Yes
Communities & Local Government,DCLG,12/03/2015,Work In Progress Pre-Cert 40467 Spend,Neighbourhoods,CORNWALL SUSTAINABLE BUILDING TRUST,,Micro,,,7600012125,,Capital Grant To Be Paid,PL25 9DY,"40,362.37",Yes
Communities & Local Government,DCLG,12/03/2015,Work In Progress Pre-Cert 40467 Spend,Neighbourhoods,WORKPODS LIMITED,,Medium,,,7600012126,,Capital Grant To Be Paid,LS1 4BJ,"91,341.33",Yes
Communities & Local Government,DCLG,13/03/2015,Advertising,"Strategy, Communications and Private Office",TULLO MARSHALL WARREN LTD,,Medium,,,5106211005,Advertising,Right to Buy Marketing Contract,W1F 9NB,"2,314.00",
Communities & Local Government,DCLG,13/03/2015,Agency Staff,Finance & Corporate Services,INTERQUEST GROUP UK LIMITED,,Large,,423935241,5106211093,Contingent Labour,SAP specialist support until Closedown,EC1N 8UA,"7,092.00",
Communities & Local Government,DCLG,13/03/2015,Agency Staff,Finance & Corporate Services,INTERQUEST GROUP UK LIMITED,,Large,,423935241,5106211093,Contingent Labour,SAP Support until closedown,EC1N 8UA,"8,510.40",
Communities & Local Government,DCLG,13/03/2015,Agency Staff,Finance & Corporate Services,SQUARE ONE RESOURCES LTD,,Medium,,491410288,5106211079,Contingent Labour,SAP specialist support until Closedown,EC2A 2AD,857.64,
Communities & Local Government,DCLG,13/03/2015,Agency Staff,Finance & Corporate Services,SQUARE ONE RESOURCES LTD,,Medium,,491410288,5106211079,Contingent Labour,SAP Support until closedown,EC2A 2AD,"2,001.18",
Communities & Local Government,DCLG,13/03/2015,Agency Staff,Finance & Corporate Services,SQUARE ONE RESOURCES LTD,,Medium,,491410288,5106211087,Contingent Labour,SAP specialist support until Closedown,EC2A 2AD,"2,858.82",
Communities & Local Government,DCLG,13/03/2015,Agency Staff,Finance & Corporate Services,SQUARE ONE RESOURCES LTD,,Medium,,491410288,5106211088,Contingent Labour,SAP specialist support until Closedown,EC2A 2AD,"2,858.82",
Communities & Local Government,DCLG,13/03/2015,Agency Staff,Finance & Corporate Services,SQUARE ONE RESOURCES LTD,,Medium,,491410288,5106211097,Contingent Labour,SAP specialist support until Closedown,EC2A 2AD,"2,858.82",
Communities & Local Government,DCLG,13/03/2015,Capital Grants to People Non Profit,Neighbourhoods,BIG LOTTERY FUND,,Public Bodies,,648124972,2100252093,,Coastal Communities Fund,B15 1TR,"108,807.00",Yes
Communities & Local Government,DCLG,13/03/2015,Catering,Localism,YORK COUNCIL VOLUNTARY SERVICE,,,,,5106211008,Business Support,Catering+TV hire,YO1 6ET,445.00,
Communities & Local Government,DCLG,13/03/2015,Conferences and Meeting Facilities,Localism,YORK COUNCIL VOLUNTARY SERVICE,,,,,5106211011,Promotion,Room hire,YO1 6ET,280.00,
Communities & Local Government,DCLG,13/03/2015,Current Grants to Non Profit Bodies,Localism,SADAQA DAY LTD,,Micro,,,2100252100,,Sadaqa Day,SL2 1QH,"12,000.00",Yes
Communities & Local Government,DCLG,13/03/2015,Current Grants to Non Profit Bodies,Neighbourhoods,EARTH TENANT MANAGEMENT ORGANISATIO,,Small,,,5000283959,,Right to Manage,BS2 9EG,"1,784.00",Yes
Communities & Local Government,DCLG,13/03/2015,Current Grants to Non Profit Bodies,Neighbourhoods,EXMOOR NATIONAL PARK AUTHORITY,,,,214903317,2100252094,,Right to build Vanguards,TA22 9HL,"28,000.00",Yes
Communities & Local Government,DCLG,13/03/2015,Fixed Maintenance,Finance & Corporate Services,ACOUSTIC CONSULTANTS LTD,,Small,,219442685,5106210807,Property Occupation,Rivergate sound insulation advice,BS31 1HS,"1,080.00",
Communities & Local Government,DCLG,13/03/2015,IT - Service Contracts,Finance & Corporate Services,DAMOVO UK LTD,,Large,,221481042,5106211042,IT Managed / Outsourced Services,PAMU Office Moves Project Q4 14/15,RH12 4QP,"23,725.38",
Communities & Local Government,DCLG,13/03/2015,IT - Service Contracts,Finance & Corporate Services,FUJITSU SERVICES LTD,,Large,,423375062,5106211090,IT Managed / Outsourced Services,DCLG NR Orders Q4 FY 2014/15,WA3 9BD,997.48,
Communities & Local Government,DCLG,13/03/2015,IT - Service Contracts,Finance & Corporate Services,FUJITSU SERVICES LTD,,Large,,423375062,5106211094,IT Managed / Outsourced Services,PINS Monitor Refresh Project,WA3 9BD,"15,554.50",
Communities & Local Government,DCLG,13/03/2015,IT - Service Contracts,Finance & Corporate Services,ICASEWORK LTD,,Large,,,5106211075,IT Managed / Outsourced Services,Enquiries & correspondence service charges February,NW5 1LZ,"4,600.00",
Communities & Local Government,DCLG,13/03/2015,Legal Fees,Finance & Corporate Services,TREASURY SOLICITORS DEPT,,Public Bodies,,215580680,5106211089,Legal,Legal Advice,WC2B 4TS,"153,024.52",
Communities & Local Government,DCLG,13/03/2015,Legal Fees,Finance & Corporate Services,TREASURY SOLICITORS DEPT,,Public Bodies,,215580680,5106211089,Legal,Legal Advice,WC2B 4TS,840.03,
Communities & Local Government,DCLG,13/03/2015,Legal Fees,Localism,FIELD FISHER WATERHOUSE LLP,,Large,,349487996,5106210856,Legal,Legal Advice,EC3N 2AA,477.60,
Communities & Local Government,DCLG,13/03/2015,Management Consultancy,Neighbourhoods,GUY DOUGLAS,,,,,5106211091,Consultancy,to pay Digital Expert to write report,TA4 3QD,"4,980.00",
Communities & Local Government,DCLG,13/03/2015,Professional services,Finance & Corporate Services,GVA GRIMLEY LTD,,Large,,210158990,5106210984,Business Support,Com 160 Cunard Bldg Business Rates,B1 2JB,"4,243.15",
Communities & Local Government,DCLG,13/03/2015,Professional services,Neighbourhoods,RICARDO-AEA LTD,,Large,,,5106211095,Technical Services,Online Planning Tools,OX11 0QR,"4,804.80",
Communities & Local Government,DCLG,13/03/2015,Recruitment,Finance & Corporate Services,OFFICE FOR NATIONAL STATISTICS,,Public Bodies,,232101196,5106211078,Business Process Outsourcing Services,Fast Stream Payment Round 1,NP10 8XG,"5,070.00",
Communities & Local Government,DCLG,13/03/2015,Services provided by other Govt Orgs,Finance & Corporate Services,BUSINESS INNOVATION & SKILLS,,Public Bodies,,,2100252097,Financial,GSS Fast Stream Recruitment Process,SW1H 0ET,"141,562.20",Yes
Communities & Local Government,DCLG,13/03/2015,Services provided by other Govt Orgs,Finance & Corporate Services,CABINET OFFICE,,Public Bodies,,349606306,2100251996,Financial,REFERENCE: TRANSATION 250011820,CF14 3UW,"3,799.00",Yes
Communities & Local Government,DCLG,13/03/2015,Steady State Service Provision,Neighbourhoods,NORTHUMBERLAND CC,,Large,,228141644,5106210882,Business Process Outsourcing Services,April 2014 to March 2015,NE61 2EF,"3,468.00",
Communities & Local Government,DCLG,13/03/2015,Steady State Service Provision,Neighbourhoods,NORTHUMBERLAND CC,,Large,,228141644,5106210882,Business Process Outsourcing Services,Non VAT expenses,NE61 2EF,108.41,
Communities & Local Government,DCLG,13/03/2015,Training,Finance & Corporate Services,QUO IMUS LTD,,Small,,458934304,5106211077,Development and Training,SRO Strategy Masterclass and Mentoring,SE1 7SJ,"4,950.00",
Communities & Local Government,DCLG,13/03/2015,Training,Neighbourhoods,MBL SEMINARS LTD,,Small,,734830016,5106211076,Development and Training,Planning LawThe key local govt 270315,M29 7PA,240.00,
Communities & Local Government,DCLG,13/03/2015,Vehicle hire,"Strategy, Communications and Private Office",GOVERNMENT CAR & DESPATCH AGENCY,,Public Bodies,,,5106211086,Vehicle Hire and Lease,Ministerial Duty Car 1(LT118) 2014-15,SW8 5AX,"6,981.67",
Communities & Local Government,DCLG,13/03/2015,Work In Progress Pre-Cert 40373 Spend,Neighbourhoods,NEWCASTLE UNIVERSITY,,,,,2300002237,,Recovery of irregular payment,NE1 7RU,-678.51,Yes
Communities & Local Government,DCLG,16/03/2015,Accommodation Service Charges,Finance & Corporate Services,GVA GRIMLEY LTD,,Large,,210158990,5106211032,Business Support,T/F High Trees ASC 2014-15,B1 2JB,"15,032.28",
Communities & Local Government,DCLG,16/03/2015,Accommodation Service Charges,Finance & Corporate Services,GVA GRIMLEY LTD,,Large,,210158990,5106211032,Business Support,T/F High Trees ASC 2015,B1 2JB,"13,961.28",
Communities & Local Government,DCLG,16/03/2015,Accommodation Service Charges,Finance & Corporate Services,GVA GRIMLEY LTD,,Large,,210158990,5106211032,Business Support,T/F High Trees Insurance 2014-15,B1 2JB,"1,168.73",
Communities & Local Government,DCLG,16/03/2015,Accommodation Service Charges,Finance & Corporate Services,GVA GRIMLEY LTD,,Large,,210158990,5106211032,Business Support,T/F Temple Quay ASC 2015,B1 2JB,"21,544.80",
Communities & Local Government,DCLG,16/03/2015,Accommodation Service Charges,Finance & Corporate Services,GVA GRIMLEY LTD,,Large,,210158990,5106211032,Business Support,T/F Hempstead House ASC 2015,B1 2JB,"23,525.88",
Communities & Local Government,DCLG,16/03/2015,Accommodation Service Charges,Finance & Corporate Services,GVA GRIMLEY LTD,,Large,,210158990,5106211032,Business Support,T/F Rivergate ASC 2015,B1 2JB,"11,388.00",
Communities & Local Government,DCLG,16/03/2015,Accommodation Service Charges,Finance & Corporate Services,GVA GRIMLEY LTD,,Large,,210158990,5106211032,Business Support,T/F Citygate ASC 2015,B1 2JB,"92,015.81",
Communities & Local Government,DCLG,16/03/2015,Accommodation Service Charges,Finance & Corporate Services,GVA GRIMLEY LTD,,Large,,210158990,5106211032,Business Support,T/F Lateral ASC 2015,B1 2JB,"65,291.46",
Communities & Local Government,DCLG,16/03/2015,Accommodation Service Charges,Finance & Corporate Services,GVA GRIMLEY LTD,,Large,,210158990,5106211032,Business Support,T/F Cumberland ASC 2014-15,B1 2JB,"12,110.40",
Communities & Local Government,DCLG,16/03/2015,Accommodation Service Charges,Finance & Corporate Services,GVA GRIMLEY LTD,,Large,,210158990,5106211032,Business Support,T/F Cumberland House Admin Fee 2014-15,B1 2JB,807.22,
Communities & Local Government,DCLG,16/03/2015,Accommodation Service Charges,Finance & Corporate Services,GVA GRIMLEY LTD,,Large,,210158990,5106211032,Business Support,T/F Moreton in Marsh ASC 2015,B1 2JB,"26,014.32",
Communities & Local Government,DCLG,16/03/2015,Accommodation Service Charges,Finance & Corporate Services,GVA GRIMLEY LTD,,Large,,210158990,5106211032,Business Support,T/F Cobourg House ASC 2015,B1 2JB,"3,169.79",
Communities & Local Government,DCLG,16/03/2015,Accommodation Service Charges,Finance & Corporate Services,GVA GRIMLEY LTD,,Large,,210158990,5106211032,Business Support,T/F Friarsgate ASC 2015,B1 2JB,"27,217.80",
Communities & Local Government,DCLG,16/03/2015,Accommodation Service Charges,Finance & Corporate Services,GVA GRIMLEY LTD,,Large,,210158990,5106211032,Business Support,T/F Leeds City Office ASC 2015,B1 2JB,"12,097.50",
Communities & Local Government,DCLG,16/03/2015,Accommodation Service Charges,Finance & Corporate Services,GVA GRIMLEY LTD,,Large,,210158990,5106211032,Business Support,T/F Castle Donington ASC 2015,B1 2JB,276.00,
Communities & Local Government,DCLG,16/03/2015,Accommodation Service Charges,Finance & Corporate Services,GVA GRIMLEY LTD,,Large,,210158990,5106211032,Business Support,T/F Cambridge ASC 2015,B1 2JB,"5,502.30",
Communities & Local Government,DCLG,16/03/2015,Accommodation Service Charges,Finance & Corporate Services,GVA GRIMLEY LTD,,Large,,210158990,5106211032,Business Support,T/F Taunton RCC ASC 2015,B1 2JB,"1,392.30",
Communities & Local Government,DCLG,16/03/2015,Accommodation Service Charges,Finance & Corporate Services,GVA GRIMLEY LTD,,Large,,210158990,5106211032,Business Support,T/F Fareham RCC ASC 2015,B1 2JB,942.00,
Communities & Local Government,DCLG,16/03/2015,Agency Staff,Neighbourhoods,REED EMPLOYMENT SERVICES,,Large,,292193364,5106211114,Contingent Labour,Extension untill transfer,SW20 0BA,809.10,
Communities & Local Government,DCLG,16/03/2015,Cap Grants to Private Sector Companies,Neighbourhoods,ATLANTIC CONTAINER LINE UK LTD,,Medium,,,2100252013,,Regional Growth Fund,L3 1DL,"137,267.00",Yes
Communities & Local Government,DCLG,16/03/2015,Cap Grants to Private Sector Companies,Neighbourhoods,BENTLEY MOTORS LIMITED,,Large,,,2100251833,,Regional Growth Fund,CW1 3PL,"247,468.00",Yes
Communities & Local Government,DCLG,16/03/2015,Cap Grants to Private Sector Companies,Neighbourhoods,BENTLEY MOTORS LIMITED,,Large,,,2100251835,,Regional Growth Fund,CW1 3PL,"52,860.00",Yes
Communities & Local Government,DCLG,16/03/2015,Cap Grants to Private Sector Companies,Neighbourhoods,BLADON JETS (UK) LIMITED,,Small,,,2100252025,,Regional Growth Fund,CV3 4LH,"121,271.53",Yes
Communities & Local Government,DCLG,16/03/2015,Cap Grants to Private Sector Companies,Neighbourhoods,BUSINESS & ENTERPRISE COMMERCIAL LT,,Medium,,,2100251911,,Regional Growth Fund,SR7 7TT,"3,615,295.00",Yes
Communities & Local Government,DCLG,16/03/2015,Cap Grants to Private Sector Companies,Neighbourhoods,C-TEC,,,,,2100251899,,Regional Growth Fund,WN5 0LD,"240,511.86",Yes
Communities & Local Government,DCLG,16/03/2015,Cap Grants to Private Sector Companies,Neighbourhoods,CATERPILLER UK LTD,,Large,,,2100251931,,Regional Growth Fund,SR8 2HX,"502,592.00",Yes
Communities & Local Government,DCLG,16/03/2015,Cap Grants to Private Sector Companies,Neighbourhoods,CAV AEROSPACE LIMITED,,Large,,,2100251935,,Regional Growth Fund,DH8 6SR,"14,377.00",Yes
Communities & Local Government,DCLG,16/03/2015,Cap Grants to Private Sector Companies,Neighbourhoods,CAV AEROSPACE LIMITED,,Large,,,2100251978,,Regional Growth Fund,DH8 6SR,"42,522.00",Yes
Communities & Local Government,DCLG,16/03/2015,Cap Grants to Private Sector Companies,Neighbourhoods,CHESTER UNIVERSITY,,Large,,,2100251897,,Regional Growth Fund,CH1 4BJ,"1,477,943.00",Yes
Communities & Local Government,DCLG,16/03/2015,Cap Grants to Private Sector Companies,Neighbourhoods,CHINOOK SCIENCES LTD,,Medium,,,2100252031,,Regional Growth Fund,NG7 2RU,"1,808,767.00",Yes
Communities & Local Government,DCLG,16/03/2015,Cap Grants to Private Sector Companies,Neighbourhoods,DEPUY INTERNATIONAL LIMITED,,Large,,,2100252016,,Regional Growth Fund,LS11 0EA,"250,000.00",Yes
Communities & Local Government,DCLG,16/03/2015,Cap Grants to Private Sector Companies,Neighbourhoods,DEUTSCHE LEASING (UK) LTD,,Large,,,2100251988,,Regional Growth Fund,RH2 9PY,"200,000.00",Yes
Communities & Local Government,DCLG,16/03/2015,Cap Grants to Private Sector Companies,Neighbourhoods,DYSON TECHNOLOGY LTD,,,,,2100251992,,Regional Growth Fund,SN16 0RP,"75,000.00",Yes
Communities & Local Government,DCLG,16/03/2015,Cap Grants to Private Sector Companies,Neighbourhoods,EA TECHNOLOGY LTD,,Medium,,,2100252009,,Regional Growth Fund,CH1 6ES,"254,564.76",Yes
Communities & Local Government,DCLG,16/03/2015,Cap Grants to Private Sector Companies,Neighbourhoods,EBAC LIMITED,,,,,2100251934,,Regional Growth Fund,DL5 6SQ,"174,841.00",Yes
Communities & Local Government,DCLG,16/03/2015,Cap Grants to Private Sector Companies,Neighbourhoods,ERLSON PRECISION COMPONENTS LTD,,Medium,,,2100251831,,Regional Growth Fund,WN8 9QB,"242,202.00",Yes
Communities & Local Government,DCLG,16/03/2015,Cap Grants to Private Sector Companies,Neighbourhoods,FINANCE FOR INDUSTRY LTD,,,,,2100251983,,Regional Growth Fund,WD4 8FR,"195,000.00",Yes
Communities & Local Government,DCLG,16/03/2015,Cap Grants to Private Sector Companies,Neighbourhoods,GESTAMP TALLENT LTD,,,,,2100251981,,Regional Growth Fund,DL5 6EP,"250,000.00",Yes
Communities & Local Government,DCLG,16/03/2015,Cap Grants to Private Sector Companies,Neighbourhoods,HARRISON SPINKS BEDS LTD,,Large,,,2100252011,,Regional Growth Fund,LS11 5SN,145.61,Yes
Communities & Local Government,DCLG,16/03/2015,Cap Grants to Private Sector Companies,Neighbourhoods,JAGUAR CARS LTD,,,,,2100251913,,Regional Growth Fund,CV3 4LF,"6,359,250.00",Yes
Communities & Local Government,DCLG,16/03/2015,Cap Grants to Private Sector Companies,Neighbourhoods,JOHNSON MATTHEY FUEL CELLS LTD,,,,,2100251994,,Regional Growth Fund,SN5 8AT,"75,000.00",Yes
Communities & Local Government,DCLG,16/03/2015,Cap Grants to Private Sector Companies,Neighbourhoods,LAKELAND ARTS TRUST,,,,,2100251901,,Regional Growth Fund,LA23 3JT,"79,310.77",Yes
Communities & Local Government,DCLG,16/03/2015,Cap Grants to Private Sector Companies,Neighbourhoods,LEICESTER UNIVERSITY,,Large,,,2100252026,,Regional Growth Fund,LE1 7RH,"279,918.00",Yes
Communities & Local Government,DCLG,16/03/2015,Cap Grants to Private Sector Companies,Neighbourhoods,LINCOLN UNIVERSITY,,Large,,228450896,2100252029,,Regional Growth Fund,LN6 7TS,"105,148.89",Yes
Communities & Local Government,DCLG,16/03/2015,Cap Grants to Private Sector Companies,Neighbourhoods,LIVERPOOL CITY REGION LEP,,,,,2100251834,,Regional Growth Fund,L3 1BG,"1,529,308.00",Yes
Communities & Local Government,DCLG,16/03/2015,Cap Grants to Private Sector Companies,Neighbourhoods,LSTM,,Large,,291843662,2100252012,,Regional Growth Fund,L3 5QA,"3,181.00",Yes
Communities & Local Government,DCLG,16/03/2015,Cap Grants to Private Sector Companies,Neighbourhoods,MAGMA GLOBAL LTD,,,,,2100251918,,Regional Growth Fund,PO6 3EZ,"297,625.00",Yes
Communities & Local Government,DCLG,16/03/2015,Cap Grants to Private Sector Companies,Neighbourhoods,MALVERN INSTRUMENTS LIMITED,,,,,2100252027,,Regional Growth Fund,WR14 1XZ,"87,745.83",Yes
Communities & Local Government,DCLG,16/03/2015,Cap Grants to Private Sector Companies,Neighbourhoods,MANCHESTER UNIVERSITY,,Large,,229894910,2100251843,,Regional Growth Fund,M13 9PL,"30,262.75",Yes
Communities & Local Government,DCLG,16/03/2015,Cap Grants to Private Sector Companies,Neighbourhoods,MERSEY DOCK & HARBOUR COMPANY LTD,,,,,2100251906,,Regional Growth Fund,L21 1LA,"4,807,620.43",Yes
Communities & Local Government,DCLG,16/03/2015,Cap Grants to Private Sector Companies,Neighbourhoods,NIFCO UK LTD,,Medium,,,2100251929,,Regional Growth Fund,TS18 3RX,"465,519.00",Yes
Communities & Local Government,DCLG,16/03/2015,Cap Grants to Private Sector Companies,Neighbourhoods,NISSAN MOTOR MANUFACTURING (UK) LTD,,Large,,,2100251912,,Regional Growth Fund,SR5 3NS,"6,767,750.00",Yes
Communities & Local Government,DCLG,16/03/2015,Cap Grants to Private Sector Companies,Neighbourhoods,NORTH EAST FINANCE (HOLDCO) LIMITED,,Small,,,2100251928,,Regional Growth Fund,NE1 4AD,"2,455,200.00",Yes
Communities & Local Government,DCLG,16/03/2015,Cap Grants to Private Sector Companies,Neighbourhoods,NORTH STAFFS CHAMBER COMM & IND,,Small,,,2100252030,,Regional Growth Fund,ST1 5BE,"358,960.00",Yes
Communities & Local Government,DCLG,16/03/2015,Cap Grants to Private Sector Companies,Neighbourhoods,NSK BEARINGS EUROPE LIMITED,,Large,,,2100251932,,Regional Growth Fund,SR8 2JD,"265,649.62",Yes
Communities & Local Government,DCLG,16/03/2015,Cap Grants to Private Sector Companies,Neighbourhoods,NXP SEMICONDUCTORS UK LTD,,,,,2100252015,,Regional Growth Fund,SK7 5BJ,"13,286.26",Yes
Communities & Local Government,DCLG,16/03/2015,Cap Grants to Private Sector Companies,Neighbourhoods,PATTERSON & ROTHWELL LTD,,Medium,,,2100252010,,Regional Growth Fund,OL4 1HH,"398,743.00",Yes
Communities & Local Government,DCLG,16/03/2015,Cap Grants to Private Sector Companies,Neighbourhoods,PD TEESPORT LIMITED,,,,,2100251909,,Regional Growth Fund,TS2 1AH,"3,033,968.00",Yes
Communities & Local Government,DCLG,16/03/2015,Cap Grants to Private Sector Companies,Neighbourhoods,PLESSEY SEMICONDUCTORS LTD,,Medium,,,2100251989,,Regional Growth Fund,PL6 7BQ,"208,000.00",Yes
Communities & Local Government,DCLG,16/03/2015,Cap Grants to Private Sector Companies,Neighbourhoods,PLYMOUTH UNIVERSITY,,Large,,238011076,2100251990,,Regional Growth Fund,PL4 8AA,"149,223.00",Yes
Communities & Local Government,DCLG,16/03/2015,Cap Grants to Private Sector Companies,Neighbourhoods,RICARDO UK LTD,,,,,2100251917,,Regional Growth Fund,BN43 5FG,"1,000.00",Yes
Communities & Local Government,DCLG,16/03/2015,Cap Grants to Private Sector Companies,Neighbourhoods,ROYAL BANK OF SCOTLAND PLC,,,,,2100251982,,Regional Growth Fund,EH12 1HQ,"1,250,000.00",Yes
Communities & Local Government,DCLG,16/03/2015,Cap Grants to Private Sector Companies,Neighbourhoods,SHEFFIELD UNIVERSITY,,,,,2100251986,,Regional Growth Fund,S1 2LX,"1,315,947.00",Yes
Communities & Local Government,DCLG,16/03/2015,Cap Grants to Private Sector Companies,Neighbourhoods,SIEMENS PLC,,,,,2100251980,,Regional Growth Fund,NE31 1LX,"184,069.09",Yes
Communities & Local Government,DCLG,16/03/2015,Cap Grants to Private Sector Companies,Neighbourhoods,SNF OIL AND GAS LTD,,,,,2100251930,,Regional Growth Fund,WF6 1TB,"2,701,445.00",Yes
Communities & Local Government,DCLG,16/03/2015,Cap Grants to Private Sector Companies,Neighbourhoods,SNF OIL AND GAS LTD,,,,,2100251936,,Regional Growth Fund,WF6 1TB,"111,385.00",Yes
Communities & Local Government,DCLG,16/03/2015,Cap Grants to Private Sector Companies,Neighbourhoods,ST HELENS CHAMBERS,,Medium,,,2100251898,,Regional Growth Fund,WA10 1FY,"378,353.25",Yes
Communities & Local Government,DCLG,16/03/2015,Cap Grants to Private Sector Companies,Neighbourhoods,TATA CHEMICALS EUROPE LTD,,Large,,,2100251896,,Regional Growth Fund,CW8 4DT,"468,845.31",Yes
Communities & Local Government,DCLG,16/03/2015,Cap Grants to Private Sector Companies,Neighbourhoods,TIOXIDE EUROPE LIMITED,,Large,,,2100251933,,Regional Growth Fund,TS25 2DD,"336,580.00",Yes
Communities & Local Government,DCLG,16/03/2015,Cap Grants to Private Sector Companies,Neighbourhoods,TRW SYSTEMS LTD,,,,,2100251927,,Regional Growth Fund,DH4 5PH,"616,287.00",Yes
Communities & Local Government,DCLG,16/03/2015,Cap Grants to Private Sector Companies,Neighbourhoods,UK STEEL ENTERPRISE LTD,,,,,2100251985,,Regional Growth Fund,S1 4DP,"436,475.00",Yes
Communities & Local Government,DCLG,16/03/2015,Cap Grants to Private Sector Companies,Neighbourhoods,WELDING INSTITUTE,,Large,,238679778,2100251999,,Regional Growth Fund,CB21 6AL,"4,578,496.59",Yes
Communities & Local Government,DCLG,16/03/2015,Cap Grants to Private Sector Companies,Neighbourhoods,WEST OF ENGLAND UNIVERSITY,,Large,,217032499,2100251991,,Regional Growth Fund,BS16 1QY,"39,749.00",Yes
Communities & Local Government,DCLG,16/03/2015,Cap Grants to Private Sector Companies,Neighbourhoods,WOLVERHAMPTON UNIVERSITY,,,,,2100252028,,Regional Growth Fund,WV1 1AD,"88,951.00",Yes
Communities & Local Government,DCLG,16/03/2015,Cap Grants to Private Sector Companies,Neighbourhoods,WWRD UNITED KINGDOM LTD,,,,,2100252032,,Regional Growth Fund,ST12 9ER,"2,192,316.00",Yes
Communities & Local Government,DCLG,16/03/2015,Capital Grant to LA Replace Loan Nonbud,Neighbourhoods,BATH & NE SOMERSET DC,,Large,,214502499,2100251915,,Regional Growth Fund,BA1 5AW,"4,879,558.00",Yes
Communities & Local Government,DCLG,16/03/2015,Capital Grant to LA Replace Loan Nonbud,Neighbourhoods,BIRMINGHAM CITY COUNCIL,,,,213270263,2100252023,,Regional Growth Fund,B3 3PL,"2,585,000.00",Yes
Communities & Local Government,DCLG,16/03/2015,Capital Grant to LA Replace Loan Nonbud,Neighbourhoods,CHESHIRE WEST & CHESTER COUNCIL,,Public Bodies,,,2100252006,,Regional Growth Fund,CH1 2NP,"293,878.00",Yes
Communities & Local Government,DCLG,16/03/2015,Capital Grant to LA Replace Loan Nonbud,Neighbourhoods,COVENTRY CITY COUNCIL,,Large,,211313697,2100252017,,Regional Growth Fund,CV1 5RQ,"2,549,155.32",Yes
Communities & Local Government,DCLG,16/03/2015,Capital Grant to LA Replace Loan Nonbud,Neighbourhoods,COVENTRY CITY COUNCIL,,Large,,211313697,2100252018,,Regional Growth Fund,CV1 5RQ,"240,879.50",Yes
Communities & Local Government,DCLG,16/03/2015,Capital Grant to LA Replace Loan Nonbud,Neighbourhoods,COVENTRY CITY COUNCIL,,Large,,211313697,2100252019,,Regional Growth Fund,CV1 5RQ,"186,114.11",Yes
Communities & Local Government,DCLG,16/03/2015,Capital Grant to LA Replace Loan Nonbud,Neighbourhoods,CUMBRIA COUNTY COUNCIL,,Public Bodies,,215464640,2100252007,,Regional Growth Fund,CA13 9PR,"1,570,304.00",Yes
Communities & Local Government,DCLG,16/03/2015,Capital Grant to LA Replace Loan Nonbud,Neighbourhoods,EASTLEIGH BC,,,,232669911,2100251919,,Regional Growth Fund,SO50 9YN,"114,100.11",Yes
Communities & Local Government,DCLG,16/03/2015,Capital Grant to LA Replace Loan Nonbud,Neighbourhoods,GM BUSINESS SUPPORT,,Large,,,2100251905,,Regional Growth Fund,M1 5JW,"5,240,595.00",Yes
Communities & Local Government,DCLG,16/03/2015,Capital Grant to LA Replace Loan Nonbud,Neighbourhoods,HEREFORDSHIRE COUNCIL,,Public Bodies,,230359700,2100252020,,Regional Growth Fund,HR1 1ZT,"391,909.90",Yes
Communities & Local Government,DCLG,16/03/2015,Capital Grant to LA Replace Loan Nonbud,Neighbourhoods,KENT COUNTY COUNCIL,,Public Bodies,,210298405,2100251920,,Regional Growth Fund,ME14 1RF,"3,875,547.00",Yes
Communities & Local Government,DCLG,16/03/2015,Capital Grant to LA Replace Loan Nonbud,Neighbourhoods,LEEDS CITY COUNCIL,,Large,,211170311,2100251904,,Regional Growth Fund,LS1 1UR,"4,538,879.00",Yes
Communities & Local Government,DCLG,16/03/2015,Capital Grant to LA Replace Loan Nonbud,Neighbourhoods,LEEDS CITY COUNCIL,,Large,,211170311,2100252004,,Regional Growth Fund,LS1 1UR,"902,374.00",Yes
Communities & Local Government,DCLG,16/03/2015,Capital Grant to LA Replace Loan Nonbud,Neighbourhoods,LEEDS CITY COUNCIL,,Large,,211170311,2100252005,,Regional Growth Fund,LS1 1UR,"2,678,747.98",Yes
Communities & Local Government,DCLG,16/03/2015,Capital Grant to LA Replace Loan Nonbud,Neighbourhoods,LEEDS CITY COUNCIL,,Large,,211170311,2100252008,,Regional Growth Fund,LS1 1UR,"608,571.00",Yes
Communities & Local Government,DCLG,16/03/2015,Capital Grant to LA Replace Loan Nonbud,Neighbourhoods,NEWCASTLE CITY COUNCIL,,,,210061649,2100251926,,Regional Growth Fund,NE1 8QN,"490,879.00",Yes
Communities & Local Government,DCLG,16/03/2015,Capital Grant to LA Replace Loan Nonbud,Neighbourhoods,NORTH EAST LINCOLN DC,,Public Bodies,,,2100251914,,Regional Growth Fund,DN35 8LN,"7,680,069.00",Yes
Communities & Local Government,DCLG,16/03/2015,Capital Grant to LA Replace Loan Nonbud,Neighbourhoods,NORTHUMBERLAND CC,,Large,,228141644,2100251925,,Regional Growth Fund,NE61 2EF,"2,345,330.30",Yes
Communities & Local Government,DCLG,16/03/2015,Capital Grant to LA Replace Loan Nonbud,Neighbourhoods,NOTTINGHAM CITY COUNCIL,,Large,,,2100252022,,Regional Growth Fund,NG2 3NG,"2,205,266.89",Yes
Communities & Local Government,DCLG,16/03/2015,Capital Grant to LA Replace Loan Nonbud,Neighbourhoods,PORTSMOUTH CITY COUNCIL,,Public Bodies,,211183082,2100251922,,Regional Growth Fund,PO1 2BG,"200,000.00",Yes
Communities & Local Government,DCLG,16/03/2015,Capital Grant to LA Replace Loan Nonbud,Neighbourhoods,PORTSMOUTH CITY COUNCIL,,Public Bodies,,211183082,2100251923,,Regional Growth Fund,PO1 2BG,"500,000.00",Yes
Communities & Local Government,DCLG,16/03/2015,Capital Grant to LA Replace Loan Nonbud,Neighbourhoods,SOUTHAMPTON CITY COUNCIL,,Public Bodies,,216927475,2100251921,,Regional Growth Fund,SO14 7LY,"1,500,000.00",Yes
Communities & Local Government,DCLG,16/03/2015,Capital Grant to LA Replace Loan Nonbud,Neighbourhoods,STOKE ON TRENT CITY COUNCIL,,,,,2100252021,,Regional Growth Fund,ST4 1NH,"510,266.00",Yes
Communities & Local Government,DCLG,16/03/2015,Capital Grant to LA Replace Loan Nonbud,Neighbourhoods,SUFFOLK COUNTY COUNCIL,,Large,,236445243,2100252002,,Regional Growth Fund,IP1 2BX,"1,503,000.00",Yes
Communities & Local Government,DCLG,16/03/2015,Capital Grant to LA Replace Loan Nonbud,Neighbourhoods,SUNDERLAND CITY COUNCIL,,,,215599312,2100251908,,Regional Growth Fund,SR2 7DN,"7,617,085.00",Yes
Communities & Local Government,DCLG,16/03/2015,Copyright Licences,Finance & Corporate Services,CABINET OFFICE,,Public Bodies,,349606306,5106211107,Legal,"Copyright licence 2014/15, recharge CLA",CF14 3UW,"9,066.00",
Communities & Local Government,DCLG,16/03/2015,Current (non AEF) Grants to Local Authorities,Localism,ADUR DC,,,,227472891,5000284660,,Business Rates 2013- 14 Reconciliation Grant,BN11 1HB,"29,734.00",Yes
Communities & Local Government,DCLG,16/03/2015,Current (non AEF) Grants to Local Authorities,Localism,ADUR DC,,,,227472891,5000284661,,Business Rates New Burden Admin Cost 2014/15 Grant,BN11 1HB,"10,463.00",Yes
Communities & Local Government,DCLG,16/03/2015,Current (non AEF) Grants to Local Authorities,Localism,ALLERDALE BOROUGH COUNCIL,,,,218146780,5000284662,,Business Rates New Burden Admin Cost 2014/15 Grant,CA14 3YJ,"13,439.00",Yes
Communities & Local Government,DCLG,16/03/2015,Current (non AEF) Grants to Local Authorities,Localism,ALLERDALE BOROUGH COUNCIL,,,,218146780,5000284663,,Business Rates 2013- 14 Reconciliation Grant,CA14 3YJ,"101,874.00",Yes
Communities & Local Government,DCLG,16/03/2015,Current (non AEF) Grants to Local Authorities,Localism,AMBER VALLEY BC,,,,,5000284664,,Business Rates 2013- 14 Reconciliation Grant,DE5 3BT,"71,004.00",Yes
Communities & Local Government,DCLG,16/03/2015,Current (non AEF) Grants to Local Authorities,Localism,AMBER VALLEY BC,,,,,5000284665,,Business Rates New Burden Admin Cost 2014/15 Grant,DE5 3BT,"12,318.00",Yes
Communities & Local Government,DCLG,16/03/2015,Current (non AEF) Grants to Local Authorities,Localism,ARUN DC,,,,211217668,5000284114,,Business Rates New Burden Admin Cost 2014/15 Grant,BN17 5LF,"13,032.00",Yes
Communities & Local Government,DCLG,16/03/2015,Current (non AEF) Grants to Local Authorities,Localism,ARUN DC,,,,211217668,5000284115,,Business Rates 2013- 14 Reconciliation Grant,BN17 5LF,"80,335.00",Yes
Communities & Local Government,DCLG,16/03/2015,Current (non AEF) Grants to Local Authorities,Localism,ASHFIELD DC,,,,235415296,5000284666,,Business Rates New Burden Admin Cost 2014/15 Grant,NG17 8DA,"11,339.00",Yes
Communities & Local Government,DCLG,16/03/2015,Current (non AEF) Grants to Local Authorities,Localism,ASHFIELD DC,,,,235415296,5000284667,,Business Rates 2013- 14 Reconciliation Grant,NG17 8DA,"45,636.00",Yes
Communities & Local Government,DCLG,16/03/2015,Current (non AEF) Grants to Local Authorities,Localism,ASHFORD BC,,,,229467071,5000284117,,Business Rates 2013- 14 Reconciliation Grant,TN23 1PL,"81,848.00",Yes
Communities & Local Government,DCLG,16/03/2015,Current (non AEF) Grants to Local Authorities,Localism,ASHFORD BC,,,,229467071,5000284119,,Business Rates New Burden Admin Cost 2014/15 Grant,TN23 1PL,"12,588.00",Yes
Communities & Local Government,DCLG,16/03/2015,Current (non AEF) Grants to Local Authorities,Localism,AVON FIRE AUTHORITY,,Large,,424872570,5000284595,,Business Rates 2013- 14 Reconciliation Grant,BS1 6EU,"14,113.00",Yes
Communities & Local Government,DCLG,16/03/2015,Current (non AEF) Grants to Local Authorities,Localism,AYLESBURY VALE DC(HSG),,,,396710709,5000284121,,Business Rates New Burden Admin Cost 2014/15 Grant,HP19 8FF,"13,591.00",Yes
Communities & Local Government,DCLG,16/03/2015,Current (non AEF) Grants to Local Authorities,Localism,AYLESBURY VALE DC(HSG),,,,396710709,5000284122,,Business Rates 2013- 14 Reconciliation Grant,HP19 8FF,"87,609.00",Yes
Communities & Local Government,DCLG,16/03/2015,Current (non AEF) Grants to Local Authorities,Localism,BABERGH DC,,,,232618405,5000284124,,Business Rates New Burden Admin Cost 2014/15 Grant,IP7 6SJ,"11,641.00",Yes
Communities & Local Government,DCLG,16/03/2015,Current (non AEF) Grants to Local Authorities,Localism,BABERGH DC,,,,232618405,5000284127,,Business Rates 2013- 14 Reconciliation Grant,IP7 6SJ,"60,766.00",Yes
Communities & Local Government,DCLG,16/03/2015,Current (non AEF) Grants to Local Authorities,Localism,BARKING & DAGENHAM LB (HSG),,,,217142293,5000284129,,Business Rates 2013- 14 Reconciliation Grant,RM10 7BY,"54,548.00",Yes
Communities & Local Government,DCLG,16/03/2015,Current (non AEF) Grants to Local Authorities,Localism,BARKING & DAGENHAM LB (HSG),,,,217142293,5000284131,,Business Rates New Burden Admin Cost 2014/15 Grant,RM10 7BY,"12,556.00",Yes
Communities & Local Government,DCLG,16/03/2015,Current (non AEF) Grants to Local Authorities,Localism,BARNSLEY MBC,,,,211178595,5000284670,,Business Rates New Burden Admin Cost 2014/15 Grant,S70 2AQ,"15,695.00",Yes
Communities & Local Government,DCLG,16/03/2015,Current (non AEF) Grants to Local Authorities,Localism,BARNSLEY MBC,,,,211178595,5000284671,,Business Rates 2013- 14 Reconciliation Grant,S70 2AQ,"177,732.00",Yes
Communities & Local Government,DCLG,16/03/2015,Current (non AEF) Grants to Local Authorities,Localism,BARROW BC,,,,295632913,5000284672,,Business Rates 2013- 14 Reconciliation Grant,LA14 2LD,"43,732.00",Yes
Communities & Local Government,DCLG,16/03/2015,Current (non AEF) Grants to Local Authorities,Localism,BARROW BC,,,,295632913,5000284673,,Business Rates New Burden Admin Cost 2014/15 Grant,LA14 2LD,"10,639.00",Yes
Communities & Local Government,DCLG,16/03/2015,Current (non AEF) Grants to Local Authorities,Localism,BASILDON BOROUGH COUNCIL,,,,,5000284674,,Business Rates New Burden Admin Cost 2014/15 Grant,SS14 0DF,"12,969.00",Yes
Communities & Local Government,DCLG,16/03/2015,Current (non AEF) Grants to Local Authorities,Localism,BASILDON BOROUGH COUNCIL,,,,,5000284675,,Business Rates 2013- 14 Reconciliation Grant,SS14 0DF,"72,928.00",Yes
Communities & Local Government,DCLG,16/03/2015,Current (non AEF) Grants to Local Authorities,Localism,BASINGSTOKE & DEANE BC,,,,228328506,5000284676,,Business Rates New Burden Admin Cost 2014/15 Grant,RG21 2AJ,"12,209.00",Yes
Communities & Local Government,DCLG,16/03/2015,Current (non AEF) Grants to Local Authorities,Localism,BASINGSTOKE & DEANE BC,,,,228328506,5000284677,,Business Rates 2013- 14 Reconciliation Grant,RG21 2AJ,"46,615.00",Yes
Communities & Local Government,DCLG,16/03/2015,Current (non AEF) Grants to Local Authorities,Localism,BASSETLAW DC (HSG),,,,,5000284133,,Business Rates New Burden Admin Cost 2014/15 Grant,S80 2AH,"12,323.00",Yes
Communities & Local Government,DCLG,16/03/2015,Current (non AEF) Grants to Local Authorities,Localism,BASSETLAW DC (HSG),,,,,5000284135,,Business Rates 2013- 14 Reconciliation Grant,S80 2AH,"253,541.00",Yes
Communities & Local Government,DCLG,16/03/2015,Current (non AEF) Grants to Local Authorities,Localism,BATH & NE SOMERSET DC (HSG),,,,214502499,5000284137,,Business Rates 2013- 14 Reconciliation Grant,BA1 5AW,"135,782.00",Yes
Communities & Local Government,DCLG,16/03/2015,Current (non AEF) Grants to Local Authorities,Localism,BATH & NE SOMERSET DC (HSG),,,,214502499,5000284139,,Business Rates New Burden Admin Cost 2014/15 Grant,BA1 5AW,"14,381.00",Yes
Communities & Local Government,DCLG,16/03/2015,Current (non AEF) Grants to Local Authorities,Localism,BEDFORD UNITARY AUTHORITY,,,,225682160,5000284616,,Business Rates New Burden Admin Cost 2014/15 Grant,MK40 1SJ,"13,562.00",Yes
Communities & Local Government,DCLG,16/03/2015,Current (non AEF) Grants to Local Authorities,Localism,BEDFORD UNITARY AUTHORITY,,,,225682160,5000284618,,Business Rates 2013- 14 Reconciliation Grant,MK40 1SJ,"113,004.00",Yes
Communities & Local Government,DCLG,16/03/2015,Current (non AEF) Grants to Local Authorities,Localism,BEDS & LUTON FIRE & RESCUE SERVICE,,Medium,,387821283,5000284572,,Business Rates 2013- 14 Reconciliation Grant,MK42 7NR,"7,322.00",Yes
Communities & Local Government,DCLG,16/03/2015,Current (non AEF) Grants to Local Authorities,Localism,BEXLEY LB (HSG),,,,,5000284141,,Business Rates New Burden Admin Cost 2014/15 Grant,DA8 1TL,"14,123.00",Yes
Communities & Local Government,DCLG,16/03/2015,Current (non AEF) Grants to Local Authorities,Localism,BEXLEY LB (HSG),,,,,5000284143,,Business Rates 2013- 14 Reconciliation Grant,DA8 1TL,"82,067.00",Yes
Communities & Local Government,DCLG,16/03/2015,Current (non AEF) Grants to Local Authorities,Localism,BIRMINGHAM CITY CNCL,,,,213780559,5000284678,,Business Rates 2013- 14 Reconciliation Grant,B2 2AJ,"954,065.00",Yes
Communities & Local Government,DCLG,16/03/2015,Current (non AEF) Grants to Local Authorities,Localism,BIRMINGHAM CITY CNCL,,,,213780559,5000284679,,Business Rates New Burden Admin Cost 2014/15 Grant,B2 2AJ,"59,976.00",Yes
Communities & Local Government,DCLG,16/03/2015,Current (non AEF) Grants to Local Authorities,Localism,BLABY DC (HSG),,,,,5000284145,,Business Rates New Burden Admin Cost 2014/15 Grant,LE9 5EP,"10,188.00",Yes
Communities & Local Government,DCLG,16/03/2015,Current (non AEF) Grants to Local Authorities,Localism,BLABY DC (HSG),,,,,5000284147,,Business Rates 2013- 14 Reconciliation Grant,LE9 5EP,"34,970.00",Yes
Communities & Local Government,DCLG,16/03/2015,Current (non AEF) Grants to Local Authorities,Localism,BLACKBURN WITH DARWEN BC,,,,,5000284680,,Business Rates New Burden Admin Cost 2014/15 Grant,BB1 7DY,"14,994.00",Yes
Communities & Local Government,DCLG,16/03/2015,Current (non AEF) Grants to Local Authorities,Localism,BLACKBURN WITH DARWEN BC,,,,,5000284681,,Business Rates 2013- 14 Reconciliation Grant,BB1 7DY,"159,261.00",Yes
Communities & Local Government,DCLG,16/03/2015,Current (non AEF) Grants to Local Authorities,Localism,BLACKPOOL BC,,,,,5000284682,,Business Rates 2013- 14 Reconciliation Grant,FY1 1NA,"168,961.00",Yes
Communities & Local Government,DCLG,16/03/2015,Current (non AEF) Grants to Local Authorities,Localism,BLACKPOOL BC,,,,,5000284683,,Business Rates New Burden Admin Cost 2014/15 Grant,FY1 1NA,"15,813.00",Yes
Communities & Local Government,DCLG,16/03/2015,Current (non AEF) Grants to Local Authorities,Localism,BOLSOVER DC,,,,235516523,5000284684,,Business Rates New Burden Admin Cost 2014/15 Grant,S43 4JY,"10,563.00",Yes
Communities & Local Government,DCLG,16/03/2015,Current (non AEF) Grants to Local Authorities,Localism,BOLSOVER DC,,,,235516523,5000284685,,Business Rates 2013- 14 Reconciliation Grant,S43 4JY,"34,003.00",Yes
Communities & Local Government,DCLG,16/03/2015,Current (non AEF) Grants to Local Authorities,Localism,BOLTON MBC,,,,,5000284686,,Business Rates 2013- 14 Reconciliation Grant,BL1 1RU,"253,029.00",Yes
Communities & Local Government,DCLG,16/03/2015,Current (non AEF) Grants to Local Authorities,Localism,BOLTON MBC,,,,,5000284687,,Business Rates New Burden Admin Cost 2014/15 Grant,BL1 1RU,"18,477.00",Yes
Communities & Local Government,DCLG,16/03/2015,Current (non AEF) Grants to Local Authorities,Localism,BOSTON BC,,,,236417713,5000284149,,Business Rates 2013- 14 Reconciliation Grant,PE21 8QR,"41,722.00",Yes
Communities & Local Government,DCLG,16/03/2015,Current (non AEF) Grants to Local Authorities,Localism,BOSTON BC,,,,236417713,5000284151,,Business Rates New Burden Admin Cost 2014/15 Grant,PE21 8QR,"10,345.00",Yes
Communities & Local Government,DCLG,16/03/2015,Current (non AEF) Grants to Local Authorities,Localism,BOURNEMOUTH DC,,,,,5000284688,,Business Rates New Burden Admin Cost 2014/15 Grant,BH2 6EB,"16,401.00",Yes
Communities & Local Government,DCLG,16/03/2015,Current (non AEF) Grants to Local Authorities,Localism,BOURNEMOUTH DC,,,,,5000284689,,Business Rates 2013- 14 Reconciliation Grant,BH2 6EB,"131,442.00",Yes
Communities & Local Government,DCLG,16/03/2015,Current (non AEF) Grants to Local Authorities,Localism,BRACKNELL FOREST DC,,,,236184867,5000284690,,Business Rates New Burden Admin Cost 2014/15 Grant,RG12 1AQ,"10,595.00",Yes
Communities & Local Government,DCLG,16/03/2015,Current (non AEF) Grants to Local Authorities,Localism,BRACKNELL FOREST DC,,,,236184867,5000284691,,Business Rates 2013- 14 Reconciliation Grant,RG12 1AQ,"16,217.00",Yes
Communities & Local Government,DCLG,16/03/2015,Current (non AEF) Grants to Local Authorities,Localism,BRADFORD MBC,,,,,5000284692,,Business Rates 2013- 14 Reconciliation Grant,BD1 1HX,"543,857.00",Yes
Communities & Local Government,DCLG,16/03/2015,Current (non AEF) Grants to Local Authorities,Localism,BRADFORD MBC,,,,,5000284693,,Business Rates New Burden Admin Cost 2014/15 Grant,BD1 1HX,"28,455.00",Yes
Communities & Local Government,DCLG,16/03/2015,Current (non AEF) Grants to Local Authorities,Localism,BRAINTREE DC,,,,226941730,5000284153,,Business Rates New Burden Admin Cost 2014/15 Grant,CM7 6HB,"13,048.00",Yes
Communities & Local Government,DCLG,16/03/2015,Current (non AEF) Grants to Local Authorities,Localism,BRAINTREE DC,,,,226941730,5000284155,,Business Rates 2013- 14 Reconciliation Grant,CM7 6HB,"88,482.00",Yes
Communities & Local Government,DCLG,16/03/2015,Current (non AEF) Grants to Local Authorities,Localism,BRECKLAND DC,,,,232611384,5000284156,,Business Rates New Burden Admin Cost 2014/15 Grant,NR19 1EE,"12,860.00",Yes
Communities & Local Government,DCLG,16/03/2015,Current (non AEF) Grants to Local Authorities,Localism,BRECKLAND DC,,,,232611384,5000284158,,Business Rates 2013- 14 Reconciliation Grant,NR19 1EE,"78,664.00",Yes
Communities & Local Government,DCLG,16/03/2015,Current (non AEF) Grants to Local Authorities,Localism,BRENT LB (HSG),,,,,5000284160,,Business Rates New Burden Admin Cost 2014/15 Grant,HA9 9HD,"17,294.00",Yes
Communities & Local Government,DCLG,16/03/2015,Current (non AEF) Grants to Local Authorities,Localism,BRENT LB (HSG),,,,,5000284162,,Business Rates 2013- 14 Reconciliation Grant,HA9 9HD,"102,588.00",Yes
Communities & Local Government,DCLG,16/03/2015,Current (non AEF) Grants to Local Authorities,Localism,BRENTWOOD BC,,,,227473188,5000284694,,Business Rates New Burden Admin Cost 2014/15 Grant,CM15 8AY,"10,327.00",Yes
Communities & Local Government,DCLG,16/03/2015,Current (non AEF) Grants to Local Authorities,Localism,BRENTWOOD BC,,,,227473188,5000284695,,Business Rates 2013- 14 Reconciliation Grant,CM15 8AY,"28,461.00",Yes
Communities & Local Government,DCLG,16/03/2015,Current (non AEF) Grants to Local Authorities,Localism,BRIGHTON & HOVE CITY COUNCIL,,Large,,228455218,5000284696,,Business Rates New Burden Admin Cost 2014/15 Grant,BN3 2LS,"18,789.00",Yes
Communities & Local Government,DCLG,16/03/2015,Current (non AEF) Grants to Local Authorities,Localism,BRIGHTON & HOVE CITY COUNCIL,,Large,,228455218,5000284697,,Business Rates 2013- 14 Reconciliation Grant,BN3 2LS,"192,768.00",Yes
Communities & Local Government,DCLG,16/03/2015,Current (non AEF) Grants to Local Authorities,Localism,BRISTOL CITY CNCL (HSG),,,,211103882,5000284164,,Business Rates New Burden Admin Cost 2014/15 Grant,BS99 7BL,"24,492.00",Yes
Communities & Local Government,DCLG,16/03/2015,Current (non AEF) Grants to Local Authorities,Localism,BRISTOL CITY CNCL (HSG),,,,211103882,5000284166,,Business Rates 2013- 14 Reconciliation Grant,BS99 7BL,"329,334.00",Yes
Communities & Local Government,DCLG,16/03/2015,Current (non AEF) Grants to Local Authorities,Localism,BROADLAND DC,,Large,,219737785,5000284169,,Business Rates New Burden Admin Cost 2014/15 Grant,NR7 0DU,"11,867.00",Yes
Communities & Local Government,DCLG,16/03/2015,Current (non AEF) Grants to Local Authorities,Localism,BROADLAND DC,,Large,,219737785,5000284170,,Business Rates 2013- 14 Reconciliation Grant,NR7 0DU,"69,559.00",Yes
Communities & Local Government,DCLG,16/03/2015,Current (non AEF) Grants to Local Authorities,Localism,BROMLEY LB,,,,211331954,5000284698,,Business Rates 2013- 14 Reconciliation Grant,BR1 3UH,"73,340.00",Yes
Communities & Local Government,DCLG,16/03/2015,Current (non AEF) Grants to Local Authorities,Localism,BROMLEY LB,,,,211331954,5000284699,,Business Rates New Burden Admin Cost 2014/15 Grant,BR1 3UH,"16,135.00",Yes
Communities & Local Government,DCLG,16/03/2015,Current (non AEF) Grants to Local Authorities,Localism,BROMSGROVE DC,,,,236654745,5000284172,,Business Rates 2013- 14 Reconciliation Grant,B60 1AA,"69,751.00",Yes
Communities & Local Government,DCLG,16/03/2015,Current (non AEF) Grants to Local Authorities,Localism,BROMSGROVE DC,,,,236654745,5000284174,,Business Rates New Burden Admin Cost 2014/15 Grant,B60 1AA,"11,408.00",Yes
Communities & Local Government,DCLG,16/03/2015,Current (non AEF) Grants to Local Authorities,Localism,BROXBOURNE BC,,Public Bodies,,239931918,5000284700,,Business Rates New Burden Admin Cost 2014/15 Grant,EN8 9XG,"10,445.00",Yes
Communities & Local Government,DCLG,16/03/2015,Current (non AEF) Grants to Local Authorities,Localism,BROXBOURNE BC,,Public Bodies,,239931918,5000284701,,Business Rates 2013- 14 Reconciliation Grant,EN8 9XG,"69,126.00",Yes
Communities & Local Government,DCLG,16/03/2015,Current (non AEF) Grants to Local Authorities,Localism,BROXTOWE BC,,,,239877640,5000284702,,Business Rates 2013- 14 Reconciliation Grant,NG9 1AB,"44,361.00",Yes
Communities & Local Government,DCLG,16/03/2015,Current (non AEF) Grants to Local Authorities,Localism,BROXTOWE BC,,,,239877640,5000284703,,Business Rates New Burden Admin Cost 2014/15 Grant,NG9 1AB,"10,899.00",Yes
Communities & Local Government,DCLG,16/03/2015,Current (non AEF) Grants to Local Authorities,Localism,BUCKINGHAMSHIRE CC,,,,293750923,5000284704,,Business Rates 2013- 14 Reconciliation Grant,HP20 1UD,"50,032.00",Yes
Communities & Local Government,DCLG,16/03/2015,Current (non AEF) Grants to Local Authorities,Localism,BUCKS & MILTON KEYNES FIRE AUTH,,Public Bodies,,423679463,5000284550,,Business Rates 2013- 14 Reconciliation Grant,HP20 1BD,"8,342.00",Yes
Communities & Local Government,DCLG,16/03/2015,Current (non AEF) Grants to Local Authorities,Localism,BURNLEY BC,,,,229413281,5000284705,,Business Rates New Burden Admin Cost 2014/15 Grant,BB11 1JA,"12,179.00",Yes
Communities & Local Government,DCLG,16/03/2015,Current (non AEF) Grants to Local Authorities,Localism,BURNLEY BC,,,,229413281,5000284706,,Business Rates 2013- 14 Reconciliation Grant,BB11 1JA,"70,527.00",Yes
Communities & Local Government,DCLG,16/03/2015,Current (non AEF) Grants to Local Authorities,Localism,BURY MBC,,,,,5000284707,,Business Rates New Burden Admin Cost 2014/15 Grant,BL9 0SW,"14,454.00",Yes
Communities & Local Government,DCLG,16/03/2015,Current (non AEF) Grants to Local Authorities,Localism,BURY MBC,,,,,5000284708,,Business Rates 2013- 14 Reconciliation Grant,BL9 0SW,"181,332.00",Yes
Communities & Local Government,DCLG,16/03/2015,Current (non AEF) Grants to Local Authorities,Localism,CALDERDALE MBC,,,,,5000284709,,Business Rates 2013- 14 Reconciliation Grant,HX1 1YP,"213,868.00",Yes
Communities & Local Government,DCLG,16/03/2015,Current (non AEF) Grants to Local Authorities,Localism,CALDERDALE MBC,,,,,5000284710,,Business Rates New Burden Admin Cost 2014/15 Grant,HX1 1YP,"18,236.00",Yes
Communities & Local Government,DCLG,16/03/2015,Current (non AEF) Grants to Local Authorities,Localism,CAMBRIDGE CITY COUNCIL,,,,210357534,5000284711,,Business Rates New Burden Admin Cost 2014/15 Grant,CB2 3NA,"11,734.00",Yes
Communities & Local Government,DCLG,16/03/2015,Current (non AEF) Grants to Local Authorities,Localism,CAMBRIDGE CITY COUNCIL,,,,210357534,5000284712,,Business Rates 2013- 14 Reconciliation Grant,CB2 3NA,"55,528.00",Yes
Communities & Local Government,DCLG,16/03/2015,Current (non AEF) Grants to Local Authorities,Localism,CAMBRIDGESHIRE COUNTY CNCL,,,,219047347,5000284713,,Business Rates 2013- 14 Reconciliation Grant,CB3 0AP,"106,767.00",Yes
Communities & Local Government,DCLG,16/03/2015,Current (non AEF) Grants to Local Authorities,Localism,CAMBS & PETERBOROUGH FIRE AUTHORITY,,,,235999737,5000284564,,Business Rates 2013- 14 Reconciliation Grant,PE29 2NA,"14,359.00",Yes
Communities & Local Government,DCLG,16/03/2015,Current (non AEF) Grants to Local Authorities,Localism,CAMDEN LB,,,,211651836,5000284714,,Business Rates 2013- 14 Reconciliation Grant,WC1H 8NG,"57,970.00",Yes
Communities & Local Government,DCLG,16/03/2015,Current (non AEF) Grants to Local Authorities,Localism,CAMDEN LB,,,,211651836,5000284715,,Business Rates New Burden Admin Cost 2014/15 Grant,WC1H 8NG,"23,513.00",Yes
Communities & Local Government,DCLG,16/03/2015,Current (non AEF) Grants to Local Authorities,Localism,CANNOCK CHASE DC,,,,215064770,5000284716,,Business Rates New Burden Admin Cost 2014/15 Grant,WS11 1BG,"11,755.00",Yes
Communities & Local Government,DCLG,16/03/2015,Current (non AEF) Grants to Local Authorities,Localism,CANNOCK CHASE DC,,,,215064770,5000284717,,Business Rates 2013- 14 Reconciliation Grant,WS11 1BG,"58,909.00",Yes
Communities & Local Government,DCLG,16/03/2015,Current (non AEF) Grants to Local Authorities,Localism,CANTERBURY CITY CNCL,,,,,5000284177,,Business Rates New Burden Admin Cost 2014/15 Grant,CT1 1YW,"14,061.00",Yes
Communities & Local Government,DCLG,16/03/2015,Current (non AEF) Grants to Local Authorities,Localism,CANTERBURY CITY CNCL,,,,,5000284179,,Business Rates 2013- 14 Reconciliation Grant,CT1 1YW,"92,054.00",Yes
Communities & Local Government,DCLG,16/03/2015,Current (non AEF) Grants to Local Authorities,Localism,CARLISLE CITY CNCL,,,,227471059,5000284181,,Business Rates 2013- 14 Reconciliation Grant,CA3 8QG,"74,826.00",Yes
Communities & Local Government,DCLG,16/03/2015,Current (non AEF) Grants to Local Authorities,Localism,CARLISLE CITY CNCL,,,,227471059,5000284183,,Business Rates New Burden Admin Cost 2014/15 Grant,CA3 8QG,"12,801.00",Yes
Communities & Local Government,DCLG,16/03/2015,Current (non AEF) Grants to Local Authorities,Localism,CASTLE POINT BC,,Public Bodies,,228217931,5000284718,,Business Rates 2013- 14 Reconciliation Grant,SS7 1TF,"36,169.00",Yes
Communities & Local Government,DCLG,16/03/2015,Current (non AEF) Grants to Local Authorities,Localism,CASTLE POINT BC,,Public Bodies,,228217931,5000284719,,Business Rates New Burden Admin Cost 2014/15 Grant,SS7 1TF,"10,356.00",Yes
Communities & Local Government,DCLG,16/03/2015,Current (non AEF) Grants to Local Authorities,Localism,CENTRAL BEDFORDSHIRE COUNCIL,,,,232624882,5000284605,,Business Rates New Burden Admin Cost 2014/15 Grant,SG17 5TQ,"15,816.00",Yes
Communities & Local Government,DCLG,16/03/2015,Current (non AEF) Grants to Local Authorities,Localism,CENTRAL BEDFORDSHIRE COUNCIL,,,,232624882,5000284606,,Business Rates 2013- 14 Reconciliation Grant,SG17 5TQ,"148,385.00",Yes
Communities & Local Government,DCLG,16/03/2015,Current (non AEF) Grants to Local Authorities,Localism,CHARNWOOD BC,,,,,5000284720,,Business Rates New Burden Admin Cost 2014/15 Grant,LE11 2TU,"13,177.00",Yes
Communities & Local Government,DCLG,16/03/2015,Current (non AEF) Grants to Local Authorities,Localism,CHARNWOOD BC,,,,,5000284721,,Business Rates 2013- 14 Reconciliation Grant,LE11 2TU,"76,999.00",Yes
Communities & Local Government,DCLG,16/03/2015,Current (non AEF) Grants to Local Authorities,Localism,CHELMSFORD BC,,,,,5000284722,,Business Rates New Burden Admin Cost 2014/15 Grant,CM1 1JE,"12,923.00",Yes
Communities & Local Government,DCLG,16/03/2015,Current (non AEF) Grants to Local Authorities,Localism,CHELMSFORD BC,,,,,5000284723,,Business Rates 2013- 14 Reconciliation Grant,CM1 1JE,"81,712.00",Yes
Communities & Local Government,DCLG,16/03/2015,Current (non AEF) Grants to Local Authorities,Localism,CHELTENHAM BC,,,,,5000284724,,Business Rates 2013- 14 Reconciliation Grant,GL50 1PW,"69,210.00",Yes
